Invoice Date,Transaction Number,Invoice Number,Amount,Supplier Name(T),Supplier Name,VAT Registration Number,Expense Area(T),Expense Code,Expense Code(T)
30/03/2020,60041440,SN9 - MARCH 2020,329.35,1st Call County Taxis,RC509302,,SEN Transport,R3200,Hire of Vehicles & Plant
30/03/2020,60041440,SN9 - MARCH 2020,2590.65,1st Call County Taxis,RC509302,,SEN Transport,R3200,Hire of Vehicles & Plant
30/03/2020,60041441,SN45 - MARCH 2020,240,1st Call County Taxis,RC509302,,Post 16 Transport,R3207,Transport Contract
30/03/2020,60041441,SN45 - MARCH 2020,1020,1st Call County Taxis,RC509302,,Post 16 Transport,R3207,Transport Contract
01/04/2020,60041705,RCC0202,2375.24,A & R Guardian Services Ltd,RC509277,,ASC S&R Homecare OP,R5029,TPP - Home Care
06/04/2020,60041706,RCC0203,6281.44,A & R Guardian Services Ltd,RC509277,,ASC S&R Homecare OP,R5029,TPP - Home Care
12/04/2020,60041971,RCC0205,2632.12,A & R Guardian Services Ltd,RC509277,,ASC S&R Homecare OP,R5029,TPP - Home Care
10/04/2020,60041972,RCC0206,1185.94,A & R Guardian Services Ltd,RC509277,,ASC S&R Homecare OP,R5029,TPP - Home Care
09/04/2020,60041998,RCC0204,5895.34,A & R Guardian Services Ltd,RC509277,,ASC S&R Homecare OP,R5029,TPP - Home Care
19/04/2020,60042142,RCC 0208,9492.39,A & R Guardian Services Ltd,RC509277,,ASC S&R Homecare OP,R5029,TPP - Home Care
27/04/2020,60042266,RCC 0209,8536.36,A & R Guardian Services Ltd,RC509277,,ASC S&R Homecare OP,R5029,TPP - Home Care
01/04/2020,60041310,776,1845,A J Bryan Construction,RC301193,114 7232 02,Central Maintenance,R2003,R & M - Emergency Works
02/04/2020,3736522,Redacted Personal Data,139.85,Redacted Personal Data,RC503878,,Placements,R5017,TPP - Other
08/04/2020,3736742,Redacted Personal Data,139.85,Redacted Personal Data,RC503878,,Placements,R5017,TPP - Other
16/04/2020,3737199,Redacted Personal Data,139.85,Redacted Personal Data,RC503878,,Placements,R5017,TPP - Other
23/04/2020,3737293,Redacted Personal Data,139.85,Redacted Personal Data,RC503878,,Placements,R5017,TPP - Other
01/04/2020,60041824,124301,131,A T Alarms Ltd,RC500110,385 2611 45,Admin Buildings,R2003,R & M - Emergency Works
01/04/2020,60041489,3330461,279,AAT,RC500114,524 8751 31,Rutland Adult Skill Budget Post July 2014,R4401,Fees and Charges
08/04/2020,3736758,29685/1,143.14,Aberdeen House Care Limited,RC506722,,Older People,R5028,TPP - Residental Care
08/04/2020,3736758,29685/1,365,Aberdeen House Care Limited,RC506722,,Older People,R5028,TPP - Residental Care
08/04/2020,3736758,29685/1,511,Aberdeen House Care Limited,RC506722,,Older People,R5028,TPP - Residental Care
08/04/2020,3736759,29685/2,1000,Aberdeen House Care Limited,RC506722,,Older People,R5028,TPP - Residental Care
08/04/2020,3736760,29685/3,134,Aberdeen House Care Limited,RC506722,,Older People,R5028,TPP - Residental Care
08/04/2020,3736760,29685/3,341.43,Aberdeen House Care Limited,RC506722,,Older People,R5028,TPP - Residental Care
08/04/2020,3736760,29685/3,478,Aberdeen House Care Limited,RC506722,,Older People,R5028,TPP - Residental Care
08/04/2020,3736761,29685/4,134,Aberdeen House Care Limited,RC506722,,Older People,R5028,TPP - Residental Care
08/04/2020,3736761,29685/4,341.43,Aberdeen House Care Limited,RC506722,,Older People,R5028,TPP - Residental Care
08/04/2020,3736761,29685/4,478,Aberdeen House Care Limited,RC506722,,Older People,R5028,TPP - Residental Care
08/04/2020,3736762,29684/5,67,Aberdeen House Care Limited,RC506722,,ASC P&S Respite OP,R5018,Respite
08/04/2020,3736762,29684/5,335,Aberdeen House Care Limited,RC506722,,ASC P&S Respite OP,R5018,Respite
08/04/2020,3736763,29685/6,134,Aberdeen House Care Limited,RC506722,,Older People,R5028,TPP - Residental Care
08/04/2020,3736763,29685/6,341.43,Aberdeen House Care Limited,RC506722,,Older People,R5028,TPP - Residental Care
08/04/2020,3736763,29685/6,478,Aberdeen House Care Limited,RC506722,,Older People,R5028,TPP - Residental Care
08/04/2020,3736764,29684/7,67,Aberdeen House Care Limited,RC506722,,ASC P&S Respite OP,R5018,Respite
08/04/2020,3736764,29684/7,402,Aberdeen House Care Limited,RC506722,,ASC P&S Respite OP,R5018,Respite
08/04/2020,3736764,29684/7,536,Aberdeen House Care Limited,RC506722,,Older People,R5028,TPP - Residental Care
08/04/2020,3736765,29685/8,134,Aberdeen House Care Limited,RC506722,,Older People,R5028,TPP - Residental Care
08/04/2020,3736765,29685/8,341.43,Aberdeen House Care Limited,RC506722,,Older People,R5028,TPP - Residental Care
08/04/2020,3736765,29685/8,478,Aberdeen House Care Limited,RC506722,,Older People,R5028,TPP - Residental Care
21/04/2020,3737313,29977/1,1022,Aberdeen House Care Limited,RC506722,,Older People,R5028,TPP - Residental Care
21/04/2020,3737314,29977/2,1000,Aberdeen House Care Limited,RC506722,,Older People,R5028,TPP - Residental Care
21/04/2020,3737315,29977/3,365,Aberdeen House Care Limited,RC506722,,Older People,R5028,TPP - Residental Care
21/04/2020,3737315,29977/3,511,Aberdeen House Care Limited,RC506722,,Older People,R5028,TPP - Residental Care
21/04/2020,3737315,29977/3,1022,Aberdeen House Care Limited,RC506722,,Older People,R5028,TPP - Residental Care
21/04/2020,3737316,29977/4,956,Aberdeen House Care Limited,RC506722,,Older People,R5028,TPP - Residental Care
21/04/2020,3737317,29977/5,956,Aberdeen House Care Limited,RC506722,,Older People,R5028,TPP - Residental Care
21/04/2020,3737318,29977/6,204.86,Aberdeen House Care Limited,RC506722,,Older People,R5028,TPP - Residental Care
21/04/2020,60042324,08/04/2020,2273.15,Aberdeen House Care Limited,RC506722,,Interim Beds (CCG),R5028,TPP - Residental Care
01/04/2020,60041572,46,981,Ace Cabs Stamford Ltd,RC500124,184 8594 53,Home to School Transport,R3200,Hire of Vehicles & Plant
01/04/2020,60041573,52,2250,Ace Cabs Stamford Ltd,RC500124,184 8594 53,Post 16 Transport,R3200,Hire of Vehicles & Plant
01/04/2020,60041574,47,3760,Ace Cabs Stamford Ltd,RC500124,184 8594 53,Children Looked After Transport,R3200,Hire of Vehicles & Plant
01/04/2020,60041575,53,1650,Ace Cabs Stamford Ltd,RC500124,184 8594 53,SEN Transport,R3200,Hire of Vehicles & Plant
01/04/2020,60041576,50,1100,Ace Cabs Stamford Ltd,RC500124,184 8594 53,SEN Transport,R3200,Hire of Vehicles & Plant
01/04/2020,60041577,49,624,Ace Cabs Stamford Ltd,RC500124,184 8594 53,Children Looked After Transport,R3200,Hire of Vehicles & Plant
01/04/2020,60041577,49,1896,Ace Cabs Stamford Ltd,RC500124,184 8594 53,Children Looked After Transport,R3200,Hire of Vehicles & Plant
01/04/2020,60041578,48,960,Ace Cabs Stamford Ltd,RC500124,184 8594 53,Post 16 Transport,R3207,Transport Contract
01/04/2020,60041578,48,2800,Ace Cabs Stamford Ltd,RC500124,184 8594 53,Post 16 Transport,R3207,Transport Contract
01/04/2020,60041579,45,2360,Ace Cabs Stamford Ltd,RC500124,184 8594 53,Home to School Transport,R3207,Transport Contract
01/04/2020,60041580,51,546,Ace Cabs Stamford Ltd,RC500124,184 8594 53,Post 16 Transport,R3200,Hire of Vehicles & Plant
01/04/2020,60041580,51,1600,Ace Cabs Stamford Ltd,RC500124,184 8594 53,Post 16 Transport,R3200,Hire of Vehicles & Plant
30/04/2020,60042218,65,1140,Ace Cabs Stamford Ltd,RC500124,184 8594 53,Post 16 Transport,R3200,Hire of Vehicles & Plant
30/04/2020,60042219,60,2560,Ace Cabs Stamford Ltd,RC500124,184 8594 53,Children Looked After Transport,R3200,Hire of Vehicles & Plant
30/04/2020,60042220,63,600,Ace Cabs Stamford Ltd,RC500124,184 8594 53,Children Looked After Transport,R3200,Hire of Vehicles & Plant
30/04/2020,60042221,62,1248,Ace Cabs Stamford Ltd,RC500124,184 8594 53,Children Looked After Transport,R3200,Hire of Vehicles & Plant
30/04/2020,60042222,61,1920,Ace Cabs Stamford Ltd,RC500124,184 8594 53,Post 16 Transport,R3200,Hire of Vehicles & Plant
30/04/2020,60042223,58,1200,Ace Cabs Stamford Ltd,RC500124,184 8594 53,Home to School Transport,R3200,Hire of Vehicles & Plant
30/04/2020,60042224,64,1092,Ace Cabs Stamford Ltd,RC500124,184 8594 53,Post 16 Transport,R3200,Hire of Vehicles & Plant
30/04/2020,60042277,59,522,Ace Cabs Stamford Ltd,RC500124,184 8594 53,Home to School Transport,R3200,Hire of Vehicles & Plant
30/03/2020,60041420,07-Mar-20,342.3,Ace Cars Peterborough,RC509239,,Home to School Transport,R3207,Transport Contract
30/03/2020,60041420,07-Mar-20,883.5,Ace Cars Peterborough,RC509239,,Home to School Transport,R3207,Transport Contract
15/04/2020,60041975,33343,8565.57,Acorn Care & Education Ltd,RC501992,,Learning Disability,R5028,TPP - Residental Care
15/04/2020,60041976,33344,9166.67,Acorn Care & Education Ltd,RC501992,,Learning Disability,R5028,TPP - Residental Care
15/04/2020,60041977,33345,21006.67,Acorn Care & Education Ltd,RC501992,,SEN (DSG),R5017,TPP - Other
15/04/2020,60041978,33346,21006.67,Acorn Care & Education Ltd,RC501992,,SEN (DSG),R5017,TPP - Other
15/04/2020,60041979,33347,125.32,Acorn Care & Education Ltd,RC501992,,SEN (DSG),R5017,TPP - Other
15/04/2020,60041980,33348,121.83,Acorn Care & Education Ltd,RC501992,,SEN (DSG),R5017,TPP - Other
15/04/2020,60041981,33349,121.83,Acorn Care & Education Ltd,RC501992,,SEN (DSG),R5017,TPP - Other
15/04/2020,60041982,33350,501.29,Acorn Care & Education Ltd,RC501992,,SEN (DSG),R5017,TPP - Other
15/04/2020,60041983,33351,487.35,Acorn Care & Education Ltd,RC501992,,SEN (DSG),R5017,TPP - Other
15/04/2020,60041984,33352,487.35,Acorn Care & Education Ltd,RC501992,,SEN (DSG),R5017,TPP - Other
15/04/2020,60041985,33353,21607.33,Acorn Care & Education Ltd,RC501992,,SEN (DSG),R5017,TPP - Other
15/04/2020,60041986,33354,9166.67,Acorn Care & Education Ltd,RC501992,,SEN (DSG),R5017,TPP - Other
08/04/2020,3736766,29698/9,950,Acorn Hill Nursing Home,RC300429,,Older People,R5028,TPP - Residental Care
21/04/2020,3737319,29991/7,950,Acorn Hill Nursing Home,RC300429,,Older People,R5028,TPP - Residental Care
01/04/2020,60041561,1661,569.6,Action Deafness Ltd,RC506720,978 8916 31,ASC S&R Homecare PD,R5029,TPP - Home Care
01/04/2020,60041560,R81IN2/00010344,343.12,Action for Children Services Limited,RC301408,589 6295 66,Early Intervention Youth Services,R4401,Fees and Charges
28/04/2020,60042312,2020211088,310,Adept,RC300549,,Directorate Management - Places,R4701,Subscriptions
08/04/2020,60041833,28422260,3356.25,AECOM Infrastructure & Environment Uk Ltd,RC507238,818 3019 39,Local Plan Production,R1401,Professional Fees
08/04/2020,60041859,28422261,945,AECOM Infrastructure & Environment Uk Ltd,RC507238,818 3019 39,Local Plan Production,R4400,Professional Fees
21/04/2020,60042169,12890,4.9,AGG Electrical Safety Testing Limited,RC507722,939 0624 09,Property Services Rechargeable Works,R2004,R & M - Programmed
21/04/2020,60042175,12889,305.9,AGG Electrical Safety Testing Limited,RC507722,939 0624 09,Property Services Rechargeable Works,R2004,R & M - Programmed
31/03/2020,60041584,Redacted Personal Data,90,Redacted Personal Data,RC301044,,Changing Lives,R4401,Fees and Charges
09/04/2020,60041834,Redacted Personal Data,90,Redacted Personal Data,RC301044,,Changing Lives,R4401,Fees and Charges
22/04/2020,60042171,Redacted Personal Data,90,Redacted Personal Data,RC301044,,Changing Lives,R4401,Fees and Charges
29/04/2020,60042347,Redacted Personal Data,90,Redacted Personal Data,RC301044,,Changing Lives,R4401,Fees and Charges
01/04/2020,60041465,C38437,214.64,Allied Publicity Services (Manchester) Limited t/a APS Group,RC300920,146 4941 52,Blue Badge Scheme,R4401,Fees and Charges
01/04/2020,60041533,E2012424799,304.96,Allstar Business Solutions Ltd,RC507815,747 8801 91,Pool Cars and Car Hire,R3000,Fuel
01/04/2020,60041534,E2012434802,1142.21,Allstar Business Solutions Ltd,RC507815,747 8801 91,Educational Transport Fleet,R3000,Fuel
01/04/2020,60041600,E2012424800,43.33,Allstar Business Solutions Ltd,RC507815,747 8801 91,Public Rights of Way,R3000,Fuel
15/04/2020,60042060,E2012476988,153.52,Allstar Business Solutions Ltd,RC507815,747 8801 91,Pool Cars and Car Hire,R3000,Fuel
15/04/2020,60042061,E2012476989,201.81,Allstar Business Solutions Ltd,RC507815,747 8801 91,Educational Transport Fleet,R3000,Fuel
01/04/2020,60041557,7 - 01/04/2020,283.2,Always Available Cleaning Services Ltd,RC500162,129 8357 79,Oakham Castle,R2700,Contract Cleaning
01/04/2020,60041651,8 - 1st April 2020,70.8,Always Available Cleaning Services Ltd,RC500162,129 8357 79,Admin Buildings,R2700,Contract Cleaning
01/04/2020,60041651,8 - 1st April 2020,472,Always Available Cleaning Services Ltd,RC500162,129 8357 79,Admin Buildings,R2700,Contract Cleaning
01/04/2020,60041652,9 - 1st April 2020,204.53,Always Available Cleaning Services Ltd,RC500162,129 8357 79,Oakham Enterprise Park,R2700,Contract Cleaning
10/04/2020,60041829,3 - 10th April 2020,188.8,Always Available Cleaning Services Ltd,RC500162,129 8357 79,Oakham Enterprise Park,R2700,Contract Cleaning
10/04/2020,60041830,3-10/04/2020,472,Always Available Cleaning Services Ltd,RC500162,129 8357 79,Children's Centres - Revenue,R2700,Contract Cleaning
01/04/2020,60041862,3 - 13/3/2020,224,Always Available Cleaning Services Ltd,RC500162,129 8357 79,Oakham Enterprise Park,R2700,Contract Cleaning
10/04/2020,60041863,3 - 10/04/2020,345,Always Available Cleaning Services Ltd,RC500162,129 8357 79,Oakham Enterprise Park,R2700,Contract Cleaning
10/04/2020,60041864,3 - 10 APRIL 2020,315.2,Always Available Cleaning Services Ltd,RC500162,129 8357 79,Ashwell Road Business Units,R2700,Contract Cleaning
10/04/2020,60041865,03 - 10/04/2020,472,Always Available Cleaning Services Ltd,RC500162,129 8357 79,Community Learning,R2700,Contract Cleaning
08/04/2020,3736757,Redacted Personal Data,500,Redacted Personal Data,RC508931,,Aiming High,R4400,Professional Fees
26/05/2019,60041866,49,69,Redacted Personal Data,RC300162,,Family Support Services,R4401,Fees and Charges
01/04/2020,60041541,45,535.5,Angel Cars (Peterborough),RC508942,,SEN Transport,R3200,Hire of Vehicles & Plant
01/04/2020,60041541,45,1350,Angel Cars (Peterborough),RC508942,,SEN Transport,R3200,Hire of Vehicles & Plant
01/04/2020,60041542,0045a,351.05,Angel Cars (Peterborough),RC508942,,SEN Transport,R3200,Hire of Vehicles & Plant
01/04/2020,60041542,0045a,885,Angel Cars (Peterborough),RC508942,,SEN Transport,R3200,Hire of Vehicles & Plant
01/04/2020,60041735,210456501 - 24/03/2020,1752.88,Anglian Water Business Ltd,RC500175,242 5074 29,Oakham Enterprise Park,R2401,Water Services
14/04/2020,3737006,29798/2,230,Redacted Personal Data,RC505078,,Carer Support,R6280,Direct Payments
01/04/2020,60041604,326992,1814.5,Anthony Collins Solicitors LLP,RC508058,112 0288 22,Legal Services,R4400,Professional Fees
16/04/2020,60042064,CIL PARISH PAYMENT APRIL 2020,443.93,Ashwell Parish Council,RC500022,,S106 Contributions,R5017,TPP - Other
01/04/2020,60042207,986872,641.52,Askews and Holts Library Services Ltd,RC505812,153 4009 95,Libraries,R4309,Books
01/04/2020,60042208,987726,36.63,Askews and Holts Library Services Ltd,RC505812,153 4009 95,Libraries,R4309,Books
01/04/2020,60042208,987726,999.89,Askews and Holts Library Services Ltd,RC505812,153 4009 95,Libraries,R4309,Books
01/04/2020,60041718,29499,355.8,Athena Care Ltd,RC502617,775 5290 95,ASC S&R Homecare MH,R5029,TPP - Home Care
05/04/2020,60041832,29524/0,355.8,Athena Care Ltd,RC502617,775 5290 95,ASC S&R Homecare MH,R5029,TPP - Home Care
12/04/2020,60042084,29545/0,355.8,Athena Care Ltd,RC502617,775 5290 95,ASC S&R Homecare MH,R5029,TPP - Home Care
19/04/2020,60042209,29563/0,388.74,Athena Care Ltd,RC502617,775 5290 95,ASC S&R Homecare MH,R5029,TPP - Home Care
08/04/2020,3736767,29699/10,1710,Autumn Lodge,RC509337,,Older People,R5028,TPP - Residental Care
21/04/2020,3737320,29992/8,1710,Autumn Lodge,RC509337,,Older People,R5028,TPP - Residental Care
02/04/2020,3736519,Redacted Personal Data,167.4,Redacted Personal Data,RC507009,,Placements,R5017,TPP - Other
02/04/2020,3736520,Redacted Personal Data,168.13,Redacted Personal Data,RC507009,,Placements,R5017,TPP - Other
08/04/2020,3736739,Redacted Personal Data,167.4,Redacted Personal Data,RC507009,,Placements,R5017,TPP - Other
08/04/2020,3736740,Redacted Personal Data,168.13,Redacted Personal Data,RC507009,,Placements,R5017,TPP - Other
16/04/2020,3737196,Redacted Personal Data,167.4,Redacted Personal Data,RC507009,,Placements,R5017,TPP - Other
16/04/2020,3737197,Redacted Personal Data,168.13,Redacted Personal Data,RC507009,,Placements,R5017,TPP - Other
23/04/2020,3737290,Redacted Personal Data,167.4,Redacted Personal Data,RC507009,,Placements,R5017,TPP - Other
23/04/2020,3737291,Redacted Personal Data,168.13,Redacted Personal Data,RC507009,,Placements,R5017,TPP - Other
27/04/2020,60042261,LS6781,916.29,Badenoch & Clark Limited,RC301183,GB 232 3479 75,BCF: Programme Support,R1100,Agency Staff
27/04/2020,60042262,LS6782,916.29,Badenoch & Clark Limited,RC301183,GB 232 3479 75,BCF: Programme Support,R1100,Agency Staff
27/04/2020,60042263,LS6783,916.29,Badenoch & Clark Limited,RC301183,GB 232 3479 75,BCF: Programme Support,R1100,Agency Staff
27/04/2020,60042264,LS6784,916.29,Badenoch & Clark Limited,RC301183,GB 232 3479 75,BCF: Programme Support,R1100,Agency Staff
02/04/2020,3736457,Redacted Personal Data,44.99,Redacted Personal Data,RC301231,,Unaccompanied Asylum Seekers - Over 18,R6292,Section 24 Payments
14/04/2020,3737073,29798/69,138,Redacted Personal Data,RC506334,,Carer Support,R6280,Direct Payments
01/04/2020,60041945,OPERATION SHIELD SETUP COSTS,6000,Barnsdale Lodge Hotel,RC500083,486 4132 33,Op Shield/Food,R4401,Fees and Charges
02/04/2020,60041946,INV-0078,22036.91,Barnsdale Lodge Hotel,RC500083,486 4132 33,Op Shield/Food,R4401,Fees and Charges
07/04/2020,60041947,INV-0083,24080.73,Barnsdale Lodge Hotel,RC500083,486 4132 33,Op Shield/Food,R4401,Fees and Charges
08/04/2020,60041948,SHIELD OPERATION ADDITIONAL FUNDING,6000,Barnsdale Lodge Hotel,RC500083,486 4132 33,Op Shield/Food,R4401,Fees and Charges
15/04/2020,60041949,INV-0084,17576.88,Barnsdale Lodge Hotel,RC500083,486 4132 33,Op Shield/Food,R4401,Fees and Charges
21/04/2020,60042157,INV-0085,17670.22,Barnsdale Lodge Hotel,RC500083,486 4132 33,Op Shield/Food,R4401,Fees and Charges
27/04/2020,60042285,INV-0086,18441.97,Barnsdale Lodge Hotel,RC500083,486 4132 33,Op Shield/Food,R4401,Fees and Charges
08/04/2020,3736768,29700/11,1440,Barons Park Care Home,RC301383,,Older People,R5034,TPP - Nursing Care
21/04/2020,3737321,29993/9,1440,Barons Park Care Home,RC301383,,Older People,R5034,TPP - Nursing Care
14/04/2020,3737022,29798/18,368,Redacted Personal Data,RC508792,,Carer Support,R6280,Direct Payments
01/04/2020,60041545,17690,50,BC Cooling Ltd,RC508685,934 7595 82,Central Maintenance,R2003,R & M - Emergency Works
01/04/2020,60041545,17690,200,BC Cooling Ltd,RC508685,934 7595 82,Central Maintenance,R2003,R & M - Emergency Works
01/04/2020,60041546,17691,150,BC Cooling Ltd,RC508685,934 7595 82,Central Maintenance,R2003,R & M - Emergency Works
01/04/2020,60040162,1024193603,6.95,Bechtle Direct Ltd,RC508730,699 3742 67,Early Intervention Youth Services,R4530,Computing - Hardware
01/04/2020,60040162,1024193603,122.6,Bechtle Direct Ltd,RC508730,699 3742 67,Early Intervention Youth Services,R4530,Computing - Hardware
01/04/2020,60040866,1024195946,277.5,Bechtle Direct Ltd,RC508730,699 3742 67,IT Operational Support,R4530,Computing - Hardware
01/04/2020,60040927,1024196463,38.99,Bechtle Direct Ltd,RC508730,699 3742 67,Development Control,R4530,Computing - Hardware
01/04/2020,60041362,1024198928,10653.6,Bechtle Direct Ltd,RC508730,699 3742 67,IT Operational Support,R4530,Computing - Hardware
03/04/2020,60041603,1024200326,222,Bechtle Direct Ltd,RC508730,699 3742 67,Covid_19,R4530,Computing - Hardware
08/04/2020,60041794,1024200799,2778,Bechtle Direct Ltd,RC508730,699 3742 67,Covid_19,R4530,Computing - Hardware
02/04/2020,3736456,Redacted Personal Data,11.99,Redacted Personal Data,RC300975,,Unaccompanied Asylum Seekers - Over 18,R6292,Section 24 Payments
16/04/2020,3736928,2 Year Funding - April Claim March Adjustment - Covid,187.2,Belton Pre-School,RC500093,,2 Year Old Nursery Funding,R5020,TPP - Nursery Provision
16/04/2020,3736945,3 and 4 Year Funding - April Claim March Adjustment - Covid,5425.55,Belton Pre-School,RC500093,,3 & 4 Year Old Nursery Funding,R5020,TPP - Nursery Provision
23/04/2020,3737227,Belton Pre -School EYCP Grant April to June 20,2473.91,Belton Pre-School,RC500093,,Children's Centres - Revenue,R4401,Fees and Charges
23/04/2020,3737236,Redacted Personal Data,550,Belvoir Birmingham Central,RC301171,902 4055 65,Unaccompanied Asylum Seekers - Over 18,R4900,Accomodation Costs
09/03/2020,60041569,61165,75,Bentley Nursing Supplies,RC300553,551010502,"OT's, Aids & Equipment",R4000,Furniture & Equipment
02/04/2020,60041950,61416,2450,Bentley Nursing Supplies,RC300553,551010502,Covid_19 - Social Care,R4400,Professional Fees
01/04/2020,60042159,61266,100,Bentley Nursing Supplies,RC300553,551010502,"OT's, Aids & Equipment",R4000,Furniture & Equipment
01/04/2020,60042167,61267,100,Bentley Nursing Supplies,RC300553,551010502,Capital Programme People - Adults,C1150,Capital Grant Expenditure
01/04/2020,60041613,344,37.5,Berridge Taxis,RC503277,978 4186 62,Educational Transport Fleet,R4980,Miscellaneous Expenses
01/04/2020,60041614,385,1017,Berridge Taxis,RC503277,978 4186 62,SEN Transport,R3200,Hire of Vehicles & Plant
01/04/2020,60041614,385,1599,Berridge Taxis,RC503277,978 4186 62,SEN Transport,R3200,Hire of Vehicles & Plant
01/04/2020,60041615,387,576.24,Berridge Taxis,RC503277,978 4186 62,SEN Transport,R3200,Hire of Vehicles & Plant
01/04/2020,60041615,387,1534.8,Berridge Taxis,RC503277,978 4186 62,SEN Transport,R3200,Hire of Vehicles & Plant
01/04/2020,60041616,391,408.6,Berridge Taxis,RC503277,978 4186 62,SEN Transport,R3200,Hire of Vehicles & Plant
01/04/2020,60041616,391,556.4,Berridge Taxis,RC503277,978 4186 62,SEN Transport,R3200,Hire of Vehicles & Plant
01/04/2020,60041616,391,2536.5,Berridge Taxis,RC503277,978 4186 62,SEN Transport,R3200,Hire of Vehicles & Plant
01/04/2020,60041617,393,1868,Berridge Taxis,RC503277,978 4186 62,Home to School Transport,R3200,Hire of Vehicles & Plant
01/04/2020,60041618,394,264,Berridge Taxis,RC503277,978 4186 62,SEN Transport,R3200,Hire of Vehicles & Plant
01/04/2020,60041619,396,714,Berridge Taxis,RC503277,978 4186 62,SEN Transport,R3200,Hire of Vehicles & Plant
01/04/2020,60041619,396,1905,Berridge Taxis,RC503277,978 4186 62,SEN Transport,R3200,Hire of Vehicles & Plant
01/04/2020,60041620,398,385,Berridge Taxis,RC503277,978 4186 62,SEN Transport,R3200,Hire of Vehicles & Plant
01/04/2020,60041620,398,441,Berridge Taxis,RC503277,978 4186 62,SEN Transport,R3200,Hire of Vehicles & Plant
01/04/2020,60041621,399,373.59,Berridge Taxis,RC503277,978 4186 62,SEN Transport,R3200,Hire of Vehicles & Plant
01/04/2020,60041621,399,1175.55,Berridge Taxis,RC503277,978 4186 62,SEN Transport,R3200,Hire of Vehicles & Plant
01/04/2020,60041622,3100,238,Berridge Taxis,RC503277,978 4186 62,SEN Transport,R3200,Hire of Vehicles & Plant
01/04/2020,60041622,3100,954,Berridge Taxis,RC503277,978 4186 62,SEN Transport,R3200,Hire of Vehicles & Plant
01/04/2020,60041623,3101,651.21,Berridge Taxis,RC503277,978 4186 62,SEN Transport,R3200,Hire of Vehicles & Plant
01/04/2020,60041623,3101,1664.64,Berridge Taxis,RC503277,978 4186 62,SEN Transport,R3200,Hire of Vehicles & Plant
01/04/2020,60041624,3155,20,Berridge Taxis,RC503277,978 4186 62,Educational Transport Fleet,R4980,Miscellaneous Expenses
01/04/2020,60041625,3179,1107,Berridge Taxis,RC503277,978 4186 62,SEN Transport,R3200,Hire of Vehicles & Plant
01/04/2020,60041626,3181,486,Berridge Taxis,RC503277,978 4186 62,Post 16 Transport,R3200,Hire of Vehicles & Plant
01/04/2020,60041627,3183,478,Berridge Taxis,RC503277,978 4186 62,Post 16 Transport,R3200,Hire of Vehicles & Plant
01/04/2020,60041662,381,981,Berridge Taxis,RC503277,978 4186 62,Adult Social Services Transport,R3200,Hire of Vehicles & Plant
01/04/2020,60041663,3108,141,Berridge Taxis,RC503277,978 4186 62,SEN Transport,R3200,Hire of Vehicles & Plant
01/04/2020,60041663,3108,585,Berridge Taxis,RC503277,978 4186 62,SEN Transport,R3200,Hire of Vehicles & Plant
01/04/2020,60041664,3193,435,Berridge Taxis,RC503277,978 4186 62,SEN Transport,R3200,Hire of Vehicles & Plant
01/04/2020,60041665,385A,504,Berridge Taxis,RC503277,978 4186 62,SEN Transport,R3200,Hire of Vehicles & Plant
01/04/2020,60041666,3154,39,Berridge Taxis,RC503277,978 4186 62,Children's Centres - Revenue,R3200,Hire of Vehicles & Plant
01/04/2020,60042138,14819,28.38,Bibliographic Data Services Limited,RC508706,652431358,Libraries,R4400,Professional Fees
01/04/2020,60041571,460M00876,192.09,Biffa Municipal Ltd,RC501347,537 9116 27,Oakham Castle,R2704,Refuse Collection
01/04/2020,60041583,460M00871,1144.3,Biffa Municipal Ltd,RC501347,537 9116 27,Refuse Collection,R5002,TPP - Waste Collection
02/04/2020,60041612,460M00879,21.92,Biffa Municipal Ltd,RC501347,537 9116 27,Refuse Collection,R5002,TPP - Waste Collection
02/04/2020,60041612,460M00879,142.48,Biffa Municipal Ltd,RC501347,537 9116 27,Waste Management,R5002,TPP - Waste Collection
02/04/2020,60041612,460M00879,476.72,Biffa Municipal Ltd,RC501347,537 9116 27,Street Cleaning,R5016,TPP - Private Contractors
01/04/2020,60041601,147,137.31,Bluebird Care,RC506798,,ASC S&R Homecare OP,R4401,Fees and Charges
31/03/2020,60041602,148,2267.69,Bluebird Care,RC506798,,ASC S&R Homecare OP,R5029,TPP - Home Care
31/03/2020,60041602,148,7134.7,Bluebird Care,RC506798,,ASC S&R Homecare OP,R5029,TPP - Home Care
08/04/2020,3736777,29701/20,1106,Braceborough Hall,RC502352,,Older People,R5028,TPP - Residental Care
08/04/2020,3736778,29701/21,1004,Braceborough Hall,RC502352,,Older People,R5028,TPP - Residental Care
08/04/2020,3736779,29701/22,912,Braceborough Hall,RC502352,,Older People,R5028,TPP - Residental Care
21/04/2020,3737330,29994/18,1106,Braceborough Hall,RC502352,,Older People,R5028,TPP - Residental Care
21/04/2020,3737331,29994/19,1004,Braceborough Hall,RC502352,,Older People,R5028,TPP - Residental Care
21/04/2020,3737332,29994/20,912,Braceborough Hall,RC502352,,Older People,R5028,TPP - Residental Care
01/04/2020,60041494,6620841,153.63,Bradvale Ltd t/a Inspire Healthcare Services,RC301072,614 1656 59,Admin Buildings,R4000,Furniture & Equipment
17/04/2020,60042108,6621525,75,Bradvale Ltd t/a Inspire Healthcare Services,RC301072,614 1656 59,Admin Buildings,R4000,Furniture & Equipment
23/04/2020,3737225,Bright Sparks EYCP Grant April to June 20,3521.51,Bright Sparks EYCP Scheme,RC301071,,Children's Centres - Revenue,R4401,Fees and Charges
16/04/2020,3736929,2 Year Funding - April Claim March Adjustment - Covid,748.8,Bright Sparks Pre-School,RC501571,,2 Year Old Nursery Funding,R5020,TPP - Nursery Provision
16/04/2020,3736946,3 and 4 Year Funding - April Claim March Adjustment - Covid,2208.3,Bright Sparks Pre-School,RC501571,,3 & 4 Year Old Nursery Funding,R5020,TPP - Nursery Provision
15/04/2020,60041974,VisionsCCC.078,277.5,Brimecome-Mills Creative Development,RC508061,,Children's Centres - Revenue,R4401,Fees and Charges
01/04/2020,60041734,EM24413663M089,18.63,British Telecommunications Plc,RC501804,245 7193 48,Telecommunications,R4504,Telephone Rental
07/04/2020,60041934,PS97822270Q009NO,1397.52,British Telecommunications Plc,RC501804,245 7193 48,IT Operational Support,R4537,Computing - Internet
07/04/2020,60041935,PS04351270Q009SL,2795.04,British Telecommunications Plc,RC501804,245 7193 48,IT Operational Support,R4537,Computing - Internet
08/04/2020,3736780,29702/23,1158,Broadoak Group Of Care Homes (Grange),RC502363,,Older People,R5028,TPP - Residental Care
08/04/2020,3736781,29702/24,1158,Broadoak Group Of Care Homes (Grange),RC502363,,Older People,R5028,TPP - Residental Care
21/04/2020,3737333,29995/21,1158,Broadoak Group Of Care Homes (Grange),RC502363,,Older People,R5028,TPP - Residental Care
21/04/2020,3737334,29995/22,1158,Broadoak Group Of Care Homes (Grange),RC502363,,Older People,R5028,TPP - Residental Care
08/04/2020,3736782,29703/25,1276,Broadoak Group of Care Homes (Lodge),RC300298,,Older People,R5028,TPP - Residental Care
21/04/2020,3737335,29996/23,1276,Broadoak Group of Care Homes (Lodge),RC300298,,Older People,R5028,TPP - Residental Care
08/04/2020,3736671,Apr 2020 dripfeed - High Needs Block Allocation,449,Brooke Hill Academy Trust Ltd,RC501837,,SEN (DSG),R6300,Schools - Budget Share
16/04/2020,3736947,3 and 4 Year Funding - April Claim March Adjustment - Covid,7003.79,Brooke Hill Academy Trust Ltd,RC501837,,3 & 4 Year Old Nursery Funding,R5020,TPP - Nursery Provision
16/04/2020,3736948,3 and 4 Year Funding - April Claim COVID/Oct & Apr adjustments,5446.8,Brooke Priory School Ltd,RC501848,,3 & 4 Year Old Nursery Funding,R5020,TPP - Nursery Provision
01/04/2020,60041281,SI20322594,86.09,Brosch Direct,RC502749,245 2922 09,Reach/Reablement Service,R4201,Uniforms
01/04/2020,60041363,SI20323444,17.82,Brosch Direct,RC502749,245 2922 09,Reach/Reablement Service,R4201,Uniforms
01/04/2020,60041554,SI20324255,1229.6,Brosch Direct,RC502749,245 2922 09,Covid_19 - Social Care,R4000,Furniture & Equipment
03/04/2020,60041668,SI20324702,57.5,Brosch Direct,RC502749,245 2922 09,Covid_19 - Social Care,R4000,Furniture & Equipment
21/04/2020,60042200,SI20327855,329.4,Brosch Direct,RC502749,245 2922 09,Management of Community Support Services,R4000,Furniture & Equipment
01/04/2020,60041732,36227,162.64,C & M Tractors Ltd,RC502059,119 5252 73,Covid_19,R4000,Furniture & Equipment
04/04/2020,60041696,1783,157,C3 Creative,RC502115,704 8431 47,Transport Management,R4309,Books
01/04/2020,60041727,1781,250,C3 Creative,RC502115,704 8431 47,Communication,R4401,Fees and Charges
01/04/2020,60041727,1781,1500,C3 Creative,RC502115,704 8431 47,Safety Partnership Arrangement,R4401,Fees and Charges
09/04/2020,60041852,1784,436,C3 Creative,RC502115,704 8431 47,Covid_19,R4400,Professional Fees
16/04/2020,60042065,CIL PARISH PAYMENT APRIL 2020,148.72,Caldecott Parish Council,RC502170,,S106 Contributions,R5017,TPP - Other
01/04/2020,60041438,66181285,1244,Cambs Community Services NHS Trust,RC508575,654439952,Sexual Health,R5017,TPP - Other
15/04/2020,60042147,66181492,1079,Cambs Community Services NHS Trust,RC508575,654439952,Sexual Health,R5017,TPP - Other
01/04/2020,60041855,402180935,4662.84,Canon (UK) Ltd,RC301046,523 7971 28,Printers,R4300,Printing & Photocopying
01/04/2020,60041296,6003971116,100750,Capita Business Services Ltd,RC500260,618 1841 40,IT Operational Support,R4534,Computing - Maintenance Agreements
01/04/2020,60042282,6003958209,8192.18,Capita Business Services Ltd,RC500260,618 1841 40,IT Operational Support,R4531,Computing - Software
26/03/2020,60041325,MILEAGE MAR 2020,24.3,Redacted Personal Data,RC301274,,Reach/Reablement Service,R1450,Other Employee Expenses
02/04/2020,3736530,Redacted Personal Data,295.62,Redacted Personal Data,RC300308,,Placements,R5017,TPP - Other
08/04/2020,3736750,Redacted Personal Data,295.62,Redacted Personal Data,RC300308,,Placements,R5017,TPP - Other
16/04/2020,3737207,Redacted Personal Data,295.62,Redacted Personal Data,RC300308,,Placements,R5017,TPP - Other
23/04/2020,3737301,Redacted Personal Data,295.62,Redacted Personal Data,RC300308,,Placements,R5017,TPP - Other
20/04/2020,60042136,CP/RCC/004,375,Carlill Photography,RC301074,,Communication,R4515,Publicity
02/04/2020,3736453,Redacted Personal Data,57.9,Redacted Personal Data,RC301278,,Care Leavers,R6293,Asylum Seekers Allowance
08/04/2020,3736682,Redacted Personal Data,57.9,Redacted Personal Data,RC301278,,Care Leavers,R6293,Asylum Seekers Allowance
16/04/2020,3737216,Redacted Personal Data,57.9,Redacted Personal Data,RC301278,,Care Leavers,R6293,Asylum Seekers Allowance
23/04/2020,3737309,Redacted Personal Data,57.9,Redacted Personal Data,RC301278,,Care Leavers,R6293,Asylum Seekers Allowance
01/04/2020,60041650,TI010547,2785.5,Carter Brown - The Expert Service Ltd,RC300916,281653589,Children Looked After,R4400,Professional Fees
01/04/2020,60041857,27484,8462.51,Casepak,RC507209,115128407,Waste Management,R5021,TPP - Waste Disposal
16/04/2020,3736930,2 Year Funding - April Claim March Adjustment - Covid,187.2,Casterton Childcare Centre,RC500449,,2 Year Old Nursery Funding,R5020,TPP - Nursery Provision
16/04/2020,3736949,3 and 4 Year Funding - April Claim March Adjustment - Covid,12158.4,Casterton Childcare Centre,RC500449,,3 & 4 Year Old Nursery Funding,R5020,TPP - Nursery Provision
08/04/2020,3736664,Apr 2020 dripfeed - High Needs Block Allocation,3588,Casterton College,RC502333,,SEN (DSG),R6300,Schools - Budget Share
14/04/2020,3737059,29798/55,805,Redacted Personal Data,RC301415,,ASC S&R DPs OP,R6280,Direct Payments
08/04/2020,3736787,29706/30,1106,Cedars Healthcare Ltd.,RC509335,,Older People,R5034,TPP - Nursing Care
21/04/2020,3737341,29998/29,1106,Cedars Healthcare Ltd.,RC509335,,Older People,R5034,TPP - Nursing Care
29/04/2020,60042316,EMPLOYER INCENTIVE - APRIL 2020,500,Central Garage (Uppingham) Ltd T/A Sycamore Harley-Davidson,RC300921,344 2421 84,New Apprenticeships,R4401,Fees and Charges
01/04/2020,60041528,23904,10200,Centrebus Ltd,RC500615,834 8659 85,Public Transport,R5017,TPP - Other
01/04/2020,60041529,23905,10728.32,Centrebus Ltd,RC500615,834 8659 85,Public Transport,R5017,TPP - Other
01/04/2020,60041530,23907,10642.64,Centrebus Ltd,RC500615,834 8659 85,Public Transport,R5017,TPP - Other
01/04/2020,60041531,23908,4636.23,Centrebus Ltd,RC500615,834 8659 85,Public Transport,R5017,TPP - Other
01/04/2020,60041591,23906,3086.26,Centrebus Ltd,RC500615,834 8659 85,Public Transport,R5017,TPP - Other
01/04/2020,60041592,23909,1722.64,Centrebus Ltd,RC500615,834 8659 85,Public Transport,R5017,TPP - Other
01/04/2020,60041609,23903,14120,Centrebus Ltd,RC500615,834 8659 85,Concessionary Travel,R6270,Concessionary fares
03/04/2020,60041610,23946,6720,Centrebus Ltd,RC500615,834 8659 85,Post 16 Transport,R3207,Transport Contract
03/04/2020,60041610,23946,8645,Centrebus Ltd,RC500615,834 8659 85,Home to School Transport,R3207,Transport Contract
01/04/2020,60041631,39215,8799.74,CFH Docmail Ltd,RC301223,720978223,Covid_19,R4401,Fees and Charges
01/04/2020,60042156,38620,1334.16,CFH Docmail Ltd,RC301223,720978223,Revenues,R4401,Fees and Charges
01/04/2020,60042156,38620,3503.04,CFH Docmail Ltd,RC301223,720978223,Revenues,R4401,Fees and Charges
01/04/2020,60042174,KS - W/E 06/03/2020,1480,Champion Contract Services Ltd,RC300943,947 0213 35,Local Plan Production,R1100,Agency Staff
06/04/2020,60041728,3062  MAR 2020,0.69,Charitable Giving Client,RC505683,,Corporate Financial Expenses,R4401,Fees and Charges
14/04/2020,3737027,29798/23,1610,Redacted Personal Data,RC300365,,ASC S&R DPs LD,R6280,Direct Payments
14/04/2020,3737118,29798/114,276,Redacted Personal Data,RC300602,,Carer Support,R6280,Direct Payments
01/04/2020,60041495,INV-1893,26967.3,Chartwell Trust Care,RC301454,,Disabled Children,R5028,TPP - Residental Care
30/04/2020,60042313,INV-1944,27866.21,Chartwell Trust Care,RC301454,,Disabled Children,R5028,TPP - Residental Care
08/04/2020,3736788,29688/31,1002,Chater Lodge Care Home,RC502286,,Older People,R5028,TPP - Residental Care
08/04/2020,3736789,29688/32,1200,Chater Lodge Care Home,RC502286,,Older People,R5028,TPP - Residental Care
08/04/2020,3736790,29688/33,1400,Chater Lodge Care Home,RC502286,,Older People,R5028,TPP - Residental Care
08/04/2020,3736791,29688/34,1002,Chater Lodge Care Home,RC502286,,Older People,R5028,TPP - Residental Care
08/04/2020,3736792,29688/35,1002,Chater Lodge Care Home,RC502286,,Older People,R5028,TPP - Residental Care
08/04/2020,3736793,29688/36,1002,Chater Lodge Care Home,RC502286,,Older People,R5028,TPP - Residental Care
08/04/2020,3736794,29687/37,469,Chater Lodge Care Home,RC502286,,Older People,R5028,TPP - Residental Care
08/04/2020,3736795,29688/38,938,Chater Lodge Care Home,RC502286,,Older People,R5028,TPP - Residental Care
08/04/2020,3736796,29688/39,1002,Chater Lodge Care Home,RC502286,,Older People,R5028,TPP - Residental Care
08/04/2020,3736797,29688/40,2200,Chater Lodge Care Home,RC502286,,Older People,R5028,TPP - Residental Care
08/04/2020,3736798,29688/41,1002,Chater Lodge Care Home,RC502286,,Older People,R5028,TPP - Residental Care
21/04/2020,3737342,29988/30,365,Chater Lodge Care Home,RC502286,,Older People,R5028,TPP - Residental Care
21/04/2020,3737342,29988/30,511,Chater Lodge Care Home,RC502286,,Older People,R5028,TPP - Residental Care
21/04/2020,3737342,29988/30,1022,Chater Lodge Care Home,RC502286,,Older People,R5028,TPP - Residental Care
21/04/2020,3737343,29988/31,1200,Chater Lodge Care Home,RC502286,,Older People,R5028,TPP - Residental Care
21/04/2020,3737344,29988/32,1400,Chater Lodge Care Home,RC502286,,Older People,R5028,TPP - Residental Care
21/04/2020,3737345,29988/33,365,Chater Lodge Care Home,RC502286,,Older People,R5028,TPP - Residental Care
21/04/2020,3737345,29988/33,511,Chater Lodge Care Home,RC502286,,Older People,R5028,TPP - Residental Care
21/04/2020,3737345,29988/33,1022,Chater Lodge Care Home,RC502286,,Older People,R5028,TPP - Residental Care
21/04/2020,3737346,29988/34,365,Chater Lodge Care Home,RC502286,,Older People,R5028,TPP - Residental Care
21/04/2020,3737346,29988/34,511,Chater Lodge Care Home,RC502286,,Older People,R5028,TPP - Residental Care
21/04/2020,3737346,29988/34,1022,Chater Lodge Care Home,RC502286,,Older People,R5028,TPP - Residental Care
21/04/2020,3737347,29988/35,365,Chater Lodge Care Home,RC502286,,Older People,R5028,TPP - Residental Care
21/04/2020,3737347,29988/35,511,Chater Lodge Care Home,RC502286,,Older People,R5028,TPP - Residental Care
21/04/2020,3737347,29988/35,1022,Chater Lodge Care Home,RC502286,,Older People,R5028,TPP - Residental Care
21/04/2020,3737348,29988/36,802.14,Chater Lodge Care Home,RC502286,,Older People,R5028,TPP - Residental Care
21/04/2020,3737348,29988/36,1123,Chater Lodge Care Home,RC502286,,Older People,R5028,TPP - Residental Care
21/04/2020,3737348,29988/36,2246,Chater Lodge Care Home,RC502286,,Older People,R5028,TPP - Residental Care
21/04/2020,3737349,29988/37,341.43,Chater Lodge Care Home,RC502286,,Older People,R5028,TPP - Residental Care
21/04/2020,3737349,29988/37,478,Chater Lodge Care Home,RC502286,,Older People,R5028,TPP - Residental Care
21/04/2020,3737349,29988/37,956,Chater Lodge Care Home,RC502286,,Older People,R5028,TPP - Residental Care
21/04/2020,3737350,29988/38,365,Chater Lodge Care Home,RC502286,,Older People,R5028,TPP - Residental Care
21/04/2020,3737350,29988/38,511,Chater Lodge Care Home,RC502286,,Older People,R5028,TPP - Residental Care
21/04/2020,3737350,29988/38,1022,Chater Lodge Care Home,RC502286,,Older People,R5028,TPP - Residental Care
21/04/2020,3737351,29988/39,2200,Chater Lodge Care Home,RC502286,,Older People,R5028,TPP - Residental Care
21/04/2020,3737352,29988/40,365,Chater Lodge Care Home,RC502286,,Older People,R5028,TPP - Residental Care
21/04/2020,3737352,29988/40,511,Chater Lodge Care Home,RC502286,,Older People,R5028,TPP - Residental Care
21/04/2020,3737352,29988/40,1022,Chater Lodge Care Home,RC502286,,Older People,R5028,TPP - Residental Care
08/04/2020,3736799,29705/42,1919.5,Chestnuts (Arnesby) Limited,RC506807,,Learning Disability,R5028,TPP - Residental Care
08/04/2020,3736800,29705/43,2387.5,Chestnuts (Arnesby) Limited,RC506807,,Learning Disability,R5028,TPP - Residental Care
21/04/2020,3737353,29997/41,1919.5,Chestnuts (Arnesby) Limited,RC506807,,Learning Disability,R5028,TPP - Residental Care
21/04/2020,3737354,29997/42,2387.5,Chestnuts (Arnesby) Limited,RC506807,,Learning Disability,R5028,TPP - Residental Care
01/04/2020,60041883,6186 - CF33043,800,Children & Families Across Borders (CFAB),RC301448,,Family Support Services,R4400,Professional Fees
08/04/2020,3736882,29723/125,2126.62,Choice Ltd T/A Stoke Lodge,RC300621,,Mental Health,R5028,TPP - Residental Care
21/04/2020,3737434,30013/123,2126.62,Choice Ltd T/A Stoke Lodge,RC300621,,Mental Health,R5028,TPP - Residental Care
16/04/2020,3736941,Redacted Personal Data,561.6,Redacted Personal Data,RC507202,,2 Year Old Nursery Funding,R5020,TPP - Nursery Provision
16/04/2020,3736974,Redacted Personal Data,10144.41,Redacted Personal Data,RC507202,,3 & 4 Year Old Nursery Funding,R5020,TPP - Nursery Provision
06/04/2020,60041716,5284685,220,CIPFA,RC501015,627 3907 25,"Training, Confs & Seminars",R4405,Training Charges
01/04/2020,60041436,M/RB072750,90,Civica UK Ltd,RC501070,391 1710 65,IT Operational Support,R4531,Computing - Software
06/04/2020,60041698,C/RB194952,2280,Civica UK Ltd,RC501070,391 1710 65,IT Operational Support,R4531,Computing - Software
06/04/2020,60041699,C/RB194953,7500,Civica UK Ltd,RC501070,391 1710 65,Revenues,R4531,Computing - Software
16/04/2020,60042072,C/RB195428,7250,Civica UK Ltd,RC501070,391 1710 65,Benefit Processing,R4531,Computing - Software
17/04/2020,60042110,M/MG073185,13621,Civica UK Ltd,RC501070,391 1710 65,IT Operational Support,R4534,Computing - Maintenance Agreements
01/04/2020,60041491,SI020746,40,Claranet Limited,RC500963,908 7593 83,IT Operational Support,R4537,Computing - Internet
01/04/2020,60041585,MDN231801-67,1192.92,Claranet Limited,RC500963,908 7593 83,IT Operational Support,R4537,Computing - Internet
01/04/2020,60041586,MDN240903-51,255,Claranet Limited,RC500963,908 7593 83,CCTV,R4537,Computing - Internet
08/04/2020,3736909,29732/152,1228,Claregrange Ltd,RC300224,,Older People,R5034,TPP - Nursing Care
21/04/2020,3737461,30009/150,1228,Claregrange Ltd,RC300224,,Older People,R5034,TPP - Nursing Care
16/04/2020,3736961,3 and 4 Year Funding - April Claim March Adjustment - Covid,3021.75,Climbing High Nurseries Ltd - The Day Nursery At Oakham,RC300926,,3 & 4 Year Old Nursery Funding,R5020,TPP - Nursery Provision
01/04/2020,60041733,R200331-71,577.4,Cobalt Telephone Technologies Ltd,RC508614,636 1371 49,Parking,R5017,TPP - Other
01/04/2020,60041497,SI1273416,27.5,Collaborate and Innovate Ltd t/a Cosy,RC301436,107483420,Children's Centres - Revenue,R4401,Fees and Charges
01/04/2020,60041497,SI1273416,227.85,Collaborate and Innovate Ltd t/a Cosy,RC301436,107483420,Children's Centres - Revenue,R4401,Fees and Charges
01/04/2020,60041498,SI1273976,67.99,Collaborate and Innovate Ltd t/a Cosy,RC301436,107483420,Children's Centres - Revenue,R4401,Fees and Charges
01/04/2020,60041499,SI1274035,2.49,Collaborate and Innovate Ltd t/a Cosy,RC301436,107483420,Children's Centres - Revenue,R4401,Fees and Charges
01/04/2020,60041581,21252,2937.6,Compass Fostering Central Limited,RC501320,153 1739 18,Placements,R5017,TPP - Other
01/04/2020,60041656,21039,829.99,Compass Fostering Central Limited,RC501320,153 1739 18,Placements,R5017,TPP - Other
01/04/2020,60041657,21040,828.76,Compass Fostering Central Limited,RC501320,153 1739 18,Placements,R5017,TPP - Other
06/04/2020,60041724,C-0003048566,123.63,Computershare Voucher Services,RC502015,720707460,Corporate Financial Expenses,R4401,Fees and Charges
30/04/2020,60042101,1491855,25,Cooler Aid Ltd,RC501333,599 5176 72,Community Learning,R4000,Furniture & Equipment
01/04/2020,60041669,20FM02446MEM,297,CoramBaaf Ltd,RC500071,974 9745 51,Placements,R4701,Subscriptions
01/04/2020,60041669,20FM02446MEM,345.89,CoramBaaf Ltd,RC500071,974 9745 51,Placements,R4701,Subscriptions
31/03/2020,60041463,RCC 03/20,450,Corby Jet Carz,RC508056,,SEN Transport,R3200,Hire of Vehicles & Plant
31/03/2020,60041463,RCC 03/20,780,Corby Jet Carz,RC508056,,SEN Transport,R3200,Hire of Vehicles & Plant
31/03/2020,60041464,RCMar2020,168,Corby Jet Carz,RC508056,,SEN Transport,R3200,Hire of Vehicles & Plant
01/04/2020,60041517,INV-0323,1270.5,Corby Star Cars Ltd,RC501949,307243038,Home to School Transport,R3207,Transport Contract
01/04/2020,60041518,INV-0324,252,Corby Star Cars Ltd,RC501949,307243038,SEN Transport,R3200,Hire of Vehicles & Plant
01/04/2020,60041519,INV-0325,2200,Corby Star Cars Ltd,RC501949,307243038,SEN Transport,R3200,Hire of Vehicles & Plant
01/04/2020,60041520,INV-0326,780.53,Corby Star Cars Ltd,RC501949,307243038,SEN Transport,R3200,Hire of Vehicles & Plant
01/04/2020,60041521,INV-0327,885,Corby Star Cars Ltd,RC501949,307243038,SEN Transport,R3200,Hire of Vehicles & Plant
01/04/2020,60041522,INV-0329,488.6,Corby Star Cars Ltd,RC501949,307243038,Home to School Transport,R3207,Transport Contract
01/04/2020,60041523,INV-0330,71.4,Corby Star Cars Ltd,RC501949,307243038,SEN Transport,R3200,Hire of Vehicles & Plant
01/04/2020,60041524,INV-0331,640.22,Corby Star Cars Ltd,RC501949,307243038,SEN Transport,R3200,Hire of Vehicles & Plant
01/04/2020,60041525,INV-0332,342.79,Corby Star Cars Ltd,RC501949,307243038,SEN Transport,R3200,Hire of Vehicles & Plant
01/04/2020,60041588,INV-0328,408,Corby Star Cars Ltd,RC501949,307243038,SEN Transport,R3200,Hire of Vehicles & Plant
08/04/2020,3736841,29721/84,994.94,Craegmoor Mar Lodge Priory,RC502624,,Learning Disability,R5028,TPP - Residental Care
21/04/2020,3737396,30015/85,994.94,Craegmoor Mar Lodge Priory,RC502624,,Learning Disability,R5028,TPP - Residental Care
08/04/2020,3736802,29628/45,152,Creative Workshops Ltd,RC300226,,ASC S&R Daycare LD,R5030,TPP - Daycare
08/04/2020,3736803,29628/46,76,Creative Workshops Ltd,RC300226,,ASC S&R Daycare LD,R5030,TPP - Daycare
08/04/2020,3736804,29628/47,76,Creative Workshops Ltd,RC300226,,ASC S&R Daycare LD,R5030,TPP - Daycare
21/04/2020,3737356,29971/44,152,Creative Workshops Ltd,RC300226,,ASC S&R Daycare LD,R5030,TPP - Daycare
21/04/2020,3737357,29971/45,76,Creative Workshops Ltd,RC300226,,ASC S&R Daycare LD,R5030,TPP - Daycare
21/04/2020,3737358,29971/46,76,Creative Workshops Ltd,RC300226,,ASC S&R Daycare LD,R5030,TPP - Daycare
08/04/2020,3736898,29733/141,5892.8,Cristalcare Ltd,RC300259,,Learning Disability,R5028,TPP - Residental Care
21/04/2020,3737449,30010/138,5892.8,Cristalcare Ltd,RC300259,,Learning Disability,R5028,TPP - Residental Care
31/03/2020,60041671,SN11 MAR 2020,1180,D C Taxis,RC509186,,Children Looked After Transport,R3200,Hire of Vehicles & Plant
31/03/2020,60041672,SN15 MAR 2020,525,D C Taxis,RC509186,,SEN Transport,R3200,Hire of Vehicles & Plant
21/04/2020,60042158,25927,680,DAB Lift & Electrical Services Ltd,RC300100,743 6553 21,Central Maintenance,R2004,R & M - Programmed
01/04/2020,60041634,9961666,2692.63,Daisy Communications Ltd,RC507045,722 4713 55,Telecommunications,R4505,Telephone Call charges
01/04/2020,60041570,89305,92.5,Datashredders Ltd,RC300141,741 0093 71,Admin Buildings,R4000,Furniture & Equipment
02/04/2020,3736489,Redacted Personal Data,206,Redacted Personal Data,RC301419,,Placements,R5017,TPP - Other
08/04/2020,3736712,Redacted Personal Data,206,Redacted Personal Data,RC301419,,Placements,R5017,TPP - Other
16/04/2020,3737168,Redacted Personal Data,206,Redacted Personal Data,RC301419,,Placements,R5017,TPP - Other
23/04/2020,3737262,Redacted Personal Data,206,Redacted Personal Data,RC301419,,Placements,R5017,TPP - Other
23/04/2020,3737235,Redacted Personal Data,1275,DDM Lettings,RC300763,737 6768 80,Unaccompanied Asylum Seekers - Over 18,R4900,Accomodation Costs
20/04/2020,60042141,152617,270,Deaf Connect,RC509483,,Targeted Intervention Service,R4400,Professional Fees
16/04/2020,3736964,Redacted Personal Data,628.32,Redacted Personal Data,RC509420,,3 & 4 Year Old Nursery Funding,R5020,TPP - Nursery Provision
16/04/2020,3736975,Redacted Personal Data,507.45,Redacted Personal Data,RC508305,,3 & 4 Year Old Nursery Funding,R5020,TPP - Nursery Provision
01/04/2020,60041532,Mar-20,884.86,Delaine Buses Ltd,RC501419,119 2077 80,Concessionary Travel,R6270,Concessionary fares
01/04/2020,60041536,1194,2000,Dementia Adventure Trust,RC300136,156 5832 87,Other Public Health Services,R5001,TPP - Grants
16/04/2020,3737214,Rent Payment for Winta-YA38350,850,Dexters London Ltd,RC300942,,Care Leavers,R4900,Accomodation Costs
02/04/2020,3736484,Redacted Personal Data,165,Redacted Personal Data,RC301040,,Placements,R5017,TPP - Other
02/04/2020,3736485,Redacted Personal Data,165,Redacted Personal Data,RC301040,,Placements,R5017,TPP - Other
02/04/2020,3736515,Redacted Personal Data,124.74,Redacted Personal Data,RC301040,,Placements,R5017,TPP - Other
02/04/2020,3736516,Redacted Personal Data,93.56,Redacted Personal Data,RC301040,,Placements,R5017,TPP - Other
08/04/2020,3736709,Redacted Personal Data,165,Redacted Personal Data,RC301040,,Placements,R5017,TPP - Other
08/04/2020,3736710,Redacted Personal Data,165,Redacted Personal Data,RC301040,,Placements,R5017,TPP - Other
08/04/2020,3736735,Redacted Personal Data,124.74,Redacted Personal Data,RC301040,,Placements,R5017,TPP - Other
08/04/2020,3736736,Redacted Personal Data,93.56,Redacted Personal Data,RC301040,,Placements,R5017,TPP - Other
16/04/2020,3737165,Redacted Personal Data,165,Redacted Personal Data,RC301040,,Placements,R5017,TPP - Other
16/04/2020,3737166,Redacted Personal Data,165,Redacted Personal Data,RC301040,,Placements,R5017,TPP - Other
16/04/2020,3737192,Redacted Personal Data,124.74,Redacted Personal Data,RC301040,,Placements,R5017,TPP - Other
16/04/2020,3737193,Redacted Personal Data,93.56,Redacted Personal Data,RC301040,,Placements,R5017,TPP - Other
23/04/2020,3737259,Redacted Personal Data,165,Redacted Personal Data,RC301040,,Placements,R5017,TPP - Other
23/04/2020,3737260,Redacted Personal Data,165,Redacted Personal Data,RC301040,,Placements,R5017,TPP - Other
23/04/2020,3737286,Redacted Personal Data,124.74,Redacted Personal Data,RC301040,,Placements,R5017,TPP - Other
23/04/2020,3737287,Redacted Personal Data,93.56,Redacted Personal Data,RC301040,,Placements,R5017,TPP - Other
16/04/2020,3736973,Redacted Personal Data,981.92,Redacted Personal Data,RC509223,,3 & 4 Year Old Nursery Funding,R5020,TPP - Nursery Provision
14/04/2020,3736981,29797/1,9,Disability Direct,RC503281,,ASC S&R DPs PD,R6280,Direct Payments
14/04/2020,3736981,29797/1,138,Disability Direct,RC503281,,ASC S&R DPs PD,R6280,Direct Payments
14/04/2020,3736982,29797/2,9,Disability Direct,RC503281,,ASC S&R DPs MH,R6280,Direct Payments
14/04/2020,3736982,29797/2,184,Disability Direct,RC503281,,ASC S&R DPs MH,R6280,Direct Payments
14/04/2020,3736983,29797/3,9,Disability Direct,RC503281,,Carer Support,R6280,Direct Payments
14/04/2020,3736983,29797/3,230,Disability Direct,RC503281,,Carer Support,R6280,Direct Payments
14/04/2020,3736984,29797/4,9,Disability Direct,RC503281,,ASC S&R DPs LD,R6280,Direct Payments
14/04/2020,3736984,29797/4,129.29,Disability Direct,RC503281,,ASC S&R DPs LD,R6280,Direct Payments
14/04/2020,3736984,29797/4,258.58,Disability Direct,RC503281,,ASC S&R DPs LD,R6280,Direct Payments
14/04/2020,3736984,29797/4,517.16,Disability Direct,RC503281,,ASC S&R DPs LD,R6280,Direct Payments
14/04/2020,3736984,29797/4,704.44,Disability Direct,RC503281,,ASC S&R DPs LD,R6280,Direct Payments
14/04/2020,3736984,29797/4,1408.88,Disability Direct,RC503281,,ASC S&R DPs LD,R6280,Direct Payments
14/04/2020,3736984,29797/4,2817.76,Disability Direct,RC503281,,ASC S&R DPs LD,R6280,Direct Payments
14/04/2020,3736985,29797/5,9,Disability Direct,RC503281,,ASC S&R DPs LD,R6280,Direct Payments
14/04/2020,3736985,29797/5,472.64,Disability Direct,RC503281,,ASC S&R DPs LD,R6280,Direct Payments
14/04/2020,3736985,29797/5,3499.2,Disability Direct,RC503281,,ASC S&R DPs LD,R6280,Direct Payments
14/04/2020,3736986,29797/6,9,Disability Direct,RC503281,,ASC S&R DPs LD,R6280,Direct Payments
14/04/2020,3736986,29797/6,383.08,Disability Direct,RC503281,,ASC S&R DPs LD,R6280,Direct Payments
14/04/2020,3736987,29797/7,15.2,Disability Direct,RC503281,,ASC S&R DPs OP,R6280,Direct Payments
14/04/2020,3736987,29797/7,600,Disability Direct,RC503281,,ASC S&R DPs OP,R6280,Direct Payments
14/04/2020,3736988,29797/8,9,Disability Direct,RC503281,,ASC S&R DPs MH,R6280,Direct Payments
14/04/2020,3736988,29797/8,69,Disability Direct,RC503281,,ASC S&R DPs MH,R6280,Direct Payments
14/04/2020,3736989,29797/9,9,Disability Direct,RC503281,,ASC S&R DPs PD,R6280,Direct Payments
14/04/2020,3736989,29797/9,345,Disability Direct,RC503281,,ASC S&R DPs PD,R6280,Direct Payments
14/04/2020,3736989,29797/9,1207.5,Disability Direct,RC503281,,ASC S&R DPs PD,R6280,Direct Payments
14/04/2020,3736989,29797/9,1380,Disability Direct,RC503281,,ASC S&R DPs PD,R6280,Direct Payments
14/04/2020,3736989,29797/9,1380,Disability Direct,RC503281,,ASC S&R DPs PD,R6280,Direct Payments
14/04/2020,3736990,29797/10,9,Disability Direct,RC503281,,Carer Support,R6280,Direct Payments
14/04/2020,3736990,29797/10,230,Disability Direct,RC503281,,Carer Support,R6280,Direct Payments
14/04/2020,3736991,29797/11,138,Disability Direct,RC503281,,Carer Support,R6280,Direct Payments
14/04/2020,3736992,29797/12,9,Disability Direct,RC503281,,ASC S&R DPs OP,R6280,Direct Payments
14/04/2020,3736992,29797/12,414,Disability Direct,RC503281,,ASC S&R DPs OP,R6280,Direct Payments
14/04/2020,3736993,29797/13,22.88,Disability Direct,RC503281,,ASC S&R DPs PD,R6280,Direct Payments
14/04/2020,3736993,29797/13,253,Disability Direct,RC503281,,ASC S&R DPs PD,R6280,Direct Payments
14/04/2020,3736993,29797/13,346.16,Disability Direct,RC503281,,ASC S&R DPs PD,R6280,Direct Payments
14/04/2020,3736993,29797/13,391,Disability Direct,RC503281,,ASC S&R DPs PD,R6280,Direct Payments
14/04/2020,3736993,29797/13,4692,Disability Direct,RC503281,,ASC S&R DPs PD,R6280,Direct Payments
14/04/2020,3736994,29797/14,9,Disability Direct,RC503281,,ASC S&R DPs OP,R6280,Direct Payments
14/04/2020,3736994,29797/14,138,Disability Direct,RC503281,,ASC S&R DPs OP,R6280,Direct Payments
14/04/2020,3736994,29797/14,667,Disability Direct,RC503281,,ASC S&R DPs OP,R6280,Direct Payments
14/04/2020,3736995,29797/15,9,Disability Direct,RC503281,,ASC S&R DPs MH,R6280,Direct Payments
14/04/2020,3736995,29797/15,112,Disability Direct,RC503281,,ASC S&R DPs MH,R6280,Direct Payments
14/04/2020,3736995,29797/15,168,Disability Direct,RC503281,,ASC S&R DPs MH,R6280,Direct Payments
14/04/2020,3736996,29797/16,9,Disability Direct,RC503281,,ASC S&R DPs LD,R6280,Direct Payments
14/04/2020,3736996,29797/16,96.06,Disability Direct,RC503281,,ASC S&R DPs LD,R6280,Direct Payments
14/04/2020,3736996,29797/16,129.29,Disability Direct,RC503281,,ASC S&R DPs LD,R6280,Direct Payments
14/04/2020,3736996,29797/16,192.12,Disability Direct,RC503281,,ASC S&R DPs LD,R6280,Direct Payments
14/04/2020,3736996,29797/16,258.58,Disability Direct,RC503281,,ASC S&R DPs LD,R6280,Direct Payments
14/04/2020,3736996,29797/16,384.24,Disability Direct,RC503281,,ASC S&R DPs LD,R6280,Direct Payments
14/04/2020,3736996,29797/16,420.26,Disability Direct,RC503281,,ASC S&R DPs LD,R6280,Direct Payments
14/04/2020,3736996,29797/16,517.16,Disability Direct,RC503281,,ASC S&R DPs LD,R6280,Direct Payments
14/04/2020,3736996,29797/16,840.53,Disability Direct,RC503281,,ASC S&R DPs LD,R6280,Direct Payments
14/04/2020,3736996,29797/16,1681.05,Disability Direct,RC503281,,ASC S&R DPs LD,R6280,Direct Payments
14/04/2020,3736997,29797/17,92,Disability Direct,RC503281,,ASC S&R DPs LD,R6280,Direct Payments
14/04/2020,3736998,29797/18,9,Disability Direct,RC503281,,ASC S&R DPs MH,R6280,Direct Payments
14/04/2020,3736998,29797/18,69,Disability Direct,RC503281,,ASC S&R DPs MH,R6280,Direct Payments
14/04/2020,3736999,29797/19,9,Disability Direct,RC503281,,ASC S&R DPs MH,R6280,Direct Payments
14/04/2020,3736999,29797/19,56,Disability Direct,RC503281,,ASC S&R DPs MH,R6280,Direct Payments
14/04/2020,3736999,29797/19,234,Disability Direct,RC503281,,ASC S&R DPs MH,R6280,Direct Payments
14/04/2020,3737000,29797/20,9,Disability Direct,RC503281,,ASC S&R DPs PD,R6280,Direct Payments
14/04/2020,3737000,29797/20,92,Disability Direct,RC503281,,ASC S&R DPs PD,R6280,Direct Payments
14/04/2020,3737000,29797/20,276,Disability Direct,RC503281,,ASC S&R DPs PD,R6280,Direct Payments
14/04/2020,3737001,29797/21,9,Disability Direct,RC503281,,ASC S&R DPs OP,R6280,Direct Payments
14/04/2020,3737001,29797/21,414,Disability Direct,RC503281,,ASC S&R DPs OP,R6280,Direct Payments
14/04/2020,3737002,29797/22,9,Disability Direct,RC503281,,ASC S&R DPs LD,R6280,Direct Payments
14/04/2020,3737002,29797/22,299,Disability Direct,RC503281,,ASC S&R DPs LD,R6280,Direct Payments
14/04/2020,3737003,29797/23,9,Disability Direct,RC503281,,Carer Support,R6280,Direct Payments
14/04/2020,3737003,29797/23,115,Disability Direct,RC503281,,Carer Support,R6280,Direct Payments
14/04/2020,3737004,29797/24,9,Disability Direct,RC503281,,ASC S&R DPs LD,R6280,Direct Payments
14/04/2020,3737004,29797/24,230,Disability Direct,RC503281,,ASC S&R DPs LD,R6280,Direct Payments
14/04/2020,3737109,29798/105,138,Redacted Personal Data,RC300597,,Carer Support,R6280,Direct Payments
01/04/2020,60041637,82647022,100.19,Dx Network Services Ltd,RC501467,849 7413 85,Libraries,R4503,Postage
16/04/2020,60042062,98407,1782,E.on Energy Solutions Ltd,RC501486,559097889,Parking,R5017,TPP - Other
01/04/2020,60040169,25628973,2.91,Ebuyer (UK) Ltd,RC504014,836 5923 00,Pupil Premium Plus,R4531,Computing - Software
01/04/2020,60040169,25628973,94.99,Ebuyer (UK) Ltd,RC504014,836 5923 00,Pupil Premium Plus,R4531,Computing - Software
01/04/2020,60040536,25653842,2.91,Ebuyer (UK) Ltd,RC504014,836 5923 00,ASC P&S Staffing,R4530,Computing - Hardware
01/04/2020,60040536,25653842,203.47,Ebuyer (UK) Ltd,RC504014,836 5923 00,ASC P&S Staffing,R4530,Computing - Hardware
01/04/2020,60041645,1244528,1075.29,Eden Brown Ltd,RC300857,743724037,Property Services,R1100,Agency Staff
01/04/2020,60041646,1244529,32.4,Eden Brown Ltd,RC300857,743724037,Property Services,R1100,Agency Staff
25/04/2020,60042250,314229227,15.5,Eden Springs UK Ltd,RC300505,232 1604 11,The King Centre,R2004,R & M - Programmed
04/04/2020,60041844,6795510000/000007468947,25.29,EDF Energy Customers Plc,RC501509,523 0412 02,Oakham Enterprise Park,R2100,Electricity
04/04/2020,60041844,6795510000/000007468947,13542.46,EDF Energy Customers Plc,RC501509,523 0412 02,Oakham Enterprise Park,R2100,Electricity
06/04/2020,60041851,6795510000/000007471336,8239.45,EDF Energy Customers Plc,RC501509,523 0412 02,Oakham Enterprise Park,R2100,Electricity
08/04/2020,60042001,7636210000 / 000007486275,9819.31,EDF Energy Customers Plc,RC501509,523 0412 02,Street Lighting,R2100,Electricity
08/04/2020,60042002,6795510000 / 000007494150,8239.45,EDF Energy Customers Plc,RC501509,523 0412 02,Oakham Enterprise Park,R2100,Electricity
09/04/2020,60042007,4556210000/000007508610,1129.54,EDF Energy Customers Plc,RC501509,523 0412 02,Safety,R2100,Electricity
08/04/2020,3736665,Apr 2020 dripfeed - High Needs Block Allocation,2203,Edith Weston Academy,RC509059,,SEN (DSG),R6300,Schools - Budget Share
16/04/2020,60042066,CIL PARISH PAYMENT APRIL 2020,4923.53,Edith Weston Parish Council,RC501513,,S106 Contributions,R5017,TPP - Other
01/04/2020,60041819,98880229 - 01285554342,3781.82,EE Limited,RC508788,771592016,Mobile Phones,R4507,Mobile Telephones
01/04/2020,60041820,98836882 - 01285551280,516.99,EE Limited,RC508788,771592016,Mobile Phones,R4507,Mobile Telephones
29/04/2020,60042342,960293240 inv,175,EE Limited,RC508788,771592016,Mobile Phones,R4507,Mobile Telephones
02/04/2020,3736451,Redacted Personal Data,57.9,Redacted Personal Data,RC300764,,Care Leavers,R6293,Asylum Seekers Allowance
02/04/2020,3736452,Redacted Personal Data,17.98,Redacted Personal Data,RC300764,,Care Leavers,R6292,Section 24 Payments
08/04/2020,3736681,Redacted Personal Data,57.9,Redacted Personal Data,RC300764,,Care Leavers,R6293,Asylum Seekers Allowance
16/04/2020,3737215,Redacted Personal Data,57.9,Redacted Personal Data,RC300764,,Care Leavers,R6293,Asylum Seekers Allowance
23/04/2020,3737308,Redacted Personal Data,57.9,Redacted Personal Data,RC300764,,Care Leavers,R6293,Asylum Seekers Allowance
08/04/2020,60041813,SI-377,500,Elite Housing & Support,RC300384,,Care Leavers,R4900,Accomodation Costs
08/04/2020,60041814,SI-378,400,Elite Housing & Support,RC300384,,Care Leavers,R4900,Accomodation Costs
02/04/2020,60041758,EG022,450,Redacted Personal Data,RC300683,,Leisure and Health,R4401,Fees and Charges
20/04/2020,60042170,EG023,150,Redacted Personal Data,RC300683,,Leisure and Health,R4401,Fees and Charges
27/04/2020,60042255,INV-1953,5184.69,emPSN,RC300371,897 4036 81,The King Centre,R4701,Subscriptions
06/04/2020,60041704,INV-1108,100,EnergyFit Ltd,RC508190,158 6143 93,Central Maintenance,R2004,R & M - Programmed
01/04/2020,60041831,RUTCC042,2843.72,Enterprise Car Club,RC509499,215 5573 14,Pool Cars and Car Hire,R3207,Transport Contract
01/04/2020,60041831,RUTCC042,2919.28,Enterprise Car Club,RC509499,215 5573 14,Pool Cars and Car Hire,R3207,Transport Contract
16/04/2020,60042105,75660865,65.48,Enterprise Car Club,RC509499,215 5573 14,Pool Cars and Car Hire,R3004,Vehicle Maintenance
01/04/2020,60041469,200097669,1311,Enterprise Rent-A-Car UK Ltd,RC506800,641634450,Pool Cars and Car Hire,R3200,Hire of Vehicles & Plant
01/04/2020,60041711,24337535,1231.98,Enterprise Rent-A-Car UK Ltd,RC506800,641634450,Pool Cars and Car Hire,R3200,Hire of Vehicles & Plant
01/04/2020,60042210,24085084,1601.11,Enterprise Rent-A-Car UK Ltd,RC506800,641634450,Pool Cars and Car Hire,R3200,Hire of Vehicles & Plant
02/04/2020,60041845,011883144530 - 2 April 2020,657.88,Eon Energy UK Plc,RC501484,559 0978 89,Parking,R2100,Electricity
02/04/2020,60041846,012332466340 - 2 April 2020,193.2,Eon Energy UK Plc,RC501484,559 0978 89,CCTV,R2100,Electricity
08/04/2020,3736755,Redacted Personal Data,52.9,Redacted Personal Data,RC301476,,UASC 16-17,R6293,Asylum Seekers Allowance
15/04/2020,3736923,Redacted Personal Data,110.8,Redacted Personal Data,RC301476,,UASC 16-17,R6293,Asylum Seekers Allowance
16/04/2020,3737142,Redacted Personal Data,57.9,Redacted Personal Data,RC301476,,UASC 16-17,R6293,Asylum Seekers Allowance
23/04/2020,3737232,Redacted Personal Data,52.9,Redacted Personal Data,RC301476,,UASC 16-17,R6293,Asylum Seekers Allowance
01/04/2020,60041677,EB292207 - MAR 2020,2699.18,Eric's Taxis,RC501572,610 7471 65,SEN Transport,R3200,Hire of Vehicles & Plant
01/04/2020,60041720,5618113,223.5,Espo,RC502268,705 1805 61,Stationery,R4308,Stationery
15/04/2020,60041964,G1129048,275.3,Espo (Gas),RC501573,705180561,Early Intervention Youth Services,R2101,Gas
15/04/2020,60041987,G1129049,1317.82,Espo (Gas),RC501573,705180561,Admin Buildings,R2101,Gas
15/04/2020,60041988,G1129045,273.3,Espo (Gas),RC501573,705180561,Admin Buildings,R2101,Gas
15/04/2020,60041989,G1129052,3005.15,Espo (Gas),RC501573,705180561,Oakham Enterprise Park,R2101,Gas
15/04/2020,60041990,G1129053,976.64,Espo (Gas),RC501573,705180561,The King Centre,R2101,Gas
15/04/2020,60042076,G1129047,364.88,Espo (Gas),RC501573,705180561,Libraries,R2101,Gas
15/04/2020,60042077,G1129050,1261.49,Espo (Gas),RC501573,705180561,Museums Service,R2101,Gas
15/04/2020,60042078,G1129046,582.32,Espo (Gas),RC501573,705180561,Oakham Castle,R2101,Gas
15/04/2020,60042079,G1129051,84.15,Espo (Gas),RC501573,705180561,Libraries,R2101,Gas
18/04/2020,60042149,EFW214755 - 18/04/20,308.84,Everflow Limited,RC301184,216493600,The King Centre,R2401,Water Services
01/04/2020,60040856,2020011,8487.13,Exacom Systems Ltd,RC509080,127 2478 12,Planning Policy,R4531,Computing - Software
07/04/2020,60041756,773747,2240.48,FCC Recycling (UK) Ltd,RC502258,637 8808 92,Waste Management,R5021,TPP - Waste Disposal
09/04/2020,60041861,SI495,1320,FCC Recycling (UK) Ltd,RC502258,637 8808 92,Waste Management,R4400,Professional Fees
15/04/2020,60041959,774017,28580.67,FCC Recycling (UK) Ltd,RC502258,637 8808 92,Waste Management,R5021,TPP - Waste Disposal
21/04/2020,60042160,774292,2314.96,FCC Recycling (UK) Ltd,RC502258,637 8808 92,Waste Management,R5021,TPP - Waste Disposal
27/04/2020,60042249,774319,29404.91,FCC Recycling (UK) Ltd,RC502258,637 8808 92,Waste Management,R5021,TPP - Waste Disposal
01/04/2020,60041787,26258,190.4,Fostering Network,RC501650,231 6335 90,Placements,R4701,Subscriptions
01/04/2020,60041787,26258,464,Fostering Network,RC501650,231 6335 90,Placements,R4701,Subscriptions
01/04/2020,60041788,26259,874,Fostering Network,RC501650,231 6335 90,Placements,R4701,Subscriptions
01/04/2020,60041793,254213,1262.13,Fostering Solutions Ltd,RC507230,,Placements,R5017,TPP - Other
01/04/2020,60041838,254941,3155.31,Fostering Solutions Ltd,RC507230,,Placements,R5017,TPP - Other
01/04/2020,60041839,254942,4448.23,Fostering Solutions Ltd,RC507230,,Placements,R5017,TPP - Other
01/04/2020,60042337,246682,3334.5,Fostering Solutions Ltd,RC507230,,Placements,R5017,TPP - Other
01/04/2020,60042338,246685,3334.5,Fostering Solutions Ltd,RC507230,,Placements,R5017,TPP - Other
01/04/2020,60042341,254214,1779.29,Fostering Solutions Ltd,RC507230,,Placements,R5017,TPP - Other
17/03/2020,60041044,1169,38.09,G & R Gregg,RC501667,,Environmental Maintenance,R2004,R & M - Programmed
17/03/2020,60041044,1169,112,G & R Gregg,RC501667,,Environmental Maintenance,R2004,R & M - Programmed
15/04/2020,60041962,INV-0233,160,G D Sleath Electronics Ltd,RC508495,775 4891 75,Oakham Enterprise Park,R2004,R & M - Programmed
15/04/2020,60041962,INV-0233,295,G D Sleath Electronics Ltd,RC508495,775 4891 75,Oakham Enterprise Park,R2004,R & M - Programmed
08/04/2020,60041826,Redacted Personal Data,5.4,Redacted Personal Data,RC301474,,Placements,R4309,Books
08/04/2020,60041826,Redacted Personal Data,22.68,Redacted Personal Data,RC301474,,Family Support Operations,R3400,Car Mileage
31/03/2020,60041470,1015,2065,GD Planning,RC301147,,Local Plan Production,R1100,Agency Staff
24/03/2020,60041248,GREEN WASTE REFUND - BLANTERN,35,General Refunds BACS,RC502880,,Green Waste Collections,R9304,Fees - Refuse Collection & Disposal
24/03/2020,60041249,GREEN WASTE REFUND - BEANLAND,105,General Refunds BACS,RC502880,,Green Waste Collections,R9304,Fees - Refuse Collection & Disposal
25/03/2020,60041295,GREEN WASTE REFUND- DOWSET,35,General Refunds BACS,RC502880,,Green Waste Collections,R9304,Fees - Refuse Collection & Disposal
06/04/2020,60041753,GREEN WASTE REFUND - JC,35,General Refunds BACS,RC502880,,Green Waste Collections,R9304,Fees - Refuse Collection & Disposal
08/04/2020,60041827,GREEN WASTE REFUND - GO,70,General Refunds BACS,RC502880,,Green Waste Collections,R9304,Fees - Refuse Collection & Disposal
09/04/2020,60041867,GREEN WASTE REFUND - RC,35,General Refunds BACS,RC502880,,Green Waste Collections,R9304,Fees - Refuse Collection & Disposal
09/04/2020,60041868,GREEN WASTE REUFND - EP,35,General Refunds BACS,RC502880,,Green Waste Collections,R9304,Fees - Refuse Collection & Disposal
14/04/2020,60042053,GREEN WASTE REFUND - MT,35,General Refunds BACS,RC502880,,Green Waste Collections,R9304,Fees - Refuse Collection & Disposal
14/04/2020,60041901,1420,650,Redacted Personal Data,RC301357,,Children's Centres - Revenue,R4401,Fees and Charges
01/04/2020,60042046,INV-92643,50,Global Mediation Ltd,RC508789,740 3623 59,SEN Operations,R4400,Professional Fees
16/04/2020,60042067,CIL PARISH PAYMENT APRIL 2020,1182.82,Great Casterton Parish Council,RC501728,,S106 Contributions,R5017,TPP - Other
06/04/2020,60041879,3627,25100,Gryphon House Ltd,RC506659,,SEN (DSG),R5017,TPP - Other
06/04/2020,60041880,3628,20416.44,Gryphon House Ltd,RC506659,,SEN (DSG),R5017,TPP - Other
06/04/2020,60041881,3629,27448,Gryphon House Ltd,RC506659,,SEN (DSG),R5017,TPP - Other
06/04/2020,60041882,3630,22962.67,Gryphon House Ltd,RC506659,,SEN (DSG),R5017,TPP - Other
06/04/2020,60042083,3631,28200,Gryphon House Ltd,RC506659,,SEN (DSG),R5017,TPP - Other
27/04/2020,60042265,3649,650,GTE Electrical Services Ltd,RC507859,892 4700 07,Capital Programme Places,R2004,R & M - Programmed
01/04/2020,60041605,15405,343.66,Guardian Water Treatment Ltd,RC301328,749341022,Property Services Rechargeable Works,R2004,R & M - Programmed
01/04/2020,60041606,15406,396.18,Guardian Water Treatment Ltd,RC301328,749341022,Central Maintenance,R2004,R & M - Programmed
01/04/2020,60041607,15408,94,Guardian Water Treatment Ltd,RC301328,749341022,Property Services Rechargeable Works,R2004,R & M - Programmed
01/04/2020,60041608,15409,94,Guardian Water Treatment Ltd,RC301328,749341022,Central Maintenance,R2004,R & M - Programmed
02/04/2020,3736488,Redacted Personal Data,249,Redacted Personal Data,RC301385,,Placements,R5017,TPP - Other
08/04/2020,3736711,Redacted Personal Data,249,Redacted Personal Data,RC301385,,Placements,R5017,TPP - Other
08/04/2020,3736754,Redacted Personal Data,39,Redacted Personal Data,RC301385,,Placements,R5017,TPP - Other
16/04/2020,3737167,Redacted Personal Data,249,Redacted Personal Data,RC301385,,Placements,R5017,TPP - Other
23/04/2020,3737261,Redacted Personal Data,249,Redacted Personal Data,RC301385,,Placements,R5017,TPP - Other
01/04/2020,60040936,D0016098,156.33,Harborough District Council,RC501755,121 5258 05,Customer Services Team,R4401,Fees and Charges
01/04/2020,60040936,D0016098,202.15,Harborough District Council,RC501755,121 5258 05,Customer Services Team,R4401,Fees and Charges
01/04/2020,60042058,INV-0152,18833.33,Hardwick House,RC300218,,SEN (DSG),R5017,TPP - Other
01/04/2020,60041697,352361,832.24,HAS Technology Group,RC503291,884 2460 06,Reach/Reablement Service,R4535,Computing - Licences
14/04/2020,3737017,29798/13,3864,Redacted Personal Data,RC506747,,ASC S&R DPs PD,R6280,Direct Payments
02/04/2020,3736458,Redacted Personal Data,57.9,Redacted Personal Data,RC300762,,Unaccompanied Asylum Seekers - Over 18,R6293,Asylum Seekers Allowance
08/04/2020,3736678,Redacted Personal Data,57.9,Redacted Personal Data,RC300762,,Unaccompanied Asylum Seekers - Over 18,R6293,Asylum Seekers Allowance
16/04/2020,3737211,Redacted Personal Data,57.9,Redacted Personal Data,RC300762,,Unaccompanied Asylum Seekers - Over 18,R6293,Asylum Seekers Allowance
23/04/2020,3737234,Redacted Personal Data,57.9,Redacted Personal Data,RC300762,,Unaccompanied Asylum Seekers - Over 18,R6293,Asylum Seekers Allowance
01/04/2020,60041593,INV518797,128.2,Health Management Ltd,RC509363,792 2506 21,Human Resources,R4400,Professional Fees
01/04/2020,60041757,52,11.8,Hoagies,RC501806,690 0121 71,Human Resources,R1600,Interview Expenses
01/04/2020,60041771,50,82.5,Hoagies,RC501806,690 0121 71,Highways Management,R1600,Interview Expenses
14/04/2020,3737117,29798/113,276,Redacted Personal Data,RC300650,,ASC S&R DPs MH,R6280,Direct Payments
08/04/2020,3736811,29711/54,2161.02,Holme Lodge,RC300450,,Physical Disability,R5028,TPP - Residental Care
21/04/2020,3737365,30002/53,2161.02,Holme Lodge,RC300450,,Physical Disability,R5028,TPP - Residental Care
08/04/2020,3736812,29712/55,621.17,Home From Home Care Ltd,RC507921,,Learning Disability,R5028,TPP - Residental Care
08/04/2020,3736812,29712/55,1610.39,Home From Home Care Ltd,RC507921,,Learning Disability,R5028,TPP - Residental Care
08/04/2020,3736812,29712/55,2254.55,Home From Home Care Ltd,RC507921,,Learning Disability,R5028,TPP - Residental Care
21/04/2020,3737366,30022/54,4509.1,Home From Home Care Ltd,RC507921,,Learning Disability,R5028,TPP - Residental Care
29/03/2020,60041527,206,4687.08,Home Straight Partnership Ltd,RC508404,,ASC S&R Homecare OP,R5029,TPP - Home Care
05/04/2020,60041854,207,4678.65,Home Straight Partnership Ltd,RC508404,,ASC S&R Homecare OP,R5029,TPP - Home Care
05/04/2020,60042179,208,5342.45,Home Straight Partnership Ltd,RC508404,,ASC S&R Homecare OP,R5029,TPP - Home Care
20/04/2020,60042180,209,5380.38,Home Straight Partnership Ltd,RC508404,,ASC S&R Homecare OP,R5029,TPP - Home Care
01/12/2019,60042188,INV-0027,17665,Hope House School,RC300382,,SEN (DSG),R5017,TPP - Other
01/04/2020,60041479,16863,150,Horizon Care & Education Group Ltd,RC502356,284410509,Placements,R5017,TPP - Other
01/04/2020,60041480,16864,150,Horizon Care & Education Group Ltd,RC502356,284410509,Placements,R5017,TPP - Other
01/04/2020,60041481,16865,150,Horizon Care & Education Group Ltd,RC502356,284410509,Placements,R5017,TPP - Other
01/04/2020,60041482,16866,150,Horizon Care & Education Group Ltd,RC502356,284410509,Placements,R5017,TPP - Other
01/04/2020,60041789,17002,14897.1,Horizon Care & Education Group Ltd,RC502356,284410509,Placements,R5017,TPP - Other
01/04/2020,60041790,17180,15393.67,Horizon Care & Education Group Ltd,RC502356,284410509,Placements,R5017,TPP - Other
01/04/2020,60041661,19872,9950,Housing Partners Ltd,RC300542,834 8582 94,Homelessness,R5017,TPP - Other
01/04/2020,60041717,16503,110,Ian Bryers Car & Commercial Repairs,RC502875,550 9095 37,Mobile Library,R3004,Vehicle Maintenance
01/04/2020,60041717,16503,722.17,Ian Bryers Car & Commercial Repairs,RC502875,550 9095 37,Mobile Library,R3004,Vehicle Maintenance
01/04/2020,60041884,16507,18,Ian Bryers Car & Commercial Repairs,RC502875,550 9095 37,Educational Transport Fleet,R3004,Vehicle Maintenance
06/04/2020,60041885,16508,278.1,Ian Bryers Car & Commercial Repairs,RC502875,550 9095 37,Educational Transport Fleet,R3004,Vehicle Maintenance
07/04/2020,60041886,16509,179.95,Ian Bryers Car & Commercial Repairs,RC502875,550 9095 37,Educational Transport Fleet,R3004,Vehicle Maintenance
07/04/2020,60041887,16510,80,Ian Bryers Car & Commercial Repairs,RC502875,550 9095 37,Educational Transport Fleet,R3004,Vehicle Maintenance
07/04/2020,60041888,16511,531.3,Ian Bryers Car & Commercial Repairs,RC502875,550 9095 37,Educational Transport Fleet,R3004,Vehicle Maintenance
07/04/2020,60041952,16516,236,Ian Bryers Car & Commercial Repairs,RC502875,550 9095 37,Educational Transport Fleet,R3004,Vehicle Maintenance
08/04/2020,60041953,16517,80,Ian Bryers Car & Commercial Repairs,RC502875,550 9095 37,Educational Transport Fleet,R3004,Vehicle Maintenance
09/04/2020,60041954,16518,122,Ian Bryers Car & Commercial Repairs,RC502875,550 9095 37,Educational Transport Fleet,R3004,Vehicle Maintenance
10/04/2020,60041955,16519,80,Ian Bryers Car & Commercial Repairs,RC502875,550 9095 37,Educational Transport Fleet,R3004,Vehicle Maintenance
09/04/2020,60041956,16520,124.25,Ian Bryers Car & Commercial Repairs,RC502875,550 9095 37,Educational Transport Fleet,R3004,Vehicle Maintenance
09/04/2020,60041957,16521,120,Ian Bryers Car & Commercial Repairs,RC502875,550 9095 37,Educational Transport Fleet,R3004,Vehicle Maintenance
09/04/2020,60041958,16522,80,Ian Bryers Car & Commercial Repairs,RC502875,550 9095 37,Educational Transport Fleet,R3004,Vehicle Maintenance
01/04/2020,60040837,I117646,201.5,Iliffe Media Publishing Ltd,RC501920,261 6151 24,Highways Management,R4317,Non Staff Advertising
01/04/2020,60040838,I121479,201.5,Iliffe Media Publishing Ltd,RC501920,261 6151 24,Highways Management,R4317,Non Staff Advertising
01/04/2020,60041427,I151294,110.16,Iliffe Media Publishing Ltd,RC501920,261 6151 24,Development Control,R4317,Non Staff Advertising
05/04/2020,60041691,I154587,128.52,Iliffe Media Publishing Ltd,RC501920,261 6151 24,Development Control,R4317,Non Staff Advertising
05/04/2020,60041692,I154588,186,Iliffe Media Publishing Ltd,RC501920,261 6151 24,Highways Management,R4317,Non Staff Advertising
12/04/2020,60041965,I157423,211.14,Iliffe Media Publishing Ltd,RC501920,261 6151 24,Development Control,R4317,Non Staff Advertising
12/04/2020,60041966,I157424,270,Iliffe Media Publishing Ltd,RC501920,261 6151 24,Planning Policy,R4317,Non Staff Advertising
12/04/2020,60042051,I157425,2232,Iliffe Media Publishing Ltd,RC501920,261 6151 24,Covid_19,R4317,Non Staff Advertising
19/04/2020,60042154,I160139,64.26,Iliffe Media Publishing Ltd,RC501920,261 6151 24,Development Control,R4317,Non Staff Advertising
19/04/2020,60042155,I160140,186,Iliffe Media Publishing Ltd,RC501920,261 6151 24,Highways Management,R4317,Non Staff Advertising
01/04/2020,60042235,I143793,170.5,Iliffe Media Publishing Ltd,RC501920,261 6151 24,Highways Management,R4317,Non Staff Advertising
26/04/2020,60042280,I163344,217,Iliffe Media Publishing Ltd,RC501920,261 6151 24,Highways Management,R4317,Non Staff Advertising
01/04/2020,60041812,2234,1250,In > Professional Development,RC301324,285136002,"Training, Confs & Seminars",R4405,Training Charges
14/04/2020,60042059,33426564,90.26,Initial Washroom Solutions,RC501850,209 9189 33,The King Centre,R2004,R & M - Programmed
06/04/2020,60042086,33412916,56.55,Initial Washroom Solutions,RC501850,209 9189 33,The King Centre,R4000,Furniture & Equipment
07/04/2020,60042087,33416370,78.42,Initial Washroom Solutions,RC501850,209 9189 33,The King Centre,R4000,Furniture & Equipment
01/04/2020,60041551,M20040,140,Inst Of Pub Rights Of Way Management Ltd,RC501854,746 9931 79,Public Rights of Way,R4702,Subscriptions - Employee
06/04/2020,60042090,27695,1030,ITSO Ltd,RC507340,765 6393 88,Concessionary Travel,R6270,Concessionary fares
02/04/2020,3736479,Redacted Personal Data,249,Redacted Personal Data,RC507010,,Placements,R5017,TPP - Other
02/04/2020,3736510,Redacted Personal Data,218.81,Redacted Personal Data,RC507010,,Placements,R5017,TPP - Other
02/04/2020,3736551,Redacted Personal Data,200,Redacted Personal Data,RC507010,,Placements,R5017,TPP - Other
08/04/2020,3736702,Redacted Personal Data,249,Redacted Personal Data,RC507010,,Placements,R5017,TPP - Other
08/04/2020,3736730,Redacted Personal Data,218.81,Redacted Personal Data,RC507010,,Placements,R5017,TPP - Other
16/04/2020,3737160,Redacted Personal Data,249,Redacted Personal Data,RC507010,,Placements,R5017,TPP - Other
16/04/2020,3737187,Redacted Personal Data,218.81,Redacted Personal Data,RC507010,,Placements,R5017,TPP - Other
23/04/2020,3737254,Redacted Personal Data,249,Redacted Personal Data,RC507010,,Placements,R5017,TPP - Other
23/04/2020,3737281,Redacted Personal Data,218.81,Redacted Personal Data,RC507010,,Placements,R5017,TPP - Other
14/04/2020,3737014,29798/10,138,Redacted Personal Data,RC506917,,Carer Support,R6280,Direct Payments
02/04/2020,3736486,Redacted Personal Data,165,Redacted Personal Data,RC301144,,Placements,R5017,TPP - Other
02/04/2020,3736487,Redacted Personal Data,165,Redacted Personal Data,RC301144,,Placements,R5017,TPP - Other
02/04/2020,3736508,Redacted Personal Data,124.74,Redacted Personal Data,RC301144,,Placements,R5017,TPP - Other
02/04/2020,3736509,Redacted Personal Data,93.56,Redacted Personal Data,RC301144,,Placements,R5017,TPP - Other
14/04/2020,3737101,29798/97,207,Redacted Personal Data,RC300333,,ASC S&R DPs PD,R6280,Direct Payments
14/04/2020,3737010,29798/6,184,Redacted Personal Data,RC506150,,Carer Support,R6280,Direct Payments
16/04/2020,3736942,Redacted Personal Data,187.2,Redacted Personal Data,RC508627,,2 Year Old Nursery Funding,R5020,TPP - Nursery Provision
16/04/2020,3736978,Redacted Personal Data,404.58,Redacted Personal Data,RC508627,,3 & 4 Year Old Nursery Funding,R5020,TPP - Nursery Provision
01/04/2020,60041768,INV-13363,1500,JGP Resourcing Limited,RC300704,121 1440 78,Human Resources,R1401,Professional Fees
20/04/2020,60042173,INV-13394,270,JGP Resourcing Limited,RC300704,121 1440 78,Human Resources,R1401,Professional Fees
01/04/2020,60041754,11,60,Redacted Personal Data,RC509375,,Active Rutland Hub,R4401,Fees and Charges
01/04/2020,60041754,11,150,Redacted Personal Data,RC509375,,Active Rutland Hub,R4401,Fees and Charges
01/04/2020,60041754,11,210,Redacted Personal Data,RC509375,,Leisure and Health,R4401,Fees and Charges
14/04/2020,3737050,29798/46,42.71,Redacted Personal Data,RC300367,,Carer Support,R6280,Direct Payments
14/04/2020,3737104,29798/100,36.69,Redacted Personal Data,RC300367,,ASC S&R DPs OP,R6280,Direct Payments
14/04/2020,3737104,29798/100,91.45,Redacted Personal Data,RC300367,,ASC S&R DPs OP,R6280,Direct Payments
15/04/2020,3736922,Redacted Personal Data,75,Redacted Personal Data,RC509304,,Care Leavers,R6292,Section 24 Payments
09/04/2020,60041889,90420,97.5,Judith Sullivan Ltd,RC300315,,Early Intervention Youth Services,R4401,Fees and Charges
02/04/2020,3736527,Redacted Personal Data,206,Redacted Personal Data,RC502377,,Placements,R5017,TPP - Other
08/04/2020,3736747,Redacted Personal Data,206,Redacted Personal Data,RC502377,,Placements,R5017,TPP - Other
16/04/2020,3737204,Redacted Personal Data,206,Redacted Personal Data,RC502377,,Placements,R5017,TPP - Other
23/04/2020,3737298,Redacted Personal Data,206,Redacted Personal Data,RC502377,,Placements,R5017,TPP - Other
14/04/2020,3737078,29798/74,506,Redacted Personal Data,RC507016,,Carer Support,R6280,Direct Payments
14/04/2020,3737021,29798/17,500,Redacted Personal Data,RC508687,,ASC S&R DPs LD,R6280,Direct Payments
16/04/2020,3736979,Redacted Personal Data,178.5,Redacted Personal Data,RC301397,,3 & 4 Year Old Nursery Funding,R5020,TPP - Nursery Provision
16/04/2020,3736977,Redacted Personal Data,71.4,Redacted Personal Data,RC300060,,3 & 4 Year Old Nursery Funding,R5020,TPP - Nursery Provision
16/04/2020,3736980,Redacted Personal Data,749.7,Redacted Personal Data,RC300610,,3 & 4 Year Old Nursery Funding,R5020,TPP - Nursery Provision
09/04/2020,60041850,EC20397938,263.32,KCOM Group Plc,RC508092,647 2351 37,IT Operational Support,R4537,Computing - Internet
16/04/2020,3736932,2 Year Funding - April Claim March Adjustment - Covid,503.36,Keepers Cottage Day Nursery,RC501953,,2 Year Old Nursery Funding,R5020,TPP - Nursery Provision
16/04/2020,3736951,3 and 4 Year Funding - April Claim March Adjustment - Covid,5071.95,Keepers Cottage Day Nursery,RC501953,,3 & 4 Year Old Nursery Funding,R5020,TPP - Nursery Provision
16/04/2020,3736952,3 and 4 Year Funding - April Claim March Adjustment - Covid,4491.74,Ketton Playgroup,RC501972,,3 & 4 Year Old Nursery Funding,R5020,TPP - Nursery Provision
01/04/2020,60041483,134376,478.54,Kings Armoured Security Services Limited,RC506289,658158993,Parking,R4401,Fees and Charges
21/04/2020,60042308,KHS1942,5314,Kirkstone House School,RC300550,,SEN (DSG),R5017,TPP - Other
08/04/2020,3736813,29713/56,4672.58,Kisimul Group Ltd,RC506920,,Learning Disability,R5028,TPP - Residental Care
21/04/2020,3737367,30003/55,4672.58,Kisimul Group Ltd,RC506920,,Learning Disability,R5028,TPP - Residental Care
14/04/2020,60041903,Jules - 1a,20,Kleena Windows,RC501990,,Early Intervention Youth Services,R2700,Contract Cleaning
14/04/2020,60041927,Visions 1a,25,Kleena Windows,RC501990,,Children's Centres - Revenue,R2700,Contract Cleaning
01/04/2020,60041424,INV082965,409.9,Knighton Janitorial Ltd,RC505319,799 6985 18,Admin Buildings,R4000,Furniture & Equipment
08/04/2020,3736769,29686/12,1002,Kross Investments Ltd T/A Belton House Retirement Home,RC502319,,Older People,R5028,TPP - Residental Care
08/04/2020,3736770,29686/13,1002,Kross Investments Ltd T/A Belton House Retirement Home,RC502319,,Older People,R5028,TPP - Residental Care
08/04/2020,3736771,29686/14,1002,Kross Investments Ltd T/A Belton House Retirement Home,RC502319,,Older People,R5028,TPP - Residental Care
08/04/2020,3736772,29686/15,1002,Kross Investments Ltd T/A Belton House Retirement Home,RC502319,,Older People,R5028,TPP - Residental Care
08/04/2020,3736773,29686/16,1002,Kross Investments Ltd T/A Belton House Retirement Home,RC502319,,Older People,R5028,TPP - Residental Care
08/04/2020,3736774,29686/17,1002,Kross Investments Ltd T/A Belton House Retirement Home,RC502319,,Older People,R5025,Short Term Care
08/04/2020,3736775,29686/18,1002,Kross Investments Ltd T/A Belton House Retirement Home,RC502319,,Older People,R5028,TPP - Residental Care
08/04/2020,3736776,29686/19,938,Kross Investments Ltd T/A Belton House Retirement Home,RC502319,,Older People,R5028,TPP - Residental Care
21/04/2020,3737322,29987/10,1002,Kross Investments Ltd T/A Belton House Retirement Home,RC502319,,Older People,R5028,TPP - Residental Care
21/04/2020,3737323,29987/11,1002,Kross Investments Ltd T/A Belton House Retirement Home,RC502319,,Older People,R5028,TPP - Residental Care
21/04/2020,3737324,29987/12,1002,Kross Investments Ltd T/A Belton House Retirement Home,RC502319,,Older People,R5028,TPP - Residental Care
21/04/2020,3737325,29987/13,1002,Kross Investments Ltd T/A Belton House Retirement Home,RC502319,,Older People,R5028,TPP - Residental Care
21/04/2020,3737326,29987/14,1002,Kross Investments Ltd T/A Belton House Retirement Home,RC502319,,Older People,R5028,TPP - Residental Care
21/04/2020,3737327,29987/15,1002,Kross Investments Ltd T/A Belton House Retirement Home,RC502319,,Older People,R5025,Short Term Care
21/04/2020,3737328,29987/16,1002,Kross Investments Ltd T/A Belton House Retirement Home,RC502319,,Older People,R5028,TPP - Residental Care
21/04/2020,3737329,29987/17,938,Kross Investments Ltd T/A Belton House Retirement Home,RC502319,,Older People,R5028,TPP - Residental Care
01/04/2020,60041712,INV-0435,2500,Lagom Associates Limited,RC300703,164 2164 25,Corporate Financial Expenses,R4400,Professional Fees
30/03/2020,60041500,178961 - MAR 2020,800,Landmark Chambers,RC301154,,Legal Services,R4400,Professional Fees
30/03/2020,60041500,178961 - MAR 2020,4000,Landmark Chambers,RC301154,,Legal Services,R4400,Professional Fees
01/04/2020,60041795,INVAM440,475,Landmark Chambers,RC301154,,Legal Services,R4400,Professional Fees
01/04/2020,60041796,INVAM427,3754,Landmark Chambers,RC301154,,Legal Services,R4400,Professional Fees
01/04/2020,60041797,INVLG650,900,Landmark Chambers,RC301154,,Legal Services,R4400,Professional Fees
01/04/2020,60041798,INVLG655,125,Landmark Chambers,RC301154,,Legal Services,R4400,Professional Fees
01/04/2020,60041799,INVLG663,75,Landmark Chambers,RC301154,,Legal Services,R4400,Professional Fees
01/04/2020,60041800,INVLG666,40,Landmark Chambers,RC301154,,Legal Services,R4400,Professional Fees
08/04/2020,60041810,INVAM450,750,Landmark Chambers,RC301154,,Legal Services,R4400,Professional Fees
08/04/2020,60041836,INVSFM101,11631.7,Landmark Chambers,RC301154,,Legal Services,R4400,Professional Fees
16/04/2020,3736953,3 and 4 Year Funding - April Claim March Adjustment - Covid,5715.4,Langham Nursery,RC501101,,3 & 4 Year Old Nursery Funding,R5020,TPP - Nursery Provision
16/04/2020,60042068,CIL PARISH PAYMENT APRIL 2020,2249.27,Langham Parish Council,RC502016,,S106 Contributions,R5017,TPP - Other
08/04/2020,3736899,29734/142,3238.4,Langley House Trust,RC300376,,Mental Health,R5028,TPP - Residental Care
21/04/2020,3737450,30011/139,3238.4,Langley House Trust,RC300376,,Mental Health,R5028,TPP - Residental Care
14/04/2020,3737041,29798/37,161,Redacted Personal Data,RC300653,,Carer Support,R6280,Direct Payments
01/04/2020,60041544,7516,3330.36,Lawson's of Corby Ltd,RC506128,937 1394 07,Home to School Transport,R3207,Transport Contract
29/04/2020,60042304,7549,1849.2,Lawson's of Corby Ltd,RC506128,937 1394 07,Home to School Transport,R3207,Transport Contract
17/03/2020,60041484,11/11109,120,Le Blanc Fine Art,RC301388,GB 115 5751 79,Capital Programme Places - Culture & Leisure,C1016,Building Works
01/04/2020,60041550,INV - 016959,3000,Learning Pool Ltd,RC508158,882 3893 79,IT Operational Support,R4531,Computing - Software
01/04/2020,60041175,87703959,17057,Leicester City Council,RC502036,115 3370 04,"OT's, Aids & Equipment",R5012,TPP - Health Authorities
08/04/2020,3736814,29714/57,1406,Leicestershire County Care Ltd,RC509037,,Older People,R5028,TPP - Residental Care
21/04/2020,3737368,29989/56,364.57,Leicestershire County Care Ltd,RC509037,,Older People,R5028,TPP - Residental Care
21/04/2020,3737368,29989/56,401.71,Leicestershire County Care Ltd,RC509037,,Older People,R5028,TPP - Residental Care
21/04/2020,3737368,29989/56,1004.29,Leicestershire County Care Ltd,RC509037,,Older People,R5028,TPP - Residental Care
21/04/2020,3737368,29989/56,99826,Leicestershire County Care Ltd,RC509037,,Older People,R5028,TPP - Residental Care
21/04/2020,3737369,30004/57,1276,Leicestershire County Care Ltd,RC509037,,Older People,R5028,TPP - Residental Care
21/04/2020,3737369,30004/57,1276,Leicestershire County Care Ltd,RC509037,,Older People,R5028,TPP - Residental Care
01/04/2020,60040385,28186834,4207.51,Leicestershire County Council (Treasurers Dept),RC502058,115 3371 02,Highways Third Party Claims,R5009,TPP - Highway`s
01/04/2020,60040576,25437057,210,Leicestershire County Council (Treasurers Dept),RC502058,115 3371 02,Human Resources,R1601,CRB Police Checks
01/04/2020,60040576,25437057,1080,Leicestershire County Council (Treasurers Dept),RC502058,115 3371 02,Human Resources,R1601,CRB Police Checks
01/04/2020,60041300,27708727,395,Leicestershire County Council (Treasurers Dept),RC502058,115 3371 02,Education For Under 5'S,R4400,Professional Fees
01/04/2020,60041301,27708728,1100,Leicestershire County Council (Treasurers Dept),RC502058,115 3371 02,Human Resources,R4400,Professional Fees
01/04/2020,60041301,27708728,5400,Leicestershire County Council (Treasurers Dept),RC502058,115 3371 02,Human Resources,R4400,Professional Fees
01/04/2020,60041302,27708729,656,Leicestershire County Council (Treasurers Dept),RC502058,115 3371 02,Libraries,R4400,Professional Fees
01/04/2020,60041303,27708730,530,Leicestershire County Council (Treasurers Dept),RC502058,115 3371 02,Transitions,R4400,Professional Fees
01/04/2020,60041307,27708739,300,Leicestershire County Council (Treasurers Dept),RC502058,115 3371 02,Waste Management,R4515,Publicity
01/04/2020,60041308,27708738,150,Leicestershire County Council (Treasurers Dept),RC502058,115 3371 02,Communication,R4515,Publicity
01/04/2020,60041317,27708725,150,Leicestershire County Council (Treasurers Dept),RC502058,115 3371 02,Waste Management,R4515,Publicity
01/04/2020,60041318,27708726,100,Leicestershire County Council (Treasurers Dept),RC502058,115 3371 02,Placements,R4317,Non Staff Advertising
01/04/2020,60041336,27708734,100,Leicestershire County Council (Treasurers Dept),RC502058,115 3371 02,Public Transport,R4515,Publicity
01/04/2020,60041337,27708735,375,Leicestershire County Council (Treasurers Dept),RC502058,115 3371 02,Education Otherwise,R4400,Professional Fees
01/04/2020,60041348,27708733,520,Leicestershire County Council (Treasurers Dept),RC502058,115 3371 02,Armed Forces Covenant Delivery,R4400,Professional Fees
01/04/2020,60041406,25437298,210,Leicestershire County Council (Treasurers Dept),RC502058,115 3371 02,Human Resources,R1601,CRB Police Checks
01/04/2020,60041406,25437298,943,Leicestershire County Council (Treasurers Dept),RC502058,115 3371 02,Human Resources,R1601,CRB Police Checks
26/03/2020,60041408,27001505,1094.49,Leicestershire County Council (Treasurers Dept),RC502058,115 3371 02,"Training, Confs & Seminars",R4405,Training Charges
26/03/2020,60041408,27001505,4300,Leicestershire County Council (Treasurers Dept),RC502058,115 3371 02,Reach/Reablement Service,R1650,Training Expenses
01/04/2020,60041410,27708761,5350,Leicestershire County Council (Treasurers Dept),RC502058,115 3371 02,Communication,R4400,Professional Fees
01/04/2020,60041412,27708763,75,Leicestershire County Council (Treasurers Dept),RC502058,115 3371 02,Communication,R4400,Professional Fees
06/04/2020,60041858,27708820,1080,Leicestershire County Council (Treasurers Dept),RC502058,115 3371 02,Human Resources,R4400,Professional Fees
15/04/2020,60042080,25732524,5000,Leicestershire County Council (Treasurers Dept),RC502058,115 3371 02,Highways Management,R4401,Fees and Charges
15/04/2020,60042081,25732525,215.68,Leicestershire County Council (Treasurers Dept),RC502058,115 3371 02,Highways Management,R4401,Fees and Charges
17/04/2020,60042168,25437497,158,Leicestershire County Council (Treasurers Dept),RC502058,115 3371 02,Human Resources,R1601,CRB Police Checks
17/04/2020,60042168,25437497,720,Leicestershire County Council (Treasurers Dept),RC502058,115 3371 02,Human Resources,R1601,CRB Police Checks
15/04/2020,60042187,25732523,10410.92,Leicestershire County Council (Treasurers Dept),RC502058,115 3371 02,Home to School Transport,R3200,Hire of Vehicles & Plant
20/04/2020,60042211,27708831,148595,Leicestershire County Council (Treasurers Dept),RC502058,115 3371 02,DOLS,R5011,TPP - Local Authorities
16/04/2020,60042100,48550,40475.42,Leicestershire Partnership Nhs Trust,RC502063,654 9698 72,Public Health Commissioning 0-19,R5012,TPP - Health Authorities
08/04/2020,3736661,Apr 2020 dripfeed - High Needs Block Allocation,636,Leighfield Academy,RC507697,,SEN (DSG),R6300,Schools - Budget Share
01/04/2020,60042243,185810,939.06,LGSS Law Ltd,RC301174,206 700 934,Legal Services,R4400,Professional Fees
01/04/2020,60042244,185887,366.42,LGSS Law Ltd,RC301174,206 700 934,Legal Services,R4400,Professional Fees
01/04/2020,60042245,190242,10.02,LGSS Law Ltd,RC301174,206 700 934,Legal Services,R4400,Professional Fees
01/04/2020,60042246,190243,7.02,LGSS Law Ltd,RC301174,206 700 934,Legal Services,R4400,Professional Fees
01/04/2020,60042247,190244,330.24,LGSS Law Ltd,RC301174,206 700 934,Legal Services,R4400,Professional Fees
01/04/2020,60042248,190245,23.64,LGSS Law Ltd,RC301174,206 700 934,Legal Services,R4400,Professional Fees
15/04/2020,60042050,LAP-10448,3768.1,Life & Progress Limited,RC507777,243 6097 06,Human Resources,R4400,Professional Fees
21/04/2020,60042172,INV-3474,1354.5,Lily Mae Home Care Limited,RC301473,,ASC S&R Homecare OP,R5029,TPP - Home Care
29/04/2020,60042348,INV-3526,1521.86,Lily Mae Home Care Limited,RC301473,,ASC S&R Homecare OP,R5029,TPP - Home Care
16/04/2020,3736938,Redacted Personal Data,180.96,Redacted Personal Data,RC301248,,2 Year Old Nursery Funding,R5020,TPP - Nursery Provision
16/04/2020,3736963,Redacted Personal Data,163.2,Redacted Personal Data,RC301248,,3 & 4 Year Old Nursery Funding,R5020,TPP - Nursery Provision
14/04/2020,60042107,DFE80201909,12800,Link Treasury Services Ltd,RC506349,191229017,Corporate Financial Expenses,R4400,Professional Fees
01/04/2020,60041535,26118,13425,Liquidlogic,RC508957,927 4382 06,Business Intelligence,R4401,Fees and Charges
16/04/2020,3736933,2 Year Funding - April Claim March Adjustment - Covid,546,Little Angels Uppingham Ltd,RC505798,,2 Year Old Nursery Funding,R5020,TPP - Nursery Provision
16/04/2020,3736954,3 and 4 Year Funding - April Claim March Adjustment - Covid,12074.84,Little Angels Uppingham Ltd,RC505798,,3 & 4 Year Old Nursery Funding,R5020,TPP - Nursery Provision
23/04/2020,3737226,Little Angels EYCP Grant payment April to June 20,1128.64,Little Angels Uppingham Ltd,RC505798,,Children's Centres - Revenue,R4401,Fees and Charges
23/04/2020,3737229,2 Year old funding for May 2020 � Early Payment,748.8,Little Angels Uppingham Ltd,RC505798,,2 Year Old Nursery Funding,R5020,TPP - Nursery Provision
23/04/2020,3737230,3 & 4 year old funding for May 2020 � Early Payment,12128.64,Little Angels Uppingham Ltd,RC505798,,3 & 4 Year Old Nursery Funding,R5020,TPP - Nursery Provision
16/04/2020,3736931,2 Year Funding - April Claim March Adjustment - Covid,187.2,Little Ospreys,RC501514,,2 Year Old Nursery Funding,R5020,TPP - Nursery Provision
16/04/2020,3736950,3 and 4 Year Funding - April Claim March Adjustment - Covid,2937.6,Little Ospreys,RC501514,,3 & 4 Year Old Nursery Funding,R5020,TPP - Nursery Provision
16/04/2020,3736956,3 and 4 Year Funding - April Claim March Adjustment - Covid,1815.6,Little Saints,RC508480,,3 & 4 Year Old Nursery Funding,R5020,TPP - Nursery Provision
09/04/2020,60041860,40105956,7251.3,Local Government Association,RC502106,676 0781 07,Corporate Subscriptions,R4701,Subscriptions
01/04/2020,60041769,SINVFT00003511,2218.17,Longhurst Group Ltd,RC502529,326027036,BCF: Assistive Technology,R4401,Fees and Charges
01/04/2020,60041770,SINVFT00003513,4416.25,Longhurst Group Ltd,RC502529,326027036,"OT's, Aids & Equipment",R5017,TPP - Other
01/04/2020,60041890,SINVFT00003092,4416.25,Longhurst Group Ltd,RC502529,326027036,"OT's, Aids & Equipment",R5017,TPP - Other
09/04/2020,60041924,SINVFT00003574,2901.6,Longhurst Group Ltd,RC502529,326027036,"OT's, Aids & Equipment",R4000,Furniture & Equipment
17/04/2020,60042204,SINVFT00003722,734.2,Longhurst Group Ltd,RC502529,326027036,"OT's, Aids & Equipment",R4000,Furniture & Equipment
24/04/2020,60042217,SINVFT00003760,4741.1,Longhurst Group Ltd,RC502529,326027036,"OT's, Aids & Equipment",R4000,Furniture & Equipment
08/04/2020,3736815,29715/58,1027.94,Longueville Court Care Home,RC509439,,Older People,R5034,TPP - Nursing Care
21/04/2020,3737370,30005/58,1027.94,Longueville Court Care Home,RC509439,,Older People,R5034,TPP - Nursing Care
14/04/2020,3737085,29798/81,23,Redacted Personal Data,RC506457,,ASC S&R DPs PD,R6280,Direct Payments
14/04/2020,3737085,29798/81,200,Redacted Personal Data,RC506457,,ASC S&R DPs PD,R6280,Direct Payments
14/04/2020,3737085,29798/81,1449,Redacted Personal Data,RC506457,,ASC S&R DPs PD,R6280,Direct Payments
14/04/2020,3737009,29798/5,184,Redacted Personal Data,RC301325,,ASC S&R DPs PD,R6280,Direct Payments
16/04/2020,3736976,Redacted Personal Data,255,Redacted Personal Data,RC508806,,3 & 4 Year Old Nursery Funding,R5020,TPP - Nursery Provision
04/04/2020,60041869,RUTQ41920,1254.5,M & H Pharma Ltd,RC507878,,Sexual Health,R5017,TPP - Other
02/04/2020,3736535,Redacted Personal Data,15,Redacted Personal Data,RC502648,,Placements,R6291,Section 23 Payments
02/04/2020,3736545,Redacted Personal Data,200,Redacted Personal Data,RC502648,,Placements,R5017,TPP - Other
21/04/2020,3737371,30026/59,292,Manor House (Rkl Living Ltd),RC502281,,Older People,R5025,Short Term Care
08/04/2020,3736816,29690/59,1002,Manton Hall (Foundation),RC502541,,Older People,R5028,TPP - Residental Care
08/04/2020,3736817,29690/60,1002,Manton Hall (Foundation),RC502541,,Older People,R5025,Short Term Care
08/04/2020,3736818,29690/61,71.57,Manton Hall (Foundation),RC502541,,Older People,R5028,TPP - Residental Care
08/04/2020,3736819,29690/62,938,Manton Hall (Foundation),RC502541,,Older People,R5028,TPP - Residental Care
08/04/2020,3736820,29690/63,143.14,Manton Hall (Foundation),RC502541,,Older People,R5028,TPP - Residental Care
08/04/2020,3736820,29690/63,365,Manton Hall (Foundation),RC502541,,Older People,R5028,TPP - Residental Care
08/04/2020,3736820,29690/63,511,Manton Hall (Foundation),RC502541,,Older People,R5028,TPP - Residental Care
08/04/2020,3736821,29690/64,650,Manton Hall (Foundation),RC502541,,Older People,R5028,TPP - Residental Care
08/04/2020,3736822,29690/65,1002,Manton Hall (Foundation),RC502541,,Older People,R5028,TPP - Residental Care
08/04/2020,3736823,29690/66,938,Manton Hall (Foundation),RC502541,,Older People,R5028,TPP - Residental Care
08/04/2020,3736824,29690/67,938,Manton Hall (Foundation),RC502541,,Older People,R5028,TPP - Residental Care
08/04/2020,3736825,29690/68,1002,Manton Hall (Foundation),RC502541,,Older People,R5028,TPP - Residental Care
08/04/2020,3736826,29690/69,143.14,Manton Hall (Foundation),RC502541,,Older People,R5028,TPP - Residental Care
08/04/2020,3736826,29690/69,365,Manton Hall (Foundation),RC502541,,Older People,R5028,TPP - Residental Care
08/04/2020,3736826,29690/69,511,Manton Hall (Foundation),RC502541,,Older People,R5028,TPP - Residental Care
08/04/2020,3736827,29690/70,143.14,Manton Hall (Foundation),RC502541,,Older People,R5028,TPP - Residental Care
08/04/2020,3736827,29690/70,365,Manton Hall (Foundation),RC502541,,Older People,R5028,TPP - Residental Care
08/04/2020,3736827,29690/70,511,Manton Hall (Foundation),RC502541,,Older People,R5028,TPP - Residental Care
08/04/2020,3736828,29690/71,1100,Manton Hall (Foundation),RC502541,,Older People,R5028,TPP - Residental Care
08/04/2020,3736829,29689/72,286.29,Manton Hall (Foundation),RC502541,,Older People,R5028,TPP - Residental Care
08/04/2020,3736830,29690/73,143.14,Manton Hall (Foundation),RC502541,,Older People,R5028,TPP - Residental Care
08/04/2020,3736830,29690/73,365,Manton Hall (Foundation),RC502541,,Older People,R5028,TPP - Residental Care
08/04/2020,3736830,29690/73,511,Manton Hall (Foundation),RC502541,,Older People,R5028,TPP - Residental Care
21/04/2020,3737372,29986/60,365,Manton Hall (Foundation),RC502541,,Older People,R5028,TPP - Residental Care
21/04/2020,3737372,29986/60,511,Manton Hall (Foundation),RC502541,,Older People,R5028,TPP - Residental Care
21/04/2020,3737372,29986/60,1022,Manton Hall (Foundation),RC502541,,Older People,R5028,TPP - Residental Care
21/04/2020,3737373,29986/61,365,Manton Hall (Foundation),RC502541,,Older People,R5025,Short Term Care
21/04/2020,3737373,29986/61,511,Manton Hall (Foundation),RC502541,,Older People,R5025,Short Term Care
21/04/2020,3737373,29986/61,1022,Manton Hall (Foundation),RC502541,,Older People,R5025,Short Term Care
21/04/2020,3737374,29986/62,341.43,Manton Hall (Foundation),RC502541,,Older People,R5028,TPP - Residental Care
21/04/2020,3737374,29986/62,478,Manton Hall (Foundation),RC502541,,Older People,R5028,TPP - Residental Care
21/04/2020,3737374,29986/62,956,Manton Hall (Foundation),RC502541,,Older People,R5028,TPP - Residental Care
21/04/2020,3737375,29986/63,1022,Manton Hall (Foundation),RC502541,,Older People,R5028,TPP - Residental Care
21/04/2020,3737376,29986/64,650,Manton Hall (Foundation),RC502541,,Older People,R5028,TPP - Residental Care
21/04/2020,3737377,29986/65,365,Manton Hall (Foundation),RC502541,,Older People,R5028,TPP - Residental Care
21/04/2020,3737377,29986/65,511,Manton Hall (Foundation),RC502541,,Older People,R5028,TPP - Residental Care
21/04/2020,3737377,29986/65,1022,Manton Hall (Foundation),RC502541,,Older People,R5028,TPP - Residental Care
21/04/2020,3737378,29986/66,341.43,Manton Hall (Foundation),RC502541,,Older People,R5028,TPP - Residental Care
21/04/2020,3737378,29986/66,478,Manton Hall (Foundation),RC502541,,Older People,R5028,TPP - Residental Care
21/04/2020,3737378,29986/66,956,Manton Hall (Foundation),RC502541,,Older People,R5028,TPP - Residental Care
21/04/2020,3737379,29986/67,341.43,Manton Hall (Foundation),RC502541,,Older People,R5028,TPP - Residental Care
21/04/2020,3737379,29986/67,478,Manton Hall (Foundation),RC502541,,Older People,R5028,TPP - Residental Care
21/04/2020,3737379,29986/67,956,Manton Hall (Foundation),RC502541,,Older People,R5028,TPP - Residental Care
21/04/2020,3737380,29986/68,365,Manton Hall (Foundation),RC502541,,Older People,R5028,TPP - Residental Care
21/04/2020,3737380,29986/68,511,Manton Hall (Foundation),RC502541,,Older People,R5028,TPP - Residental Care
21/04/2020,3737380,29986/68,1022,Manton Hall (Foundation),RC502541,,Older People,R5028,TPP - Residental Care
21/04/2020,3737381,29986/69,1022,Manton Hall (Foundation),RC502541,,Older People,R5028,TPP - Residental Care
21/04/2020,3737382,29986/70,1022,Manton Hall (Foundation),RC502541,,Older People,R5028,TPP - Residental Care
21/04/2020,3737383,29986/71,1100,Manton Hall (Foundation),RC502541,,Older People,R5028,TPP - Residental Care
21/04/2020,3737384,29986/72,292,Manton Hall (Foundation),RC502541,,Older People,R5028,TPP - Residental Care
21/04/2020,3737384,29986/72,1022,Manton Hall (Foundation),RC502541,,Older People,R5028,TPP - Residental Care
21/04/2020,3737385,29986/73,1022,Manton Hall (Foundation),RC502541,,Older People,R5028,TPP - Residental Care
21/04/2020,3737386,29976/74,508.32,Maplyn Care Services Ltd,RC301468,,ASC S&R Homecare MH,R5029,TPP - Home Care
21/04/2020,3737386,29976/74,2033.28,Maplyn Care Services Ltd,RC301468,,ASC S&R Homecare MH,R5029,TPP - Home Care
02/04/2020,3736470,Redacted Personal Data,165,Redacted Personal Data,RC300814,,Placements,R5017,TPP - Other
02/04/2020,3736471,Redacted Personal Data,145,Redacted Personal Data,RC300814,,Placements,R5017,TPP - Other
02/04/2020,3736500,Redacted Personal Data,172.8,Redacted Personal Data,RC300814,,Placements,R5017,TPP - Other
02/04/2020,3736501,Redacted Personal Data,129.6,Redacted Personal Data,RC300814,,Placements,R5017,TPP - Other
02/04/2020,3736550,Redacted Personal Data,200,Redacted Personal Data,RC300814,,Placements,R5017,TPP - Other
08/04/2020,3736694,Redacted Personal Data,165,Redacted Personal Data,RC300814,,Placements,R5017,TPP - Other
08/04/2020,3736695,Redacted Personal Data,145,Redacted Personal Data,RC300814,,Placements,R5017,TPP - Other
08/04/2020,3736722,Redacted Personal Data,172.8,Redacted Personal Data,RC300814,,Placements,R5017,TPP - Other
08/04/2020,3736723,Redacted Personal Data,129.6,Redacted Personal Data,RC300814,,Placements,R5017,TPP - Other
16/04/2020,3737152,Redacted Personal Data,165,Redacted Personal Data,RC300814,,Placements,R5017,TPP - Other
16/04/2020,3737153,Redacted Personal Data,145,Redacted Personal Data,RC300814,,Placements,R5017,TPP - Other
16/04/2020,3737179,Redacted Personal Data,172.8,Redacted Personal Data,RC300814,,Placements,R5017,TPP - Other
16/04/2020,3737180,Redacted Personal Data,129.6,Redacted Personal Data,RC300814,,Placements,R5017,TPP - Other
23/04/2020,3737246,Redacted Personal Data,165,Redacted Personal Data,RC300814,,Placements,R5017,TPP - Other
23/04/2020,3737247,Redacted Personal Data,145,Redacted Personal Data,RC300814,,Placements,R5017,TPP - Other
23/04/2020,3737273,Redacted Personal Data,172.8,Redacted Personal Data,RC300814,,Placements,R5017,TPP - Other
23/04/2020,3737274,Redacted Personal Data,129.6,Redacted Personal Data,RC300814,,Placements,R5017,TPP - Other
23/04/2020,3737311,Redacted Personal Data,102.6,Redacted Personal Data,RC300814,,Placements,R5017,TPP - Other
23/04/2020,3737312,Redacted Personal Data,45.68,Redacted Personal Data,RC300814,,Placements,R5017,TPP - Other
31/03/2020,60041450,11665,6292,Mark Bland Travel Ltd,RC502164,610 5787 48,Home to School Transport,R3207,Transport Contract
31/03/2020,60041451,11666,2420,Mark Bland Travel Ltd,RC502164,610 5787 48,Home to School Transport,R3207,Transport Contract
31/03/2020,60041452,11667,3089.9,Mark Bland Travel Ltd,RC502164,610 5787 48,Home to School Transport,R3207,Transport Contract
31/03/2020,60041453,11668,3294.06,Mark Bland Travel Ltd,RC502164,610 5787 48,Home to School Transport,R3207,Transport Contract
31/03/2020,60041454,11669,3300,Mark Bland Travel Ltd,RC502164,610 5787 48,Home to School Transport,R3207,Transport Contract
31/03/2020,60041455,11670,3300,Mark Bland Travel Ltd,RC502164,610 5787 48,Home to School Transport,R3207,Transport Contract
31/03/2020,60041456,11671,6270,Mark Bland Travel Ltd,RC502164,610 5787 48,Home to School Transport,R3207,Transport Contract
31/03/2020,60041457,11672,6050,Mark Bland Travel Ltd,RC502164,610 5787 48,Home to School Transport,R3207,Transport Contract
31/03/2020,60041458,11676,2083.33,Mark Bland Travel Ltd,RC502164,610 5787 48,Public Transport,R5017,TPP - Other
31/03/2020,60041459,11677,2083.33,Mark Bland Travel Ltd,RC502164,610 5787 48,Public Transport,R5017,TPP - Other
03/10/2019,60041468,11678,165,Mark Bland Travel Ltd,RC502164,610 5787 48,Education Improvement Consultancy,R4401,Fees and Charges
03/04/2020,60041630,11680,1620,Mark Bland Travel Ltd,RC502164,610 5787 48,Post 16 Transport,R3207,Transport Contract
03/04/2020,60041630,11680,33915,Mark Bland Travel Ltd,RC502164,610 5787 48,Home to School Transport,R3207,Transport Contract
14/04/2020,3737015,29798/11,200,Redacted Personal Data,RC506641,,ASC S&R DPs PD,R6280,Direct Payments
31/03/2020,60041471,SN3 MPT 004,390,Market Place Taxis,RC301298,,SEN Transport,R3200,Hire of Vehicles & Plant
31/03/2020,60041472,SN17 MPT 004,138,Market Place Taxis,RC301298,,SEN Transport,R3200,Hire of Vehicles & Plant
31/03/2020,60041473,SN60 MPT 008,375,Market Place Taxis,RC301298,,SEN Transport,R3200,Hire of Vehicles & Plant
31/03/2020,60041492,SN25 MPT 009,1405,Market Place Taxis,RC301298,,Children Looked After Transport,R3200,Hire of Vehicles & Plant
31/03/2020,60041493,SN40 MPT 008,565,Market Place Taxis,RC301298,,SEN Transport,R3200,Hire of Vehicles & Plant
31/03/2020,60041503,SN7 MPT 008,815,Market Place Taxis,RC301298,,SEN Transport,R3200,Hire of Vehicles & Plant
31/03/2020,60041504,SN20 MPT 008,760,Market Place Taxis,RC301298,,SEN Transport,R3200,Hire of Vehicles & Plant
04/04/2020,60041681,SN3 MPT 005,390,Market Place Taxis,RC301298,,SEN Transport,R3200,Hire of Vehicles & Plant
04/04/2020,60041682,SN7 MPT 009,815,Market Place Taxis,RC301298,,SEN Transport,R3200,Hire of Vehicles & Plant
04/04/2020,60041683,SN17 MPT 005,132,Market Place Taxis,RC301298,,SEN Transport,R3200,Hire of Vehicles & Plant
04/04/2020,60041684,SN20 MPT 009,760,Market Place Taxis,RC301298,,SEN Transport,R3200,Hire of Vehicles & Plant
04/04/2020,60041685,SN25 MPT 010,1405,Market Place Taxis,RC301298,,Children Looked After Transport,R3200,Hire of Vehicles & Plant
04/04/2020,60041686,SN40 MPT 009,565,Market Place Taxis,RC301298,,Home to School Transport,R3200,Hire of Vehicles & Plant
04/04/2020,60041687,SN60 MPT 009,375,Market Place Taxis,RC301298,,SEN Transport,R3200,Hire of Vehicles & Plant
14/04/2020,60041925,SN25 MPT 011,562,Market Place Taxis,RC301298,,Children Looked After Transport,R3200,Hire of Vehicles & Plant
14/04/2020,60041926,SN60 MPT 010,320,Market Place Taxis,RC301298,,SEN Transport,R3200,Hire of Vehicles & Plant
21/04/2020,60042163,SN25 MPT 012,562,Market Place Taxis,RC301298,,Children Looked After Transport,R3200,Hire of Vehicles & Plant
21/04/2020,60042164,SN60 MPT 011,320,Market Place Taxis,RC301298,,SEN Transport,R3200,Hire of Vehicles & Plant
27/04/2020,60042252,SN20 MPT010,760,Market Place Taxis,RC301298,,SEN Transport,R3200,Hire of Vehicles & Plant
27/04/2020,60042253,SN25 MPT 013,1405,Market Place Taxis,RC301298,,Children Looked After Transport,R3200,Hire of Vehicles & Plant
27/04/2020,60042258,SN3 MPT 006,390,Market Place Taxis,RC301298,,SEN Transport,R3200,Hire of Vehicles & Plant
27/04/2020,60042259,SN7 MPT 010,815,Market Place Taxis,RC301298,,SEN Transport,R3200,Hire of Vehicles & Plant
27/04/2020,60042260,Sn17 MPT 006,100,Market Place Taxis,RC301298,,SEN Transport,R3200,Hire of Vehicles & Plant
27/04/2020,60042268,SN40 MPT 010,565,Market Place Taxis,RC301298,,Home to School Transport,R3200,Hire of Vehicles & Plant
27/04/2020,60042269,SN60 MPT 012,400,Market Place Taxis,RC301298,,SEN Transport,R3200,Hire of Vehicles & Plant
01/04/2020,60041501,2402086 - 002400693,64.33,Martin Retail Group,RC502175,246 2778 39,Libraries,R4310,Newspapers and Magazines
03/04/2020,60041636,3386809,2500,Matchtech,RC301148,991 2571 00,Directorate Management - Places,R1100,Agency Staff
09/04/2020,60041847,3407301,2000,Matchtech,RC301148,991 2571 00,Highways Management,R1100,Agency Staff
09/04/2020,60041848,3407302,2000,Matchtech,RC301148,991 2571 00,Highways Management,R1100,Agency Staff
09/04/2020,60041849,3407303,2000,Matchtech,RC301148,991 2571 00,Highways Management,R1100,Agency Staff
23/04/2020,60042273,3411765,2000,Matchtech,RC301148,991 2571 00,Highways Management,R1100,Agency Staff
23/04/2020,60042274,3411766,1500,Matchtech,RC301148,991 2571 00,Highways Management,R1100,Agency Staff
14/04/2020,3737058,29798/54,552,Redacted Personal Data,RC509296,,ASC S&R DPs LD,R6280,Direct Payments
01/04/2020,60041713,696,5800.1,Max Associates (Holdings Ltd),RC301250,GB165 2424 19,Recreation and Leisure,R4400,Professional Fees
16/04/2020,3736970,Redacted Personal Data,1492.2,Redacted Personal Data,RC508234,,3 & 4 Year Old Nursery Funding,R5020,TPP - Nursery Provision
01/04/2020,60041719,42661,78,Melton Mowbray Tyre Recycling Centre,RC507527,970 505 131,Waste Management,R5021,TPP - Waste Disposal
01/04/2020,60041445,450/07347,2891,Mental Health Matters,RC300461,,DOLS,R5017,TPP - Other
30/03/2020,60041638,1299-200328,48.3,Mercury News Shop,RC502191,377 5866 89,Communication,R4701,Subscriptions
05/04/2020,60041679,210-200328,106.24,Mercury News Shop,RC502191,377 5866 89,Libraries,R4310,Newspapers and Magazines
03/04/2020,60041629,C54975,763.62,Metric Group Ltd,RC500201,692 3446 16,Parking,R5017,TPP - Other
01/04/2020,60041462,6608528,3150,Michael Page International Recruitment Ltd.,RC301276,354 2599 36,Property Services,R1100,Agency Staff
06/04/2020,60041694,6610627,3150,Michael Page International Recruitment Ltd.,RC301276,354 2599 36,Property Services,R1100,Agency Staff
02/04/2020,3736529,Redacted Personal Data,121.08,Redacted Personal Data,RC508044,,Placements,R5017,TPP - Other
08/04/2020,3736749,Redacted Personal Data,121.08,Redacted Personal Data,RC508044,,Placements,R5017,TPP - Other
16/04/2020,3737206,Redacted Personal Data,121.08,Redacted Personal Data,RC508044,,Placements,R5017,TPP - Other
23/04/2020,3737300,Redacted Personal Data,121.08,Redacted Personal Data,RC508044,,Placements,R5017,TPP - Other
17/04/2020,60042093,I0091325,650,Midlands Partnership NHS FT,RC508170,654441580,Sexual Health,R5017,TPP - Other
01/04/2020,60041219,52457,36.74,Millennium Telecom Ltd,RC508183,876312804,IT Operational Support,R4537,Computing - Internet
01/04/2020,60041220,52458,90,Millennium Telecom Ltd,RC508183,876312804,IT Operational Support,R4537,Computing - Internet
01/04/2020,60041221,52459,253.44,Millennium Telecom Ltd,RC508183,876312804,IT Operational Support,R4537,Computing - Internet
14/04/2020,60042144,52671,36.74,Millennium Telecom Ltd,RC508183,876312804,IT Operational Support,R4537,Computing - Internet
14/04/2020,60042145,52672,90,Millennium Telecom Ltd,RC508183,876312804,IT Operational Support,R4537,Computing - Internet
14/04/2020,60042146,52673,253.44,Millennium Telecom Ltd,RC508183,876312804,IT Operational Support,R4537,Computing - Internet
14/04/2020,3737055,29798/51,276,Redacted Personal Data,RC301143,,ASC S&R DPs LD,R6280,Direct Payments
14/04/2020,3737055,29798/51,276,Redacted Personal Data,RC301143,,ASC S&R DPs LD,R6280,Direct Payments
14/04/2020,3737124,29798/120,322,Redacted Personal Data,RC301098,,ASC S&R DPs LD,R6280,Direct Payments
14/04/2020,3737110,29798/106,92,Redacted Personal Data,RC300681,,ASC S&R DPs LD,R6280,Direct Payments
14/04/2020,3737110,29798/106,2138.99,Redacted Personal Data,RC300681,,ASC S&R DPs LD,R6280,Direct Payments
02/04/2020,3736517,Redacted Personal Data,172.8,Redacted Personal Data,RC507547,,Placements,R5017,TPP - Other
02/04/2020,3736521,Redacted Personal Data,222.96,Redacted Personal Data,RC507547,,Placements,R5017,TPP - Other
08/04/2020,3736737,Redacted Personal Data,172.8,Redacted Personal Data,RC507547,,Placements,R5017,TPP - Other
08/04/2020,3736741,Redacted Personal Data,222.96,Redacted Personal Data,RC507547,,Placements,R5017,TPP - Other
16/04/2020,3737194,Redacted Personal Data,172.8,Redacted Personal Data,RC507547,,Placements,R5017,TPP - Other
16/04/2020,3737198,Redacted Personal Data,222.96,Redacted Personal Data,RC507547,,Placements,R5017,TPP - Other
23/04/2020,3737288,Redacted Personal Data,172.8,Redacted Personal Data,RC507547,,Placements,R5017,TPP - Other
23/04/2020,3737292,Redacted Personal Data,222.96,Redacted Personal Data,RC507547,,Placements,R5017,TPP - Other
14/04/2020,3737134,29798/130,30,Redacted Personal Data,RC301162,,Carer Support,R6280,Direct Payments
14/04/2020,3737095,29798/91,83.08,Redacted Personal Data,RC509164,,ASC S&R DPs LD,R6280,Direct Payments
14/04/2020,3737095,29798/91,276,Redacted Personal Data,RC509164,,ASC S&R DPs LD,R6280,Direct Payments
14/04/2020,3737095,29798/91,1114.6,Redacted Personal Data,RC509164,,ASC S&R DPs LD,R6280,Direct Payments
14/04/2020,3737097,29798/93,92,Redacted Personal Data,RC509164,,Carer Support,R6280,Direct Payments
02/04/2020,3736462,Redacted Personal Data,145,Redacted Personal Data,RC506075,,Placements,R5017,TPP - Other
02/04/2020,3736463,Redacted Personal Data,165,Redacted Personal Data,RC506075,,Placements,R5017,TPP - Other
02/04/2020,3736492,Redacted Personal Data,218.81,Redacted Personal Data,RC506075,,Placements,R5017,TPP - Other
02/04/2020,3736493,Redacted Personal Data,164.11,Redacted Personal Data,RC506075,,Placements,R5017,TPP - Other
02/04/2020,3736538,Redacted Personal Data,15,Redacted Personal Data,RC506075,,Placements,R6291,Section 23 Payments
02/04/2020,3736544,Redacted Personal Data,200,Redacted Personal Data,RC506075,,Placements,R5017,TPP - Other
02/04/2020,3736555,Redacted Personal Data,10.8,Redacted Personal Data,RC506075,,Placements,R5017,TPP - Other
02/04/2020,3736556,Redacted Personal Data,9,Redacted Personal Data,RC506075,,Placements,R5017,TPP - Other
02/04/2020,3736557,Redacted Personal Data,33.3,Redacted Personal Data,RC506075,,Placements,R5017,TPP - Other
02/04/2020,3736558,Redacted Personal Data,7.9,Redacted Personal Data,RC506075,,Placements,R5017,TPP - Other
02/04/2020,3736559,Redacted Personal Data,132.3,Redacted Personal Data,RC506075,,Placements,R5017,TPP - Other
02/04/2020,3736560,Redacted Personal Data,128.21,Redacted Personal Data,RC506075,,Placements,R5017,TPP - Other
08/04/2020,3736686,Redacted Personal Data,165,Redacted Personal Data,RC506075,,Placements,R5017,TPP - Other
08/04/2020,3736715,Redacted Personal Data,218.81,Redacted Personal Data,RC506075,,Placements,R5017,TPP - Other
16/04/2020,3737145,Redacted Personal Data,165,Redacted Personal Data,RC506075,,Placements,R5017,TPP - Other
16/04/2020,3737172,Redacted Personal Data,218.81,Redacted Personal Data,RC506075,,Placements,R5017,TPP - Other
23/04/2020,3737239,Redacted Personal Data,165,Redacted Personal Data,RC506075,,Placements,R5017,TPP - Other
23/04/2020,3737266,Redacted Personal Data,218.81,Redacted Personal Data,RC506075,,Placements,R5017,TPP - Other
02/04/2020,3736461,Redacted Personal Data,249,Redacted Personal Data,RC500229,,Placements,R5017,TPP - Other
02/04/2020,3736491,Redacted Personal Data,218.81,Redacted Personal Data,RC500229,,Placements,R5017,TPP - Other
02/04/2020,3736537,Redacted Personal Data,15,Redacted Personal Data,RC500229,,Placements,R6291,Section 23 Payments
02/04/2020,3736543,Redacted Personal Data,200,Redacted Personal Data,RC500229,,Placements,R5017,TPP - Other
08/04/2020,3736685,Redacted Personal Data,249,Redacted Personal Data,RC500229,,Placements,R5017,TPP - Other
08/04/2020,3736714,Redacted Personal Data,218.81,Redacted Personal Data,RC500229,,Placements,R5017,TPP - Other
16/04/2020,3737144,Redacted Personal Data,249,Redacted Personal Data,RC500229,,Placements,R5017,TPP - Other
16/04/2020,3737171,Redacted Personal Data,218.81,Redacted Personal Data,RC500229,,Placements,R5017,TPP - Other
23/04/2020,3737238,Redacted Personal Data,249,Redacted Personal Data,RC500229,,Placements,R5017,TPP - Other
23/04/2020,3737265,Redacted Personal Data,218.81,Redacted Personal Data,RC500229,,Placements,R5017,TPP - Other
23/04/2020,3737223,Aiming High Short Break Scheme April 2020,1200,Redacted Personal Data,RC507077,,Aiming High,R4400,Professional Fees
31/03/2020,60041822,10721,1485,Monsido ApS,RC509514,DK33862377,IT Operational Support,R4535,Computing - Licences
01/04/2020,60041496,2405,300,Morton Media Services Ltd,RC300569,,ROPE - St Georges Barracks,R4400,Professional Fees
02/04/2020,3736523,Redacted Personal Data,404.59,Redacted Personal Data,RC508604,,Placements,R5017,TPP - Other
08/04/2020,3736743,Redacted Personal Data,404.59,Redacted Personal Data,RC508604,,Placements,R5017,TPP - Other
16/04/2020,3737200,Redacted Personal Data,404.59,Redacted Personal Data,RC508604,,Placements,R5017,TPP - Other
23/04/2020,3737294,Redacted Personal Data,404.59,Redacted Personal Data,RC508604,,Placements,R5017,TPP - Other
02/04/2020,3736465,Redacted Personal Data,206,Redacted Personal Data,RC506286,,Placements,R5017,TPP - Other
02/04/2020,3736495,Redacted Personal Data,218.81,Redacted Personal Data,RC506286,,Placements,R5017,TPP - Other
02/04/2020,3736540,Redacted Personal Data,15,Redacted Personal Data,RC506286,,Placements,R6291,Section 23 Payments
02/04/2020,3736547,Redacted Personal Data,200,Redacted Personal Data,RC506286,,Placements,R5017,TPP - Other
02/04/2020,3736562,Redacted Personal Data,64.35,Redacted Personal Data,RC506286,,Children Looked After,R5017,TPP - Other
02/04/2020,3736563,Redacted Personal Data,78.39,Redacted Personal Data,RC506286,,Placements,R5017,TPP - Other
02/04/2020,3736564,Redacted Personal Data,42.16,Redacted Personal Data,RC506286,,Placements,R5017,TPP - Other
08/04/2020,3736688,Redacted Personal Data,206,Redacted Personal Data,RC506286,,Placements,R5017,TPP - Other
08/04/2020,3736717,Redacted Personal Data,218.81,Redacted Personal Data,RC506286,,Placements,R5017,TPP - Other
16/04/2020,3737147,Redacted Personal Data,206,Redacted Personal Data,RC506286,,Placements,R5017,TPP - Other
16/04/2020,3737174,Redacted Personal Data,218.81,Redacted Personal Data,RC506286,,Placements,R5017,TPP - Other
23/04/2020,3737241,Redacted Personal Data,206,Redacted Personal Data,RC506286,,Placements,R5017,TPP - Other
23/04/2020,3737268,Redacted Personal Data,218.81,Redacted Personal Data,RC506286,,Placements,R5017,TPP - Other
02/04/2020,3736528,Redacted Personal Data,130.77,Redacted Personal Data,RC507903,,Placements,R5017,TPP - Other
08/04/2020,3736748,Redacted Personal Data,130.77,Redacted Personal Data,RC507903,,Placements,R5017,TPP - Other
16/04/2020,3737205,Redacted Personal Data,130.77,Redacted Personal Data,RC507903,,Placements,R5017,TPP - Other
23/04/2020,3737299,Redacted Personal Data,130.77,Redacted Personal Data,RC507903,,Placements,R5017,TPP - Other
02/04/2020,3736446,Redacted Personal Data,98.85,Redacted Personal Data,RC502418,,Care Leavers,R4900,Accomodation Costs
08/04/2020,3736680,Redacted Personal Data,98.85,Redacted Personal Data,RC502418,,Care Leavers,R4900,Accomodation Costs
16/04/2020,3737213,Redacted Personal Data,98.85,Redacted Personal Data,RC502418,,Care Leavers,R4900,Accomodation Costs
23/04/2020,3737305,Redacted Personal Data,98.85,Redacted Personal Data,RC502418,,Care Leavers,R4900,Accomodation Costs
14/04/2020,3737047,29798/43,184,Redacted Personal Data,RC300180,,Carer Support,R6280,Direct Payments
14/04/2020,3737108,29798/104,2415,Redacted Personal Data,RC300603,,ASC S&R DPs OP,R6280,Direct Payments
14/04/2020,3737125,29798/121,138,Redacted Personal Data,RC300868,,Carer Support,R6280,Direct Payments
14/04/2020,3737040,29798/36,368,Redacted Personal Data,RC300244,,Carer Support,R6280,Direct Payments
14/04/2020,3737077,29798/73,115,Redacted Personal Data,RC301122,,ASC S&R DPs LD,R6280,Direct Payments
14/04/2020,3737024,29798/20,1127,Redacted Personal Data,RC301152,,ASC S&R DPs PD,R6280,Direct Payments
14/04/2020,3737035,29798/31,184,Redacted Personal Data,RC508363,,Carer Support,R6280,Direct Payments
14/04/2020,3737133,29798/129,805,Redacted Personal Data,RC301237,,ASC S&R DPs OP,R6280,Direct Payments
14/04/2020,3737054,29798/50,92,Redacted Personal Data,RC301414,,ASC S&R DPs OP,R6280,Direct Payments
14/04/2020,3737115,29798/111,92,Redacted Personal Data,RC300720,,Carer Support,R6280,Direct Payments
14/04/2020,3737056,29798/52,276,Redacted Personal Data,RC508054,,ASC S&R DPs LD,R6280,Direct Payments
14/04/2020,3737056,29798/52,500,Redacted Personal Data,RC508054,,ASC S&R DPs LD,R6280,Direct Payments
02/04/2020,3736525,Redacted Personal Data,124,Redacted Personal Data,RC300006,,Placements,R5017,TPP - Other
08/04/2020,3736745,Redacted Personal Data,124,Redacted Personal Data,RC300006,,Placements,R5017,TPP - Other
16/04/2020,3737202,Redacted Personal Data,124,Redacted Personal Data,RC300006,,Placements,R5017,TPP - Other
23/04/2020,3737296,Redacted Personal Data,124,Redacted Personal Data,RC300006,,Placements,R5017,TPP - Other
14/04/2020,3737076,29798/72,6.57,Redacted Personal Data,RC509285,,Carer Support,R6280,Direct Payments
14/04/2020,3737060,29798/56,552,Redacted Personal Data,RC502586,,ASC S&R DPs PD,R6280,Direct Payments
14/04/2020,3737060,29798/56,552,Redacted Personal Data,RC502586,,ASC S&R DPs PD,R6280,Direct Payments
14/04/2020,3737060,29798/56,851,Redacted Personal Data,RC502586,,ASC S&R DPs PD,R6280,Direct Payments
14/04/2020,3737061,29798/57,276,Redacted Personal Data,RC502586,,Carer Support,R6280,Direct Payments
14/04/2020,3737071,29798/67,23,Redacted Personal Data,RC301418,,ASC S&R DPs OP,R6280,Direct Payments
14/04/2020,3737071,29798/67,46,Redacted Personal Data,RC301418,,ASC S&R DPs OP,R6280,Direct Payments
14/04/2020,3737071,29798/67,80.5,Redacted Personal Data,RC301418,,ASC S&R DPs OP,R6280,Direct Payments
14/04/2020,3737036,29798/32,184,Redacted Personal Data,RC300717,,Carer Support,R6280,Direct Payments
14/04/2020,3737016,29798/12,138,Redacted Personal Data,RC506786,,Carer Support,R6280,Direct Payments
03/04/2020,60041710,Redacted Personal Data,81,Redacted Personal Data,RC508809,,ASC S&R Homecare OP,R5029,TPP - Home Care
14/04/2020,3737123,29798/119,195.5,Redacted Personal Data,RC301411,,ASC S&R DPs PD,R6280,Direct Payments
14/04/2020,3737129,29798/125,177.43,Redacted Personal Data,RC301308,,ASC S&R DPs OP,R6280,Direct Payments
14/04/2020,3737129,29798/125,276,Redacted Personal Data,RC301308,,ASC S&R DPs OP,R6280,Direct Payments
14/04/2020,3737129,29798/125,276,Redacted Personal Data,RC301308,,ASC S&R DPs OP,R6280,Direct Payments
14/04/2020,3737129,29798/125,1771,Redacted Personal Data,RC301308,,ASC S&R DPs OP,R6280,Direct Payments
14/04/2020,3737008,29798/4,184,Redacted Personal Data,RC506745,,Carer Support,R6280,Direct Payments
14/04/2020,3737038,29798/34,230,Redacted Personal Data,RC300453,,Carer Support,R6280,Direct Payments
14/04/2020,3737032,29798/28,1932,Redacted Personal Data,RC301062,,ASC S&R DPs OP,R6280,Direct Payments
14/04/2020,3737020,29798/16,500,Redacted Personal Data,RC508397,,ASC S&R DPs LD,R6280,Direct Payments
14/04/2020,3737012,29798/8,23,Redacted Personal Data,RC301067,,Carer Support,R6280,Direct Payments
14/04/2020,3737121,29798/117,184,Redacted Personal Data,RC301121,,Carer Support,R6280,Direct Payments
14/04/2020,3737049,29798/45,138,Redacted Personal Data,RC301204,,Carer Support,R6280,Direct Payments
14/04/2020,3737089,29798/85,276,Redacted Personal Data,RC502592,,Carer Support,R6280,Direct Payments
14/04/2020,3737135,29798/131,214.56,Redacted Personal Data,RC301272,,ASC S&R DPs LD,R6280,Direct Payments
14/04/2020,3737135,29798/131,460,Redacted Personal Data,RC301272,,ASC S&R DPs LD,R6280,Direct Payments
14/04/2020,3737005,29798/1,276,Redacted Personal Data,RC300726,,Carer Support,R6280,Direct Payments
14/04/2020,3737122,29798/118,92,Redacted Personal Data,RC300985,,Carer Support,R6280,Direct Payments
14/04/2020,3737122,29798/118,138,Redacted Personal Data,RC300985,,Carer Support,R6280,Direct Payments
14/04/2020,3737090,29798/86,276,Redacted Personal Data,RC506916,,Carer Support,R6280,Direct Payments
14/04/2020,3737092,29798/88,22.83,Redacted Personal Data,RC506916,,ASC S&R DPs PD,R6280,Direct Payments
14/04/2020,3737092,29798/88,91.32,Redacted Personal Data,RC506916,,ASC S&R DPs PD,R6280,Direct Payments
14/04/2020,3737092,29798/88,273.96,Redacted Personal Data,RC506916,,ASC S&R DPs PD,R6280,Direct Payments
14/04/2020,3737092,29798/88,1017.75,Redacted Personal Data,RC506916,,ASC S&R DPs PD,R6280,Direct Payments
14/04/2020,3737092,29798/88,1357,Redacted Personal Data,RC506916,,ASC S&R DPs PD,R6280,Direct Payments
14/04/2020,3737092,29798/88,1357,Redacted Personal Data,RC506916,,ASC S&R DPs PD,R6280,Direct Payments
14/04/2020,3737046,29798/42,230,Redacted Personal Data,RC508851,,Carer Support,R6280,Direct Payments
14/04/2020,3737093,29798/89,92,Redacted Personal Data,RC506412,,Carer Support,R6280,Direct Payments
14/04/2020,3737068,29798/64,48,Redacted Personal Data,RC506275,,ASC S&R DPs OP,R6280,Direct Payments
14/04/2020,3737068,29798/64,92,Redacted Personal Data,RC506275,,ASC S&R DPs OP,R6280,Direct Payments
14/04/2020,3737120,29798/116,437,Redacted Personal Data,RC300727,,Carer Support,R6280,Direct Payments
14/04/2020,3737053,29798/49,92,Redacted Personal Data,RC300282,,Carer Support,R6280,Direct Payments
14/04/2020,3737065,29798/61,100,Redacted Personal Data,RC505508,,ASC S&R DPs LD,R6280,Direct Payments
14/04/2020,3737065,29798/61,184,Redacted Personal Data,RC505508,,ASC S&R DPs LD,R6280,Direct Payments
14/04/2020,3737074,29798/70,310.5,Redacted Personal Data,RC502467,,ASC S&R DPs LD,R6280,Direct Payments
14/04/2020,3737119,29798/115,322,Redacted Personal Data,RC300750,,Carer Support,R6280,Direct Payments
14/04/2020,3737102,29798/98,276,Redacted Personal Data,RC301134,,Carer Support,R6280,Direct Payments
14/04/2020,3737105,29798/101,138,Redacted Personal Data,RC300968,,Carer Support,R6280,Direct Payments
14/04/2020,3737066,29798/62,200,Redacted Personal Data,RC506898,,ASC S&R DPs LD,R6280,Direct Payments
14/04/2020,3737066,29798/62,552,Redacted Personal Data,RC506898,,ASC S&R DPs LD,R6280,Direct Payments
14/04/2020,3737099,29798/95,92,Redacted Personal Data,RC301005,,Carer Support,R6280,Direct Payments
14/04/2020,3737100,29798/96,69,Redacted Personal Data,RC301005,,ASC S&R DPs OP,R6280,Direct Payments
02/04/2020,3736466,Redacted Personal Data,206,Redacted Personal Data,RC502454,,Placements,R5017,TPP - Other
02/04/2020,3736467,Redacted Personal Data,249,Redacted Personal Data,RC502454,,Placements,R5017,TPP - Other
02/04/2020,3736468,Redacted Personal Data,206,Redacted Personal Data,RC502454,,Placements,R5017,TPP - Other
02/04/2020,3736496,Redacted Personal Data,218.81,Redacted Personal Data,RC502454,,Placements,R5017,TPP - Other
02/04/2020,3736497,Redacted Personal Data,164.11,Redacted Personal Data,RC502454,,Placements,R5017,TPP - Other
02/04/2020,3736498,Redacted Personal Data,146.6,Redacted Personal Data,RC502454,,Placements,R5017,TPP - Other
02/04/2020,3736536,Redacted Personal Data,15,Redacted Personal Data,RC502454,,Placements,R6291,Section 23 Payments
02/04/2020,3736548,Redacted Personal Data,200,Redacted Personal Data,RC502454,,Placements,R5017,TPP - Other
08/04/2020,3736689,Redacted Personal Data,206,Redacted Personal Data,RC502454,,Placements,R5017,TPP - Other
08/04/2020,3736690,Redacted Personal Data,249,Redacted Personal Data,RC502454,,Placements,R5017,TPP - Other
08/04/2020,3736691,Redacted Personal Data,206,Redacted Personal Data,RC502454,,Placements,R5017,TPP - Other
08/04/2020,3736718,Redacted Personal Data,218.81,Redacted Personal Data,RC502454,,Placements,R5017,TPP - Other
08/04/2020,3736719,Redacted Personal Data,164.11,Redacted Personal Data,RC502454,,Placements,R5017,TPP - Other
08/04/2020,3736720,Redacted Personal Data,146.6,Redacted Personal Data,RC502454,,Placements,R5017,TPP - Other
16/04/2020,3737148,Redacted Personal Data,206,Redacted Personal Data,RC502454,,Placements,R5017,TPP - Other
16/04/2020,3737149,Redacted Personal Data,249,Redacted Personal Data,RC502454,,Placements,R5017,TPP - Other
16/04/2020,3737150,Redacted Personal Data,206,Redacted Personal Data,RC502454,,Placements,R5017,TPP - Other
16/04/2020,3737175,Redacted Personal Data,218.81,Redacted Personal Data,RC502454,,Placements,R5017,TPP - Other
16/04/2020,3737176,Redacted Personal Data,164.11,Redacted Personal Data,RC502454,,Placements,R5017,TPP - Other
16/04/2020,3737177,Redacted Personal Data,146.6,Redacted Personal Data,RC502454,,Placements,R5017,TPP - Other
23/04/2020,3737242,Redacted Personal Data,206,Redacted Personal Data,RC502454,,Placements,R5017,TPP - Other
23/04/2020,3737243,Redacted Personal Data,249,Redacted Personal Data,RC502454,,Placements,R5017,TPP - Other
23/04/2020,3737244,Redacted Personal Data,206,Redacted Personal Data,RC502454,,Placements,R5017,TPP - Other
23/04/2020,3737269,Redacted Personal Data,218.81,Redacted Personal Data,RC502454,,Placements,R5017,TPP - Other
23/04/2020,3737270,Redacted Personal Data,164.11,Redacted Personal Data,RC502454,,Placements,R5017,TPP - Other
23/04/2020,3737271,Redacted Personal Data,146.6,Redacted Personal Data,RC502454,,Placements,R5017,TPP - Other
14/04/2020,3737132,29798/128,368,Redacted Personal Data,RC301120,,Carer Support,R6280,Direct Payments
16/04/2020,3736940,Redacted Personal Data,187.2,Redacted Personal Data,RC506113,,2 Year Old Nursery Funding,R5020,TPP - Nursery Provision
16/04/2020,3736971,Redacted Personal Data,486.2,Redacted Personal Data,RC506113,,3 & 4 Year Old Nursery Funding,R5020,TPP - Nursery Provision
14/04/2020,3737033,29798/29,184,Redacted Personal Data,RC508713,,Carer Support,R6280,Direct Payments
14/04/2020,3737111,29798/107,138,Redacted Personal Data,RC300295,,Carer Support,R6280,Direct Payments
14/04/2020,3737128,29798/124,483,Redacted Personal Data,RC300935,,ASC S&R DPs OP,R6280,Direct Payments
14/04/2020,3737026,29798/22,115,Redacted Personal Data,RC300715,,Carer Support,R6280,Direct Payments
14/04/2020,3737069,29798/65,805,Redacted Personal Data,RC300159,,ASC S&R DPs OP,R6280,Direct Payments
14/04/2020,3737031,29798/27,46,Redacted Personal Data,RC508295,,Carer Support,R6280,Direct Payments
14/04/2020,3737031,29798/27,92,Redacted Personal Data,RC508295,,Carer Support,R6280,Direct Payments
02/04/2020,3736565,Aiming High Short Break Scheme Apr 2020,600,Redacted Personal Data,RC300004,,Aiming High,R4400,Professional Fees
14/04/2020,3737062,29798/58,92,Redacted Personal Data,RC300557,,Carer Support,R6280,Direct Payments
14/04/2020,3737091,29798/87,184,Redacted Personal Data,RC301163,,Carer Support,R6280,Direct Payments
14/04/2020,3737042,29798/38,138,Redacted Personal Data,RC301115,,Carer Support,R6280,Direct Payments
14/04/2020,3737063,29798/59,160,Redacted Personal Data,RC301240,,ASC S&R DPs OP,R6280,Direct Payments
14/04/2020,3737063,29798/59,621,Redacted Personal Data,RC301240,,ASC S&R DPs OP,R6280,Direct Payments
14/04/2020,3737029,29798/25,30.28,Redacted Personal Data,RC300642,,ASC S&R DPs OP,R6280,Direct Payments
14/04/2020,3737029,29798/25,3622.5,Redacted Personal Data,RC300642,,ASC S&R DPs OP,R6280,Direct Payments
14/04/2020,3737107,29798/103,92,Redacted Personal Data,RC300917,,Carer Support,R6280,Direct Payments
14/04/2020,3737138,29798/134,1679,Redacted Personal Data,RC301358,,ASC S&R DPs OP,R6280,Direct Payments
14/04/2020,3737019,29798/15,839.5,Redacted Personal Data,RC301199,,ASC S&R DPs OP,R6280,Direct Payments
14/04/2020,3737114,29798/110,92,Redacted Personal Data,RC300983,,Carer Support,R6280,Direct Payments
14/04/2020,3737130,29798/126,40,Redacted Personal Data,RC300999,,Carer Support,R6280,Direct Payments
14/04/2020,3737079,29798/75,45,Redacted Personal Data,RC502472,,ASC S&R DPs LD,R6280,Direct Payments
14/04/2020,3737079,29798/75,483,Redacted Personal Data,RC502472,,ASC S&R DPs LD,R6280,Direct Payments
14/04/2020,3737080,29798/76,65.71,Redacted Personal Data,RC502472,,Carer Support,R6280,Direct Payments
14/04/2020,3737080,29798/76,92,Redacted Personal Data,RC502472,,Carer Support,R6280,Direct Payments
14/04/2020,3737080,29798/76,138,Redacted Personal Data,RC502472,,Carer Support,R6280,Direct Payments
14/04/2020,3737080,29798/76,184,Redacted Personal Data,RC502472,,Carer Support,R6280,Direct Payments
14/04/2020,3737018,29798/14,92,Redacted Personal Data,RC301170,,Carer Support,R6280,Direct Payments
14/04/2020,3737088,29798/84,230,Redacted Personal Data,RC503422,,Carer Support,R6280,Direct Payments
14/04/2020,3737087,29798/83,184,Redacted Personal Data,RC300967,,Carer Support,R6280,Direct Payments
14/04/2020,3737096,29798/92,2898,Redacted Personal Data,RC503306,,ASC S&R DPs OP,R6280,Direct Payments
14/04/2020,3737025,29798/21,46,Redacted Personal Data,RC301309,,Carer Support,R6280,Direct Payments
14/04/2020,3737070,29798/66,138,Redacted Personal Data,RC301365,,Carer Support,R6280,Direct Payments
14/04/2020,3737023,29798/19,92,Redacted Personal Data,RC301116,,Carer Support,R6280,Direct Payments
14/04/2020,3737051,29798/47,184,Redacted Personal Data,RC300116,,Carer Support,R6280,Direct Payments
14/04/2020,3737112,29798/108,368,Redacted Personal Data,RC300749,,Carer Support,R6280,Direct Payments
08/04/2020,3736756,Aiming High Short Break Scheme Apr 2020,500,Redacted Personal Data,RC301228,,Aiming High,R4400,Professional Fees
14/04/2020,3737126,29798/122,276,Redacted Personal Data,RC301055,,Carer Support,R6280,Direct Payments
14/04/2020,3737048,29798/44,92,Redacted Personal Data,RC301364,,Carer Support,R6280,Direct Payments
14/04/2020,3737106,29798/102,230,Redacted Personal Data,RC300279,,Carer Support,R6280,Direct Payments
14/04/2020,3737037,29798/33,322,Redacted Personal Data,RC509248,,ASC S&R DPs OP,R6280,Direct Payments
02/04/2020,3736531,Redacted Personal Data,163,Redacted Personal Data,RC506313,,Placements,R5017,TPP - Other
02/04/2020,3736532,Redacted Personal Data,163,Redacted Personal Data,RC506313,,Placements,R5017,TPP - Other
08/04/2020,3736751,Redacted Personal Data,163,Redacted Personal Data,RC506313,,Placements,R5017,TPP - Other
08/04/2020,3736752,Redacted Personal Data,163,Redacted Personal Data,RC506313,,Placements,R5017,TPP - Other
16/04/2020,3737208,Redacted Personal Data,163,Redacted Personal Data,RC506313,,Placements,R5017,TPP - Other
16/04/2020,3737209,Redacted Personal Data,163,Redacted Personal Data,RC506313,,Placements,R5017,TPP - Other
23/04/2020,3737302,Redacted Personal Data,163,Redacted Personal Data,RC506313,,Placements,R5017,TPP - Other
23/04/2020,3737303,Redacted Personal Data,163,Redacted Personal Data,RC506313,,Placements,R5017,TPP - Other
14/04/2020,3737084,29798/80,184,Redacted Personal Data,RC300652,,Carer Support,R6280,Direct Payments
14/04/2020,3737127,29798/123,529,Redacted Personal Data,RC300950,,ASC S&R DPs OP,R6280,Direct Payments
14/04/2020,3737082,29798/78,1357,Redacted Personal Data,RC300953,,ASC S&R DPs OP,R6280,Direct Payments
14/04/2020,3737075,29798/71,138,Redacted Personal Data,RC300719,,Carer Support,R6280,Direct Payments
14/04/2020,3737075,29798/71,483,Redacted Personal Data,RC300719,,Carer Support,R6280,Direct Payments
23/04/2020,3737221,Aiming High Short Break Scheme April 2020,600,Redacted Personal Data,RC301479,,Aiming High,R4400,Professional Fees
14/04/2020,3737098,29798/94,391,Redacted Personal Data,RC506717,,ASC S&R DPs PD,R6280,Direct Payments
14/04/2020,3737139,29798/135,92,Redacted Personal Data,RC301416,,Carer Support,R6280,Direct Payments
14/04/2020,3737013,29798/9,85.43,Redacted Personal Data,RC509221,,Carer Support,R6280,Direct Payments
14/04/2020,3737013,29798/9,92,Redacted Personal Data,RC509221,,Carer Support,R6280,Direct Payments
14/04/2020,3737116,29798/112,92,Redacted Personal Data,RC300716,,Carer Support,R6280,Direct Payments
14/04/2020,3737057,29798/53,7700,Redacted Personal Data,RC507361,,ASC S&R DPs LD,R6280,Direct Payments
14/04/2020,3737113,29798/109,184,Redacted Personal Data,RC300360,,Carer Support,R6280,Direct Payments
14/04/2020,3737103,29798/99,92,Redacted Personal Data,RC300051,,Carer Support,R6280,Direct Payments
02/04/2020,3736533,Redacted Personal Data,162.6,Redacted Personal Data,RC502491,,Placements,R5017,TPP - Other
08/04/2020,3736753,Redacted Personal Data,162.6,Redacted Personal Data,RC502491,,Placements,R5017,TPP - Other
16/04/2020,3737210,Redacted Personal Data,162.6,Redacted Personal Data,RC502491,,Placements,R5017,TPP - Other
23/04/2020,3737304,Redacted Personal Data,162.6,Redacted Personal Data,RC502491,,Placements,R5017,TPP - Other
14/04/2020,3737007,29798/3,200,Redacted Personal Data,RC506159,,ASC S&R DPs OP,R6280,Direct Payments
14/04/2020,3737039,29798/35,92,Redacted Personal Data,RC301099,,Carer Support,R6280,Direct Payments
02/04/2020,3736464,Redacted Personal Data,206,Redacted Personal Data,RC502500,,Placements,R5017,TPP - Other
02/04/2020,3736494,Redacted Personal Data,218.81,Redacted Personal Data,RC502500,,Placements,R5017,TPP - Other
02/04/2020,3736526,Redacted Personal Data,163,Redacted Personal Data,RC502500,,Placements,R5017,TPP - Other
02/04/2020,3736539,Redacted Personal Data,15,Redacted Personal Data,RC502500,,Placements,R6291,Section 23 Payments
02/04/2020,3736546,Redacted Personal Data,200,Redacted Personal Data,RC502500,,Placements,R5017,TPP - Other
08/04/2020,3736687,Redacted Personal Data,206,Redacted Personal Data,RC502500,,Placements,R5017,TPP - Other
08/04/2020,3736716,Redacted Personal Data,218.81,Redacted Personal Data,RC502500,,Placements,R5017,TPP - Other
08/04/2020,3736746,Redacted Personal Data,163,Redacted Personal Data,RC502500,,Placements,R5017,TPP - Other
14/04/2020,3737030,29798/26,27.72,Redacted Personal Data,RC507744,,ASC S&R DPs LD,R6280,Direct Payments
14/04/2020,3737030,29798/26,113.16,Redacted Personal Data,RC507744,,ASC S&R DPs LD,R6280,Direct Payments
14/04/2020,3737030,29798/26,184,Redacted Personal Data,RC507744,,ASC S&R DPs LD,R6280,Direct Payments
14/04/2020,3737030,29798/26,8085,Redacted Personal Data,RC507744,,ASC S&R DPs LD,R6280,Direct Payments
14/04/2020,3737043,29798/39,92,Redacted Personal Data,RC507744,,Carer Support,R6280,Direct Payments
16/04/2020,3737146,Redacted Personal Data,206,Redacted Personal Data,RC502500,,Placements,R5017,TPP - Other
16/04/2020,3737173,Redacted Personal Data,218.81,Redacted Personal Data,RC502500,,Placements,R5017,TPP - Other
16/04/2020,3737203,Redacted Personal Data,163,Redacted Personal Data,RC502500,,Placements,R5017,TPP - Other
23/04/2020,3737219,Aiming High Short Break Scheme April 2020,1200,Redacted Personal Data,RC300820,,Aiming High,R4400,Professional Fees
23/04/2020,3737220,Aiming High Short Break Scheme April 2020,600,Redacted Personal Data,RC300821,,Aiming High,R4400,Professional Fees
23/04/2020,3737240,Redacted Personal Data,206,Redacted Personal Data,RC502500,,Placements,R5017,TPP - Other
23/04/2020,3737267,Redacted Personal Data,218.81,Redacted Personal Data,RC502500,,Placements,R5017,TPP - Other
23/04/2020,3737297,Redacted Personal Data,163,Redacted Personal Data,RC502500,,Placements,R5017,TPP - Other
14/04/2020,3737086,29798/82,69,Redacted Personal Data,RC300806,,Carer Support,R6280,Direct Payments
14/04/2020,3737072,29798/68,184,Redacted Personal Data,RC500328,,Carer Support,R6280,Direct Payments
02/04/2020,3736481,Redacted Personal Data,206,Redacted Personal Data,RC505729,,Placements,R5017,TPP - Other
02/04/2020,3736482,Redacted Personal Data,165,Redacted Personal Data,RC505729,,Placements,R5017,TPP - Other
02/04/2020,3736512,Redacted Personal Data,218.81,Redacted Personal Data,RC505729,,Placements,R5017,TPP - Other
02/04/2020,3736513,Redacted Personal Data,164.11,Redacted Personal Data,RC505729,,Placements,R5017,TPP - Other
02/04/2020,3736553,Redacted Personal Data,200,Redacted Personal Data,RC505729,,Placements,R5017,TPP - Other
08/04/2020,3736704,Redacted Personal Data,206,Redacted Personal Data,RC505729,,Placements,R5017,TPP - Other
08/04/2020,3736705,Redacted Personal Data,206,Redacted Personal Data,RC505729,,Placements,R5017,TPP - Other
08/04/2020,3736706,Redacted Personal Data,165,Redacted Personal Data,RC505729,,Placements,R5017,TPP - Other
08/04/2020,3736732,Redacted Personal Data,218.81,Redacted Personal Data,RC505729,,Placements,R5017,TPP - Other
08/04/2020,3736733,Redacted Personal Data,164.11,Redacted Personal Data,RC505729,,Placements,R5017,TPP - Other
16/04/2020,3737140,Redacted Personal Data,94.5,Redacted Personal Data,RC505729,,Placements,R5017,TPP - Other
16/04/2020,3737162,Redacted Personal Data,206,Redacted Personal Data,RC505729,,Placements,R5017,TPP - Other
16/04/2020,3737163,Redacted Personal Data,165,Redacted Personal Data,RC505729,,Placements,R5017,TPP - Other
16/04/2020,3737189,Redacted Personal Data,218.81,Redacted Personal Data,RC505729,,Placements,R5017,TPP - Other
16/04/2020,3737190,Redacted Personal Data,164.11,Redacted Personal Data,RC505729,,Placements,R5017,TPP - Other
23/04/2020,3737256,Redacted Personal Data,206,Redacted Personal Data,RC505729,,Placements,R5017,TPP - Other
23/04/2020,3737257,Redacted Personal Data,165,Redacted Personal Data,RC505729,,Placements,R5017,TPP - Other
23/04/2020,3737283,Redacted Personal Data,218.81,Redacted Personal Data,RC505729,,Placements,R5017,TPP - Other
23/04/2020,3737284,Redacted Personal Data,164.11,Redacted Personal Data,RC505729,,Placements,R5017,TPP - Other
14/04/2020,3737064,29798/60,184,Redacted Personal Data,RC300876,,Carer Support,R6280,Direct Payments
14/04/2020,3737044,29798/40,885.5,Redacted Personal Data,RC300503,,ASC S&R DPs OP,R6280,Direct Payments
14/04/2020,3737052,29798/48,276,Redacted Personal Data,RC300849,,Carer Support,R6280,Direct Payments
14/04/2020,3737131,29798/127,92,Redacted Personal Data,RC301057,,Carer Support,R6280,Direct Payments
14/04/2020,3737137,29798/133,184,Redacted Personal Data,RC301239,,Carer Support,R6280,Direct Payments
14/04/2020,3737045,29798/41,460,Redacted Personal Data,RC300584,,ASC S&R DPs OP,R6280,Direct Payments
14/04/2020,3737067,29798/63,4468,Redacted Personal Data,RC507360,,ASC S&R DPs LD,R6280,Direct Payments
21/04/2020,60042099,CWD EXTRA PAYMENT FOR EC APRIL 2020,1138,Redacted Personal Data,RC503927,,Disabled Children,R6280,Direct Payments
14/04/2020,3737136,29798/132,92,Redacted Personal Data,RC301236,,Carer Support,R6280,Direct Payments
02/04/2020,3736518,Redacted Personal Data,163,Redacted Personal Data,RC508167,,Placements,R5017,TPP - Other
08/04/2020,3736738,Redacted Personal Data,163,Redacted Personal Data,RC508167,,Placements,R5017,TPP - Other
16/04/2020,3737195,Redacted Personal Data,163,Redacted Personal Data,RC508167,,Placements,R5017,TPP - Other
23/04/2020,3737289,Redacted Personal Data,163,Redacted Personal Data,RC508167,,Placements,R5017,TPP - Other
02/04/2020,3736480,Redacted Personal Data,165,Redacted Personal Data,RC507222,,Placements,R5017,TPP - Other
02/04/2020,3736511,Redacted Personal Data,218.81,Redacted Personal Data,RC507222,,Placements,R5017,TPP - Other
02/04/2020,3736552,Redacted Personal Data,200,Redacted Personal Data,RC507222,,Placements,R5017,TPP - Other
08/04/2020,3736703,Redacted Personal Data,165,Redacted Personal Data,RC507222,,Placements,R5017,TPP - Other
08/04/2020,3736731,Redacted Personal Data,218.81,Redacted Personal Data,RC507222,,Placements,R5017,TPP - Other
16/04/2020,3737161,Redacted Personal Data,165,Redacted Personal Data,RC507222,,Placements,R5017,TPP - Other
16/04/2020,3737188,Redacted Personal Data,218.81,Redacted Personal Data,RC507222,,Placements,R5017,TPP - Other
23/04/2020,3737255,Redacted Personal Data,165,Redacted Personal Data,RC507222,,Placements,R5017,TPP - Other
23/04/2020,3737282,Redacted Personal Data,218.81,Redacted Personal Data,RC507222,,Placements,R5017,TPP - Other
14/04/2020,3737011,29798/7,391,Redacted Personal Data,RC300077,,ASC S&R DPs PD,R6280,Direct Payments
14/04/2020,3737011,29798/7,414,Redacted Personal Data,RC300077,,ASC S&R DPs PD,R6280,Direct Payments
14/04/2020,3737083,29798/79,41.52,Redacted Personal Data,RC502871,,ASC S&R DPs LD,R6280,Direct Payments
14/04/2020,3737083,29798/79,276,Redacted Personal Data,RC502871,,ASC S&R DPs LD,R6280,Direct Payments
14/04/2020,3737083,29798/79,345,Redacted Personal Data,RC502871,,ASC S&R DPs LD,R6280,Direct Payments
23/04/2020,3737222,Aiming High Short Break Scheme April 2020,600,Redacted Personal Data,RC502871,,Aiming High,R4400,Professional Fees
02/04/2020,3736455,Redacted Personal Data,79,Redacted Personal Data,RC508803,,Children Looked After,R6292,Section 24 Payments
08/04/2020,3736677,Redacted Personal Data,79,Redacted Personal Data,RC508803,,Children Looked After,R6292,Section 24 Payments
16/04/2020,3737141,Redacted Personal Data,79,Redacted Personal Data,RC508803,,Children Looked After,R6292,Section 24 Payments
23/04/2020,3737231,Redacted Personal Data,79,Redacted Personal Data,RC508803,,Children Looked After,R6292,Section 24 Payments
23/01/2020,60042113,Redacted Personal Data,203.4,Redacted Personal Data,RC301167,,Special Needs Teaching (DSG),R5017,TPP - Other
23/01/2020,60042114,Redacted Personal Data,203.4,Redacted Personal Data,RC301167,,Special Needs Teaching (DSG),R5017,TPP - Other
23/01/2020,60042115,Redacted Personal Data,180,Redacted Personal Data,RC301167,,Special Needs Teaching (DSG),R5017,TPP - Other
08/04/2020,3736832,29717/75,4150.04,National Star Foundation,RC509253,,Learning Disability,R5028,TPP - Residental Care
21/04/2020,3737388,30007/76,4150.04,National Star Foundation,RC509253,,Learning Disability,R5028,TPP - Residental Care
01/04/2020,60041928,17302,3011.25,National Star Foundation,RC509253,,SEN (DSG),R5017,TPP - Other
14/04/2020,60042162,61831606,2262.23,NCER CIC,RC507147,131 1079 60,IT Operational Support,R4534,Computing - Maintenance Agreements
01/04/2020,60041721,9029637,3000,Neopost Finance Limited,RC500388,805 6441 40,Reprographics & Post,R4503,Postage
11/04/2020,60042111,2020023491,1109.57,Neopost Finance Limited,RC500388,805 6441 40,Reprographics & Post,R4503,Postage
31/03/2020,60041478,5395,3426.5,Nesbit Bros Ltd,RC500392,114 5625 90,Home to School Transport,R3207,Transport Contract
31/03/2020,60041478,5395,4111.8,Nesbit Bros Ltd,RC500392,114 5625 90,Home to School Transport,R3207,Transport Contract
31/03/2020,60041478,5395,4620,Nesbit Bros Ltd,RC500392,114 5625 90,Home to School Transport,R3207,Transport Contract
31/03/2020,60041590,5392,4840,Nesbit Bros Ltd,RC500392,114 5625 90,Post 16 Transport,R3207,Transport Contract
01/04/2020,60042047,NCW002833,12434.33,New College Worcester,RC301145,,Disabled Children,R5028,TPP - Residental Care
01/04/2020,60042047,NCW002833,17621.67,New College Worcester,RC301145,,SEN (DSG),R5017,TPP - Other
01/04/2020,60041558,4876,6591.8,New Earth Solutions (West) Limited T/A Mid-UK Recycling Ltd,RC505938,246 2500 29,Waste Management,R5003,TPP - Recycling Contract
01/04/2020,60041559,4877,228.3,New Earth Solutions (West) Limited T/A Mid-UK Recycling Ltd,RC505938,246 2500 29,Waste Management,R5021,TPP - Waste Disposal
01/04/2020,60041653,4875,3045.12,New Earth Solutions (West) Limited T/A Mid-UK Recycling Ltd,RC505938,246 2500 29,Waste Management,R5021,TPP - Waste Disposal
01/04/2020,60041654,4878,1837.48,New Earth Solutions (West) Limited T/A Mid-UK Recycling Ltd,RC505938,246 2500 29,Waste Management,R5021,TPP - Waste Disposal
01/04/2020,60041655,4879,822.96,New Earth Solutions (West) Limited T/A Mid-UK Recycling Ltd,RC505938,246 2500 29,Waste Management,R5021,TPP - Waste Disposal
14/04/2020,60041969,NH140420,5871.5,New Hope Specialist Care Ltd,RC300956,,ASC S&R Homecare OP,R5029,TPP - Home Care
28/04/2020,60042333,745,12.8,New Leaf Triangle CIC,RC300536,,SEN (DSG),R5017,TPP - Other
08/04/2020,3736833,29718/76,1016,New Wycliffe Home,RC301382,,Older People,R5028,TPP - Residental Care
21/04/2020,3737389,30008/77,1016,New Wycliffe Home,RC301382,,Older People,R5028,TPP - Residental Care
08/04/2020,3736834,29719/77,970,Newton House,RC502622,,Older People,R5028,TPP - Residental Care
21/04/2020,3737390,30025/78,138.57,Newton House,RC502622,,Older People,R5028,TPP - Residental Care
21/04/2020,3737390,30025/78,207.86,Newton House,RC502622,,Older People,R5028,TPP - Residental Care
01/04/2020,60041416,7016703338,224.31,NHS East Leicester & Rutland CCG,RC508010,654463328,Substance Misuse,R5017,TPP - Other
01/04/2020,60041416,7016703338,1140.78,NHS East Leicester & Rutland CCG,RC508010,654463328,Sexual Health,R5017,TPP - Other
16/03/2020,60041723,CAVE MAR 2020,250,Nic Barker Ltd,RC300026,241 1337 49,Environmental Maintenance,R2076,Grounds Maintenance - Non Contract
07/04/2020,60041919,07/04/2020 - Keany,250,Nic Barker Ltd,RC300026,241 1337 49,Waste Management,R5000,TPP - Grounds Maintenance
02/04/2020,60041920,Redacted Personal Data,50,Nic Barker Ltd,RC300026,241 1337 49,Waste Management,R5000,TPP - Grounds Maintenance
12/04/2020,60041921,12/04/2020,509,Nic Barker Ltd,RC300026,241 1337 49,Public Rights of Way,R5009,TPP - Highway`s
12/04/2020,60041921,12/04/2020,900,Nic Barker Ltd,RC300026,241 1337 49,Public Rights of Way,R5009,TPP - Highway`s
02/04/2020,3736459,Redacted Personal Data,206,Redacted Personal Data,RC508869,,Placements,R5017,TPP - Other
02/04/2020,3736460,Redacted Personal Data,206,Redacted Personal Data,RC508869,,Placements,R5017,TPP - Other
02/04/2020,3736490,Redacted Personal Data,218.81,Redacted Personal Data,RC508869,,Placements,R5017,TPP - Other
02/04/2020,3736534,Redacted Personal Data,15,Redacted Personal Data,RC508869,,Placements,R6291,Section 23 Payments
02/04/2020,3736542,Redacted Personal Data,200,Redacted Personal Data,RC508869,,Placements,R5017,TPP - Other
08/04/2020,3736684,Redacted Personal Data,206,Redacted Personal Data,RC508869,,Placements,R5017,TPP - Other
08/04/2020,3736713,Redacted Personal Data,218.81,Redacted Personal Data,RC508869,,Placements,R5017,TPP - Other
16/04/2020,3737143,Redacted Personal Data,206,Redacted Personal Data,RC508869,,Placements,R5017,TPP - Other
16/04/2020,3737170,Redacted Personal Data,218.81,Redacted Personal Data,RC508869,,Placements,R5017,TPP - Other
23/04/2020,3737237,Redacted Personal Data,206,Redacted Personal Data,RC508869,,Placements,R5017,TPP - Other
23/04/2020,3737264,Redacted Personal Data,218.81,Redacted Personal Data,RC508869,,Placements,R5017,TPP - Other
28/04/2020,60042298,Q442402,1514,NLA Media Access Ltd,RC507164,661 8652 15,Communication,R4701,Subscriptions
07/04/2020,3736566,10097562,10000,NNDR (BACS),RC502834,,Covid Business Rates Support,R5017,TPP - Other
07/04/2020,3736567,10095884,10000,NNDR (BACS),RC502834,,Covid Business Rates Support,R5017,TPP - Other
07/04/2020,3736568,10096843,10000,NNDR (BACS),RC502834,,Covid Business Rates Support,R5017,TPP - Other
07/04/2020,3736569,10091766,10000,NNDR (BACS),RC502834,,Covid Business Rates Support,R5017,TPP - Other
07/04/2020,3736570,10096709,10000,NNDR (BACS),RC502834,,Covid Business Rates Support,R5017,TPP - Other
07/04/2020,3736571,10000362,10000,NNDR (BACS),RC502834,,Covid Business Rates Support,R5017,TPP - Other
07/04/2020,3736572,10091176,10000,NNDR (BACS),RC502834,,Covid Business Rates Support,R5017,TPP - Other
07/04/2020,3736573,10049511,10000,NNDR (BACS),RC502834,,Covid Business Rates Support,R5017,TPP - Other
07/04/2020,3736574,10039775,10000,NNDR (BACS),RC502834,,Covid Business Rates Support,R5017,TPP - Other
07/04/2020,3736575,10076698,10000,NNDR (BACS),RC502834,,Covid Business Rates Support,R5017,TPP - Other
07/04/2020,3736576,10097508,10000,NNDR (BACS),RC502834,,Covid Business Rates Support,R5017,TPP - Other
07/04/2020,3736577,10045716,10000,NNDR (BACS),RC502834,,Covid Business Rates Support,R5017,TPP - Other
07/04/2020,3736578,10094029,10000,NNDR (BACS),RC502834,,Covid Business Rates Support,R5017,TPP - Other
07/04/2020,3736579,10017662,10000,NNDR (BACS),RC502834,,Covid Business Rates Support,R5017,TPP - Other
07/04/2020,3736580,10042219,10000,NNDR (BACS),RC502834,,Covid Business Rates Support,R5017,TPP - Other
07/04/2020,3736581,10058513,10000,NNDR (BACS),RC502834,,Covid Business Rates Support,R5017,TPP - Other
07/04/2020,3736582,10035639,25000,NNDR (BACS),RC502834,,Covid Business Rates Support,R5017,TPP - Other
07/04/2020,3736583,10020483,25000,NNDR (BACS),RC502834,,Covid Business Rates Support,R5017,TPP - Other
07/04/2020,3736584,10083634,25000,NNDR (BACS),RC502834,,Covid Business Rates Support,R5017,TPP - Other
07/04/2020,3736585,10093551,25000,NNDR (BACS),RC502834,,Covid Business Rates Support,R5017,TPP - Other
07/04/2020,3736586,10044775,25000,NNDR (BACS),RC502834,,Covid Business Rates Support,R5017,TPP - Other
07/04/2020,3736587,10036106,25000,NNDR (BACS),RC502834,,Covid Business Rates Support,R5017,TPP - Other
07/04/2020,3736588,10069893,25000,NNDR (BACS),RC502834,,Covid Business Rates Support,R5017,TPP - Other
07/04/2020,3736589,10055796,25000,NNDR (BACS),RC502834,,Covid Business Rates Support,R5017,TPP - Other
07/04/2020,3736614,10069786,25000,NNDR (BACS),RC502834,,Covid Business Rates Support,R5017,TPP - Other
14/04/2020,3736921,10097885,10000,NNDR (BACS),RC502834,,Covid Business Rates Support,R5017,TPP - Other
27/04/2020,3737472,10011104,10000,NNDR (BACS),RC502834,,Covid Business Rates Support,R5017,TPP - Other
01/04/2020,60041555,11810,311.35,Normanton Screen Print,RC507609,289 1992 93,Street Cleaning,R4000,Furniture & Equipment
08/04/2020,3736644,Apr 2020 dripfeed - Schools Block Allocation,57698,North Luffenham C Of E Primary School,RC500422,,DSG,R6300,Schools - Budget Share
08/04/2020,3736645,Apr 2020 dripfeed - High Needs Block Allocation,374,North Luffenham C Of E Primary School,RC500422,,SEN (DSG),R6300,Schools - Budget Share
08/04/2020,3736646,Apr 2020 dripfeed - Forces Pupil Premium,568,North Luffenham C Of E Primary School,RC500422,,Pupil Premium,R6300,Schools - Budget Share
08/04/2020,3736647,Apr 2020 dripfeed - Disadvantaged Pupil Premium,1569,North Luffenham C Of E Primary School,RC500422,,Pupil Premium,R6300,Schools - Budget Share
08/04/2020,3736670,Apr 2020 dripfeed - Post CLA Pupil Premium,195,North Luffenham C Of E Primary School,RC500422,,Pupil Premium,R6300,Schools - Budget Share
08/04/2020,3736673,Apr 2020 dripfeed - PE & Sport Grant,7350,North Luffenham C Of E Primary School,RC500422,,Pupil Premium,R5022,TPP - Schools & Colleges
14/04/2020,60041933,5148778,428,Northamptonshire Healthcare NHS Foundation Trust,RC508217,654 4039 40,Sexual Health,R5017,TPP - Other
01/04/2020,60041660,INV-0434,700.01,Northants County Scout Council,RC509104,695 0283 15,Aiming High,R4401,Fees and Charges
29/04/2020,60042309,SI-227,84,Noticeboards  Countrywide Ltd,RC301481,307244427,Children's Centres - Revenue,R4000,Furniture & Equipment
01/04/2020,60041414,853609377,99,Nottingham City Council,RC502105,118 0454 92,"Training, Confs & Seminars",R4405,Training Charges
01/04/2020,60041675,1000126171,248.59,Nottingham University Hospitals NHS Trust,RC508895,654 4348 27,Sexual Health,R5017,TPP - Other
08/04/2020,3736835,29683/78,938,Oak House Residential Home Ltd,RC502623,,Older People,R5028,TPP - Residental Care
08/04/2020,3736836,29682/79,335,Oak House Residential Home Ltd,RC502623,,Older People,R5025,Short Term Care
08/04/2020,3736836,29682/79,1876,Oak House Residential Home Ltd,RC502623,,Older People,R5025,Short Term Care
08/04/2020,3736837,29683/80,938,Oak House Residential Home Ltd,RC502623,,Older People,R5025,Short Term Care
08/04/2020,3736839,29683/82,938,Oak House Residential Home Ltd,RC502623,,ASC P&S Respite OP,R5018,Respite
21/04/2020,3737391,29979/79,341.43,Oak House Residential Home Ltd,RC502623,,Older People,R5028,TPP - Residental Care
21/04/2020,3737391,29979/79,478,Oak House Residential Home Ltd,RC502623,,Older People,R5028,TPP - Residental Care
21/04/2020,3737391,29979/79,956,Oak House Residential Home Ltd,RC502623,,Older People,R5028,TPP - Residental Care
21/04/2020,3737392,29979/80,341.43,Oak House Residential Home Ltd,RC502623,,Older People,R5025,Short Term Care
21/04/2020,3737392,29979/80,478,Oak House Residential Home Ltd,RC502623,,Older People,R5025,Short Term Care
21/04/2020,3737392,29979/80,956,Oak House Residential Home Ltd,RC502623,,Older People,R5025,Short Term Care
21/04/2020,3737393,29978/81,335,Oak House Residential Home Ltd,RC502623,,Older People,R5028,TPP - Residental Care
21/04/2020,3737393,29978/81,1876,Oak House Residential Home Ltd,RC502623,,Older People,R5028,TPP - Residental Care
21/04/2020,3737394,29979/82,938,Oak House Residential Home Ltd,RC502623,,Older People,R5028,TPP - Residental Care
21/04/2020,3737394,29979/82,938,Oak House Residential Home Ltd,RC502623,,Older People,R5028,TPP - Residental Care
08/04/2020,3736648,Apr 2020 dripfeed - Schools Block Allocation,96227,Oakham C Of E Primary School,RC500457,,DSG,R6300,Schools - Budget Share
08/04/2020,3736649,Apr 2020 dripfeed - High Needs Statemented Pupils,4175,Oakham C Of E Primary School,RC500457,,SEN (DSG),R6300,Schools - Budget Share
08/04/2020,3736650,Apr 2020 dripfeed - High Needs Placement Funding,11666,Oakham C Of E Primary School,RC500457,,SEN (DSG),R6300,Schools - Budget Share
08/04/2020,3736651,Apr 2020 dripfeed - High Needs Additional Support,10521,Oakham C Of E Primary School,RC500457,,SEN (DSG),R6300,Schools - Budget Share
08/04/2020,3736652,Apr 2020 dripfeed - Forces Pupil Premium,413,Oakham C Of E Primary School,RC500457,,Pupil Premium,R6300,Schools - Budget Share
08/04/2020,3736653,Apr 2020 dripfeed - Disadvantaged Pupil Premium,4595,Oakham C Of E Primary School,RC500457,,Pupil Premium,R6300,Schools - Budget Share
08/04/2020,3736674,Apr 2020 dripfeed - PE & Sport Grant,7600,Oakham C Of E Primary School,RC500457,,Pupil Premium,R5022,TPP - Schools & Colleges
08/04/2020,3736675,Apr 2020 dripfeed - DFC,1745,Oakham C Of E Primary School,RC500457,,Capital Programme People - Adults,C1150,Capital Grant Expenditure
28/04/2020,60042331,SINCC3F50126,3216,Ofsted,RC500481,888 8076 50,Adoption,R4701,Subscriptions
28/04/2020,60042332,SINCC3F50295,2059,Ofsted,RC500481,888 8076 50,Adoption,R4701,Subscriptions
16/04/2020,3736939,Redacted Personal Data,99.84,Redacted Personal Data,RC301224,,2 Year Old Nursery Funding,R5020,TPP - Nursery Provision
16/04/2020,3736969,Redacted Personal Data,183.6,Redacted Personal Data,RC301224,,3 & 4 Year Old Nursery Funding,R5020,TPP - Nursery Provision
23/04/2020,3737228,Redacted Personal Data,1125,Redacted Personal Data,RC301224,,Children's Centres - Revenue,R4401,Fees and Charges
21/04/2020,60042185,21,75,Redacted Personal Data,RC300240,,Children's Centres - Revenue,R4401,Fees and Charges
07/04/2020,3736590,10097562,10000,One off Invoice Payments - BACS,RC300802,,Covid Business Rates Support,R5017,TPP - Other
07/04/2020,3736591,10095884,10000,One off Invoice Payments - BACS,RC300802,,Covid Business Rates Support,R5017,TPP - Other
07/04/2020,3736592,10096843,10000,One off Invoice Payments - BACS,RC300802,,Covid Business Rates Support,R5017,TPP - Other
07/04/2020,3736593,10091766,10000,One off Invoice Payments - BACS,RC300802,,Covid Business Rates Support,R5017,TPP - Other
07/04/2020,3736594,10096709,10000,One off Invoice Payments - BACS,RC300802,,Covid Business Rates Support,R5017,TPP - Other
07/04/2020,3736595,10000362,10000,One off Invoice Payments - BACS,RC300802,,Covid Business Rates Support,R5017,TPP - Other
07/04/2020,3736596,10091176,10000,One off Invoice Payments - BACS,RC300802,,Covid Business Rates Support,R5017,TPP - Other
07/04/2020,3736597,10049511,10000,One off Invoice Payments - BACS,RC300802,,Covid Business Rates Support,R5017,TPP - Other
07/04/2020,3736598,10039775,10000,One off Invoice Payments - BACS,RC300802,,Covid Business Rates Support,R5017,TPP - Other
07/04/2020,3736599,10076698,10000,One off Invoice Payments - BACS,RC300802,,Covid Business Rates Support,R5017,TPP - Other
07/04/2020,3736600,10097508,10000,One off Invoice Payments - BACS,RC300802,,Covid Business Rates Support,R5017,TPP - Other
07/04/2020,3736601,10045716,10000,One off Invoice Payments - BACS,RC300802,,Covid Business Rates Support,R5017,TPP - Other
07/04/2020,3736602,10094029,10000,One off Invoice Payments - BACS,RC300802,,Covid Business Rates Support,R5017,TPP - Other
07/04/2020,3736603,10017662,10000,One off Invoice Payments - BACS,RC300802,,Covid Business Rates Support,R5017,TPP - Other
07/04/2020,3736604,10042219,10000,One off Invoice Payments - BACS,RC300802,,Covid Business Rates Support,R5017,TPP - Other
07/04/2020,3736605,10058513,10000,One off Invoice Payments - BACS,RC300802,,Covid Business Rates Support,R5017,TPP - Other
07/04/2020,3736606,10035639,25000,One off Invoice Payments - BACS,RC300802,,Covid Business Rates Support,R5017,TPP - Other
07/04/2020,3736607,10020483,25000,One off Invoice Payments - BACS,RC300802,,Covid Business Rates Support,R5017,TPP - Other
07/04/2020,3736608,10083634,25000,One off Invoice Payments - BACS,RC300802,,Covid Business Rates Support,R5017,TPP - Other
07/04/2020,3736609,10093551,25000,One off Invoice Payments - BACS,RC300802,,Covid Business Rates Support,R5017,TPP - Other
07/04/2020,3736610,10044775,25000,One off Invoice Payments - BACS,RC300802,,Covid Business Rates Support,R5017,TPP - Other
07/04/2020,3736611,10036106,25000,One off Invoice Payments - BACS,RC300802,,Covid Business Rates Support,R5017,TPP - Other
07/04/2020,3736612,10069893,25000,One off Invoice Payments - BACS,RC300802,,Covid Business Rates Support,R5017,TPP - Other
07/04/2020,3736613,10055796,25000,One off Invoice Payments - BACS,RC300802,,Covid Business Rates Support,R5017,TPP - Other
16/04/2020,3736925,Welland Valley 25389,155.77,One off Invoice Payments - BACS,RC300802,,Children Looked After,R4900,Accomodation Costs
01/04/2020,60041943,6527-PRT3,100,One off Invoice Payments - BACS,RC300802,,Legal Services,R4400,Professional Fees
01/04/2020,60041944,100869,508.99,One off Invoice Payments - BACS,RC300802,,Covid_19 - Social Care,R4000,Furniture & Equipment
22/04/2020,60042176,Cancelled Course - APO7T5 Pottery Friday am,60,One off Invoice Payments - BACS,RC300802,,Community Learning,R9320,Fees - Courses
22/04/2020,60042177,Parking Refunds,1382.4,One off Invoice Payments - BACS,RC300802,,Parking,R9313,Fees - Parking
24/04/2020,60042199,INV-0001,1350,One off Invoice Payments - BACS,RC300802,,Covid_19 - Social Care,R4000,Furniture & Equipment
28/04/2020,60042358,SCHOOL TRANSPORT REFUND FOR KR,173.33,One off Invoice Payments - BACS,RC300802,,Post 16 Transport,R9308,Fees - Other
28/04/2020,60042359,SCHOOL TRANSPORT REFUND FOR KC,173.33,One off Invoice Payments - BACS,RC300802,,Post 16 Transport,R9308,Fees - Other
28/04/2020,60042360,SCHOOL TRANSPORT REFUND FOR JA,173.33,One off Invoice Payments - BACS,RC300802,,Post 16 Transport,R9308,Fees - Other
28/04/2020,60042361,SCHOOL TRANSPORT REFUND FOR AH,85,One off Invoice Payments - BACS,RC300802,,Home to School Transport,R9308,Fees - Other
28/04/2020,60042362,SCHOOL TRANSPORT REFUND FOR IT-B,35,One off Invoice Payments - BACS,RC300802,,Home to School Transport,R9308,Fees - Other
28/04/2020,60042363,SCHOOL TRANSPORT REFUND FOR RH,173.33,One off Invoice Payments - BACS,RC300802,,Home to School Transport,R9308,Fees - Other
29/04/2020,60042364,SCHOOL TRANSPORT REFUND FOR RR,91,One off Invoice Payments - BACS,RC300802,,Home to School Transport,R9308,Fees - Other
29/04/2020,60042365,SCHOOL TRANSPORT REFUND FOR LM & ZM,70,One off Invoice Payments - BACS,RC300802,,Home to School Transport,R9308,Fees - Other
29/04/2020,60042366,SCHOOL TRANSPORT REFUND FOR AL & EL,182,One off Invoice Payments - BACS,RC300802,,Home to School Transport,R9308,Fees - Other
14/04/2020,60042049,INV-25703,510,Opus Pharmacy Services Ltd,RC500494,821 7566 25,"Training, Confs & Seminars",R4405,Training Charges
08/04/2020,3736840,29720/83,2852,Orchard Court Leicester Ltd,RC300743,,Learning Disability,R5028,TPP - Residental Care
21/04/2020,3737395,30014/83,2852,Orchard Court Leicester Ltd,RC300743,,Learning Disability,R5028,TPP - Residental Care
01/04/2020,60040654,1889,36,P & J Plumbing and Heating,RC500507,991 9126 83,Central Maintenance,R2003,R & M - Emergency Works
01/04/2020,60040654,1889,90,P & J Plumbing and Heating,RC500507,991 9126 83,Central Maintenance,R2003,R & M - Emergency Works
01/04/2020,60041700,1898,60,P & J Plumbing and Heating,RC500507,991 9126 83,Central Maintenance,R2003,R & M - Emergency Works
01/04/2020,60041701,1905,240,P & J Plumbing and Heating,RC500507,991 9126 83,Oakham Enterprise Park,R2004,R & M - Programmed
01/04/2020,60042232,121930,77.34,Packaging Environmental Ltd,RC300980,908 7821 96,Admin Buildings,R4100,Refreshments & Hospitality
28/04/2020,60042299,LR71,2.61,Page 45,RC500516,136 4959 82,Libraries,R4503,Postage
28/04/2020,60042299,LR71,93.5,Page 45,RC500516,136 4959 82,Libraries,R4310,Newspapers and Magazines
31/03/2020,60041670,RCC53,10323,Partners in Psychology,RC508979,,SEN Operations,R4400,Professional Fees
31/03/2020,60041670,RCC53,28147.5,Partners in Psychology,RC508979,,SEN Operations,R4400,Professional Fees
02/04/2020,3736483,Redacted Personal Data,249,Redacted Personal Data,RC507963,,Placements,R5017,TPP - Other
02/04/2020,3736514,Redacted Personal Data,218.81,Redacted Personal Data,RC507963,,Placements,R5017,TPP - Other
02/04/2020,3736541,Redacted Personal Data,15,Redacted Personal Data,RC507963,,Placements,R6291,Section 23 Payments
02/04/2020,3736554,Redacted Personal Data,200,Redacted Personal Data,RC507963,,Placements,R5017,TPP - Other
08/04/2020,3736707,Redacted Personal Data,249,Redacted Personal Data,RC507963,,Placements,R5017,TPP - Other
08/04/2020,3736708,Redacted Personal Data,249,Redacted Personal Data,RC507963,,Placements,R5017,TPP - Other
08/04/2020,3736734,Redacted Personal Data,218.81,Redacted Personal Data,RC507963,,Placements,R5017,TPP - Other
16/04/2020,3737164,Redacted Personal Data,249,Redacted Personal Data,RC507963,,Placements,R5017,TPP - Other
16/04/2020,3737191,Redacted Personal Data,218.81,Redacted Personal Data,RC507963,,Placements,R5017,TPP - Other
23/04/2020,3737258,Redacted Personal Data,249,Redacted Personal Data,RC507963,,Placements,R5017,TPP - Other
23/04/2020,3737285,Redacted Personal Data,218.81,Redacted Personal Data,RC507963,,Placements,R5017,TPP - Other
02/04/2020,3736474,Redacted Personal Data,145,Redacted Personal Data,RC301311,,Placements,R5017,TPP - Other
02/04/2020,3736475,Redacted Personal Data,249,Redacted Personal Data,RC301311,,Placements,R5017,TPP - Other
02/04/2020,3736476,Redacted Personal Data,249,Redacted Personal Data,RC301311,,Placements,R5017,TPP - Other
02/04/2020,3736504,Redacted Personal Data,124.74,Redacted Personal Data,RC301311,,Placements,R5017,TPP - Other
02/04/2020,3736505,Redacted Personal Data,93.56,Redacted Personal Data,RC301311,,Placements,R5017,TPP - Other
08/04/2020,3736698,Redacted Personal Data,145,Redacted Personal Data,RC301311,,Placements,R5017,TPP - Other
08/04/2020,3736699,Redacted Personal Data,249,Redacted Personal Data,RC301311,,Placements,R5017,TPP - Other
08/04/2020,3736726,Redacted Personal Data,124.74,Redacted Personal Data,RC301311,,Placements,R5017,TPP - Other
08/04/2020,3736727,Redacted Personal Data,93.56,Redacted Personal Data,RC301311,,Placements,R5017,TPP - Other
16/04/2020,3737156,Redacted Personal Data,145,Redacted Personal Data,RC301311,,Placements,R5017,TPP - Other
16/04/2020,3737157,Redacted Personal Data,249,Redacted Personal Data,RC301311,,Placements,R5017,TPP - Other
16/04/2020,3737183,Redacted Personal Data,124.74,Redacted Personal Data,RC301311,,Placements,R5017,TPP - Other
16/04/2020,3737184,Redacted Personal Data,93.56,Redacted Personal Data,RC301311,,Placements,R5017,TPP - Other
23/04/2020,3737250,Redacted Personal Data,145,Redacted Personal Data,RC301311,,Placements,R5017,TPP - Other
23/04/2020,3737251,Redacted Personal Data,249,Redacted Personal Data,RC301311,,Placements,R5017,TPP - Other
23/04/2020,3737277,Redacted Personal Data,124.74,Redacted Personal Data,RC301311,,Placements,R5017,TPP - Other
23/04/2020,3737278,Redacted Personal Data,93.56,Redacted Personal Data,RC301311,,Placements,R5017,TPP - Other
01/04/2020,60042082,9421,2098,Pb Bus Marketing Limited,RC500531,675 6834 85,Concessionary Travel,R4515,Publicity
21/04/2020,3737471,30027/84,114.29,Peaker Park Care Village,RC507500,,Older People,R5034,TPP - Nursing Care
21/04/2020,3737471,30027/84,800,Peaker Park Care Village,RC507500,,Older People,R5034,TPP - Nursing Care
21/04/2020,3737471,30027/84,1600,Peaker Park Care Village,RC507500,,Older People,R5034,TPP - Nursing Care
06/04/2020,60041755,SN29 - March 2020,1940.51,Peterborough Car Ride,RC301291,,SEN Transport,R3200,Hire of Vehicles & Plant
14/04/2020,60042044,164129,55121.47,Peterborough City Council,RC500551,121 5335 13,Legal Services,R5011,TPP - Local Authorities
14/04/2020,60042045,164132,0.3,Peterborough City Council,RC500551,121 5335 13,Legal Services,R5011,TPP - Local Authorities
14/04/2020,60042045,164132,8625.83,Peterborough City Council,RC500551,121 5335 13,Legal Services,R5011,TPP - Local Authorities
31/03/2020,60041448,1027351,2550,Peterborough Regional College,RC507378,135 5511 30,Rutland Adult Skill Budget Post July 2014,R5022,TPP - Schools & Colleges
01/04/2020,60041547,67311975,745.27,Phs Group Plc,RC500568,542 9514 38,Museums Service,R2704,Refuse Collection
01/04/2020,60041548,67319646,102.1,Phs Group Plc,RC500568,542 9514 38,Libraries,R2704,Refuse Collection
08/04/2020,3736805,29708/48,445.51,PJ Care Ltd,RC507400,,Older People,R5034,TPP - Nursing Care
08/04/2020,3736805,29708/48,1633.55,PJ Care Ltd,RC507400,,Older People,R5034,TPP - Nursing Care
08/04/2020,3736805,29708/48,8316.24,PJ Care Ltd,RC507400,,Older People,R5034,TPP - Nursing Care
08/04/2020,3736806,29709/49,2064.18,PJ Care Ltd,RC507400,,Mental Health,R5028,TPP - Residental Care
08/04/2020,3736807,29709/50,2014.18,PJ Care Ltd,RC507400,,Physical Disability,R5028,TPP - Residental Care
08/04/2020,3736808,29709/51,4520.14,PJ Care Ltd,RC507400,,Older People,R5034,TPP - Nursing Care
21/04/2020,3737359,29990/47,1019.71,PJ Care Ltd,RC507400,,Older People,R5034,TPP - Nursing Care
21/04/2020,3737359,29990/47,3399.04,PJ Care Ltd,RC507400,,Older People,R5034,TPP - Nursing Care
21/04/2020,3737359,29990/47,19034.64,PJ Care Ltd,RC507400,,Older People,R5034,TPP - Nursing Care
21/04/2020,3737360,30000/48,2064.18,PJ Care Ltd,RC507400,,Mental Health,R5028,TPP - Residental Care
21/04/2020,3737361,30000/49,2014.18,PJ Care Ltd,RC507400,,Physical Disability,R5028,TPP - Residental Care
21/04/2020,3737362,30000/50,4520.14,PJ Care Ltd,RC507400,,Older People,R5034,TPP - Nursing Care
31/03/2020,60041540,INV-0165,8227.5,PMB Education Ltd,RC301376,,SEN (DSG),R4400,Professional Fees
01/04/2020,60039725,809626,450,Polycopy Limited,RC500592,115 9124 86,Reprographics & Post,R4300,Printing & Photocopying
31/03/2020,60041648,PP-08593210,132,Portal Plan Quest Ltd,RC300843,207 4030 52,Development Control,R9303,Fees - Planning Application
14/04/2020,60042006,PP-08625143,206,Portal Plan Quest Ltd,RC300843,207 4030 52,Development Control,R9303,Fees - Planning Application
08/04/2020,3736844,29680/87,467.14,Prime Life Ltd,RC502626,729 8397 74,Older People,R5034,TPP - Nursing Care
08/04/2020,3736844,29680/87,1207.14,Prime Life Ltd,RC502626,729 8397 74,Older People,R5034,TPP - Nursing Care
08/04/2020,3736844,29680/87,1690,Prime Life Ltd,RC502626,729 8397 74,Older People,R5034,TPP - Nursing Care
08/04/2020,3736844,29680/87,1717.71,Prime Life Ltd,RC502626,729 8397 74,Older People,R5028,TPP - Residental Care
08/04/2020,3736844,29680/87,4430,Prime Life Ltd,RC502626,729 8397 74,Older People,R5028,TPP - Residental Care
08/04/2020,3736844,29680/87,6202,Prime Life Ltd,RC502626,729 8397 74,Older People,R5028,TPP - Residental Care
08/04/2020,3736845,29680/88,155.71,Prime Life Ltd,RC502626,729 8397 74,Older People,R5034,TPP - Nursing Care
08/04/2020,3736845,29680/88,389.29,Prime Life Ltd,RC502626,729 8397 74,Older People,R5034,TPP - Nursing Care
08/04/2020,3736845,29680/88,545,Prime Life Ltd,RC502626,729 8397 74,Older People,R5034,TPP - Nursing Care
08/04/2020,3736846,29680/89,134,Prime Life Ltd,RC502626,729 8397 74,Older People,R5028,TPP - Residental Care
08/04/2020,3736846,29680/89,341.43,Prime Life Ltd,RC502626,729 8397 74,Older People,R5028,TPP - Residental Care
08/04/2020,3736846,29680/89,478,Prime Life Ltd,RC502626,729 8397 74,Older People,R5028,TPP - Residental Care
08/04/2020,3736847,29680/90,134,Prime Life Ltd,RC502626,729 8397 74,Older People,R5028,TPP - Residental Care
08/04/2020,3736847,29680/90,335,Prime Life Ltd,RC502626,729 8397 74,Older People,R5028,TPP - Residental Care
08/04/2020,3736847,29680/90,469,Prime Life Ltd,RC502626,729 8397 74,Older People,R5028,TPP - Residental Care
08/04/2020,3736848,29680/91,134,Prime Life Ltd,RC502626,729 8397 74,Older People,R5028,TPP - Residental Care
08/04/2020,3736848,29680/91,341.43,Prime Life Ltd,RC502626,729 8397 74,Older People,R5028,TPP - Residental Care
08/04/2020,3736848,29680/91,478,Prime Life Ltd,RC502626,729 8397 74,Older People,R5028,TPP - Residental Care
08/04/2020,3736849,29680/92,143.14,Prime Life Ltd,RC502626,729 8397 74,Older People,R5028,TPP - Residental Care
08/04/2020,3736849,29680/92,357.86,Prime Life Ltd,RC502626,729 8397 74,Older People,R5028,TPP - Residental Care
08/04/2020,3736849,29680/92,501,Prime Life Ltd,RC502626,729 8397 74,Older People,R5028,TPP - Residental Care
08/04/2020,3736850,29680/93,143.14,Prime Life Ltd,RC502626,729 8397 74,Older People,R5028,TPP - Residental Care
08/04/2020,3736850,29680/93,365,Prime Life Ltd,RC502626,729 8397 74,Older People,R5028,TPP - Residental Care
08/04/2020,3736850,29680/93,511,Prime Life Ltd,RC502626,729 8397 74,Older People,R5028,TPP - Residental Care
08/04/2020,3736851,29680/94,134,Prime Life Ltd,RC502626,729 8397 74,Older People,R5028,TPP - Residental Care
08/04/2020,3736851,29680/94,335,Prime Life Ltd,RC502626,729 8397 74,Older People,R5028,TPP - Residental Care
08/04/2020,3736851,29680/94,469,Prime Life Ltd,RC502626,729 8397 74,Older People,R5028,TPP - Residental Care
08/04/2020,3736852,29680/95,143.14,Prime Life Ltd,RC502626,729 8397 74,Older People,R5028,TPP - Residental Care
08/04/2020,3736852,29680/95,357.86,Prime Life Ltd,RC502626,729 8397 74,Older People,R5028,TPP - Residental Care
08/04/2020,3736852,29680/95,501,Prime Life Ltd,RC502626,729 8397 74,Older People,R5028,TPP - Residental Care
08/04/2020,3736853,29680/96,143.14,Prime Life Ltd,RC502626,729 8397 74,Older People,R5028,TPP - Residental Care
08/04/2020,3736853,29680/96,365,Prime Life Ltd,RC502626,729 8397 74,Older People,R5028,TPP - Residental Care
08/04/2020,3736853,29680/96,511,Prime Life Ltd,RC502626,729 8397 74,Older People,R5028,TPP - Residental Care
08/04/2020,3736854,29680/97,143.14,Prime Life Ltd,RC502626,729 8397 74,Older People,R5028,TPP - Residental Care
08/04/2020,3736854,29680/97,365,Prime Life Ltd,RC502626,729 8397 74,Older People,R5028,TPP - Residental Care
08/04/2020,3736854,29680/97,511,Prime Life Ltd,RC502626,729 8397 74,Older People,R5028,TPP - Residental Care
08/04/2020,3736855,29680/98,134,Prime Life Ltd,RC502626,729 8397 74,Older People,R5028,TPP - Residental Care
08/04/2020,3736855,29680/98,335,Prime Life Ltd,RC502626,729 8397 74,Older People,R5028,TPP - Residental Care
08/04/2020,3736855,29680/98,469,Prime Life Ltd,RC502626,729 8397 74,Older People,R5028,TPP - Residental Care
08/04/2020,3736856,29680/99,143.14,Prime Life Ltd,RC502626,729 8397 74,Older People,R5028,TPP - Residental Care
08/04/2020,3736856,29680/99,365,Prime Life Ltd,RC502626,729 8397 74,Older People,R5028,TPP - Residental Care
08/04/2020,3736856,29680/99,511,Prime Life Ltd,RC502626,729 8397 74,Older People,R5028,TPP - Residental Care
08/04/2020,3736857,29680/100,143.14,Prime Life Ltd,RC502626,729 8397 74,Older People,R5028,TPP - Residental Care
08/04/2020,3736857,29680/100,365,Prime Life Ltd,RC502626,729 8397 74,Older People,R5028,TPP - Residental Care
08/04/2020,3736857,29680/100,511,Prime Life Ltd,RC502626,729 8397 74,Older People,R5028,TPP - Residental Care
08/04/2020,3736858,29680/101,143.14,Prime Life Ltd,RC502626,729 8397 74,Older People,R5028,TPP - Residental Care
08/04/2020,3736858,29680/101,357.86,Prime Life Ltd,RC502626,729 8397 74,Older People,R5028,TPP - Residental Care
08/04/2020,3736858,29680/101,501,Prime Life Ltd,RC502626,729 8397 74,Older People,R5028,TPP - Residental Care
08/04/2020,3736859,29680/102,143.14,Prime Life Ltd,RC502626,729 8397 74,Older People,R5028,TPP - Residental Care
08/04/2020,3736859,29680/102,357.86,Prime Life Ltd,RC502626,729 8397 74,Older People,R5028,TPP - Residental Care
08/04/2020,3736859,29680/102,501,Prime Life Ltd,RC502626,729 8397 74,Older People,R5028,TPP - Residental Care
08/04/2020,3736860,29680/103,143.14,Prime Life Ltd,RC502626,729 8397 74,Older People,R5028,TPP - Residental Care
08/04/2020,3736860,29680/103,365,Prime Life Ltd,RC502626,729 8397 74,Older People,R5028,TPP - Residental Care
08/04/2020,3736860,29680/103,511,Prime Life Ltd,RC502626,729 8397 74,Older People,R5028,TPP - Residental Care
08/04/2020,3736861,29680/104,134,Prime Life Ltd,RC502626,729 8397 74,Older People,R5028,TPP - Residental Care
08/04/2020,3736861,29680/104,335,Prime Life Ltd,RC502626,729 8397 74,Older People,R5028,TPP - Residental Care
08/04/2020,3736861,29680/104,469,Prime Life Ltd,RC502626,729 8397 74,Older People,R5028,TPP - Residental Care
08/04/2020,3736862,29680/105,155.71,Prime Life Ltd,RC502626,729 8397 74,Older People,R5034,TPP - Nursing Care
08/04/2020,3736862,29680/105,397.14,Prime Life Ltd,RC502626,729 8397 74,Older People,R5034,TPP - Nursing Care
08/04/2020,3736862,29680/105,556,Prime Life Ltd,RC502626,729 8397 74,Older People,R5034,TPP - Nursing Care
08/04/2020,3736863,29680/106,155.71,Prime Life Ltd,RC502626,729 8397 74,Physical Disability,R5034,TPP - Nursing Care
08/04/2020,3736863,29680/106,389.29,Prime Life Ltd,RC502626,729 8397 74,Physical Disability,R5034,TPP - Nursing Care
08/04/2020,3736863,29680/106,545,Prime Life Ltd,RC502626,729 8397 74,Physical Disability,R5034,TPP - Nursing Care
08/04/2020,3736864,29680/107,134,Prime Life Ltd,RC502626,729 8397 74,Older People,R5028,TPP - Residental Care
08/04/2020,3736864,29680/107,341.43,Prime Life Ltd,RC502626,729 8397 74,Older People,R5028,TPP - Residental Care
08/04/2020,3736864,29680/107,478,Prime Life Ltd,RC502626,729 8397 74,Older People,R5028,TPP - Residental Care
08/04/2020,3736865,29680/108,143.14,Prime Life Ltd,RC502626,729 8397 74,Older People,R5028,TPP - Residental Care
08/04/2020,3736865,29680/108,357.86,Prime Life Ltd,RC502626,729 8397 74,Older People,R5028,TPP - Residental Care
08/04/2020,3736865,29680/108,501,Prime Life Ltd,RC502626,729 8397 74,Older People,R5028,TPP - Residental Care
08/04/2020,3736866,29680/109,143.14,Prime Life Ltd,RC502626,729 8397 74,Older People,R5028,TPP - Residental Care
08/04/2020,3736866,29680/109,357.86,Prime Life Ltd,RC502626,729 8397 74,Older People,R5028,TPP - Residental Care
08/04/2020,3736866,29680/109,501,Prime Life Ltd,RC502626,729 8397 74,Older People,R5028,TPP - Residental Care
08/04/2020,3736867,29680/110,155.71,Prime Life Ltd,RC502626,729 8397 74,Older People,R5034,TPP - Nursing Care
08/04/2020,3736867,29680/110,397.14,Prime Life Ltd,RC502626,729 8397 74,Older People,R5034,TPP - Nursing Care
08/04/2020,3736867,29680/110,556,Prime Life Ltd,RC502626,729 8397 74,Older People,R5034,TPP - Nursing Care
08/04/2020,3736868,29680/111,143.14,Prime Life Ltd,RC502626,729 8397 74,Older People,R5028,TPP - Residental Care
08/04/2020,3736868,29680/111,357.86,Prime Life Ltd,RC502626,729 8397 74,Older People,R5028,TPP - Residental Care
08/04/2020,3736868,29680/111,501,Prime Life Ltd,RC502626,729 8397 74,Older People,R5028,TPP - Residental Care
08/04/2020,3736869,29680/112,134,Prime Life Ltd,RC502626,729 8397 74,Older People,R5028,TPP - Residental Care
08/04/2020,3736869,29680/112,335,Prime Life Ltd,RC502626,729 8397 74,Older People,R5028,TPP - Residental Care
08/04/2020,3736869,29680/112,469,Prime Life Ltd,RC502626,729 8397 74,Older People,R5028,TPP - Residental Care
08/04/2020,3736870,29680/113,134,Prime Life Ltd,RC502626,729 8397 74,Older People,R5028,TPP - Residental Care
08/04/2020,3736870,29680/113,341.43,Prime Life Ltd,RC502626,729 8397 74,Older People,R5028,TPP - Residental Care
08/04/2020,3736870,29680/113,478,Prime Life Ltd,RC502626,729 8397 74,Older People,R5028,TPP - Residental Care
08/04/2020,3736871,29680/114,143.14,Prime Life Ltd,RC502626,729 8397 74,Older People,R5028,TPP - Residental Care
08/04/2020,3736871,29680/114,365,Prime Life Ltd,RC502626,729 8397 74,Older People,R5028,TPP - Residental Care
08/04/2020,3736871,29680/114,511,Prime Life Ltd,RC502626,729 8397 74,Older People,R5028,TPP - Residental Care
08/04/2020,3736872,29680/115,134,Prime Life Ltd,RC502626,729 8397 74,Older People,R5028,TPP - Residental Care
08/04/2020,3736872,29680/115,341.43,Prime Life Ltd,RC502626,729 8397 74,Older People,R5028,TPP - Residental Care
08/04/2020,3736872,29680/115,478,Prime Life Ltd,RC502626,729 8397 74,Older People,R5028,TPP - Residental Care
08/04/2020,3736873,29680/116,143.14,Prime Life Ltd,RC502626,729 8397 74,Older People,R5028,TPP - Residental Care
08/04/2020,3736873,29680/116,365,Prime Life Ltd,RC502626,729 8397 74,Older People,R5028,TPP - Residental Care
08/04/2020,3736873,29680/116,511,Prime Life Ltd,RC502626,729 8397 74,Older People,R5028,TPP - Residental Care
08/04/2020,3736874,29680/117,143.14,Prime Life Ltd,RC502626,729 8397 74,Older People,R5028,TPP - Residental Care
08/04/2020,3736874,29680/117,365,Prime Life Ltd,RC502626,729 8397 74,Older People,R5028,TPP - Residental Care
08/04/2020,3736874,29680/117,511,Prime Life Ltd,RC502626,729 8397 74,Older People,R5028,TPP - Residental Care
08/04/2020,3736876,29693/119,143.14,Prime Life Ltd,RC502626,729 8397 74,Older People,R5028,TPP - Residental Care
08/04/2020,3736876,29693/119,365,Prime Life Ltd,RC502626,729 8397 74,Older People,R5028,TPP - Residental Care
08/04/2020,3736876,29693/119,511,Prime Life Ltd,RC502626,729 8397 74,Older People,R5028,TPP - Residental Care
08/04/2020,3736877,29692/120,1012.14,Prime Life Ltd,RC502626,729 8397 74,Older People,R5034,TPP - Nursing Care
08/04/2020,3736878,29693/121,155.71,Prime Life Ltd,RC502626,729 8397 74,Older People,R5034,TPP - Nursing Care
08/04/2020,3736878,29693/121,397.14,Prime Life Ltd,RC502626,729 8397 74,Older People,R5034,TPP - Nursing Care
08/04/2020,3736878,29693/121,556,Prime Life Ltd,RC502626,729 8397 74,Older People,R5034,TPP - Nursing Care
08/04/2020,3736879,29692/122,268,Prime Life Ltd,RC502626,729 8397 74,ASC P&S Respite OP,R5018,Respite
08/04/2020,3736879,29692/122,938,Prime Life Ltd,RC502626,729 8397 74,ASC P&S Respite OP,R5018,Respite
08/04/2020,3736880,29693/123,938,Prime Life Ltd,RC502626,729 8397 74,ASC P&S Respite OP,R5018,Respite
08/04/2020,3736881,29692/124,357.86,Prime Life Ltd,RC502626,729 8397 74,Older People,R5025,Short Term Care
08/04/2020,3736881,29692/124,644.14,Prime Life Ltd,RC502626,729 8397 74,Older People,R5025,Short Term Care
21/04/2020,3737399,29980/88,2268,Prime Life Ltd,RC502626,729 8397 74,Older People,R5034,TPP - Nursing Care
21/04/2020,3737399,29980/88,13262.86,Prime Life Ltd,RC502626,729 8397 74,Older People,R5028,TPP - Residental Care
21/04/2020,3737400,29980/89,1090,Prime Life Ltd,RC502626,729 8397 74,Older People,R5034,TPP - Nursing Care
21/04/2020,3737401,29980/90,956,Prime Life Ltd,RC502626,729 8397 74,Older People,R5028,TPP - Residental Care
21/04/2020,3737402,29980/91,938,Prime Life Ltd,RC502626,729 8397 74,Older People,R5028,TPP - Residental Care
21/04/2020,3737403,29980/92,1112,Prime Life Ltd,RC502626,729 8397 74,Older People,R5034,TPP - Nursing Care
21/04/2020,3737404,29980/93,956,Prime Life Ltd,RC502626,729 8397 74,Older People,R5028,TPP - Residental Care
21/04/2020,3737405,29980/94,1002,Prime Life Ltd,RC502626,729 8397 74,Older People,R5028,TPP - Residental Care
21/04/2020,3737406,29980/95,1022,Prime Life Ltd,RC502626,729 8397 74,Older People,R5028,TPP - Residental Care
21/04/2020,3737407,29980/96,938,Prime Life Ltd,RC502626,729 8397 74,Older People,R5028,TPP - Residental Care
21/04/2020,3737408,29980/97,1002,Prime Life Ltd,RC502626,729 8397 74,Older People,R5028,TPP - Residental Care
21/04/2020,3737409,29980/98,1022,Prime Life Ltd,RC502626,729 8397 74,Older People,R5028,TPP - Residental Care
21/04/2020,3737410,29980/99,1022,Prime Life Ltd,RC502626,729 8397 74,Older People,R5028,TPP - Residental Care
21/04/2020,3737411,29980/100,938,Prime Life Ltd,RC502626,729 8397 74,Older People,R5028,TPP - Residental Care
21/04/2020,3737412,29980/101,1022,Prime Life Ltd,RC502626,729 8397 74,Older People,R5028,TPP - Residental Care
21/04/2020,3737413,29980/102,1022,Prime Life Ltd,RC502626,729 8397 74,Older People,R5028,TPP - Residental Care
21/04/2020,3737414,29980/103,1002,Prime Life Ltd,RC502626,729 8397 74,Older People,R5028,TPP - Residental Care
21/04/2020,3737415,29980/104,1002,Prime Life Ltd,RC502626,729 8397 74,Older People,R5028,TPP - Residental Care
21/04/2020,3737416,29980/105,1022,Prime Life Ltd,RC502626,729 8397 74,Older People,R5028,TPP - Residental Care
21/04/2020,3737417,29980/106,938,Prime Life Ltd,RC502626,729 8397 74,Older People,R5028,TPP - Residental Care
21/04/2020,3737418,29980/107,1112,Prime Life Ltd,RC502626,729 8397 74,Older People,R5034,TPP - Nursing Care
21/04/2020,3737419,29980/108,1090,Prime Life Ltd,RC502626,729 8397 74,Physical Disability,R5034,TPP - Nursing Care
21/04/2020,3737420,29980/109,956,Prime Life Ltd,RC502626,729 8397 74,Older People,R5028,TPP - Residental Care
21/04/2020,3737421,29980/110,1002,Prime Life Ltd,RC502626,729 8397 74,Older People,R5028,TPP - Residental Care
21/04/2020,3737422,29980/111,143.14,Prime Life Ltd,RC502626,729 8397 74,Older People,R5028,TPP - Residental Care
21/04/2020,3737423,29980/112,1112,Prime Life Ltd,RC502626,729 8397 74,Older People,R5034,TPP - Nursing Care
21/04/2020,3737424,29980/113,1002,Prime Life Ltd,RC502626,729 8397 74,Older People,R5028,TPP - Residental Care
21/04/2020,3737425,29980/114,938,Prime Life Ltd,RC502626,729 8397 74,Older People,R5028,TPP - Residental Care
21/04/2020,3737426,29980/115,956,Prime Life Ltd,RC502626,729 8397 74,Older People,R5028,TPP - Residental Care
21/04/2020,3737427,29980/116,1022,Prime Life Ltd,RC502626,729 8397 74,Older People,R5028,TPP - Residental Care
21/04/2020,3737428,29980/117,956,Prime Life Ltd,RC502626,729 8397 74,Older People,R5028,TPP - Residental Care
21/04/2020,3737429,29980/118,1022,Prime Life Ltd,RC502626,729 8397 74,Older People,R5028,TPP - Residental Care
21/04/2020,3737430,29980/119,1022,Prime Life Ltd,RC502626,729 8397 74,Older People,R5028,TPP - Residental Care
21/04/2020,3737432,29981/121,292,Prime Life Ltd,RC502626,729 8397 74,Older People,R5028,TPP - Residental Care
21/04/2020,3737433,29981/122,341.43,Prime Life Ltd,RC502626,729 8397 74,ASC P&S Respite OP,R5018,Respite
21/04/2020,3737433,29981/122,478,Prime Life Ltd,RC502626,729 8397 74,ASC P&S Respite OP,R5018,Respite
21/04/2020,3737433,29981/122,956,Prime Life Ltd,RC502626,729 8397 74,ASC P&S Respite OP,R5018,Respite
27/03/2020,60041477,901438,335,Prime Life Ltd,RC502626,729 8397 74,Interim Beds (CCG),R5028,TPP - Residental Care
21/02/2020,60041736,898836,1002,Prime Life Ltd,RC502626,729 8397 74,Interim Beds (CCG),R5028,TPP - Residental Care
21/02/2020,60041737,898845,1002,Prime Life Ltd,RC502626,729 8397 74,Interim Beds (CCG),R5028,TPP - Residental Care
25/02/2020,60041738,898945,1600,Prime Life Ltd,RC502626,729 8397 74,Interim Beds (CCG),R5028,TPP - Residental Care
28/02/2020,60041739,899264,1600,Prime Life Ltd,RC502626,729 8397 74,Interim Beds (CCG),R5028,TPP - Residental Care
28/02/2020,60041740,899380,1257.14,Prime Life Ltd,RC502626,729 8397 74,Interim Beds (CCG),R5028,TPP - Residental Care
28/02/2020,60041741,899381,1600,Prime Life Ltd,RC502626,729 8397 74,Interim Beds (CCG),R5028,TPP - Residental Care
10/03/2020,60041742,899506,685.71,Prime Life Ltd,RC502626,729 8397 74,Interim Beds (CCG),R5028,TPP - Residental Care
28/02/2020,60041856,899263,1485.71,Prime Life Ltd,RC502626,729 8397 74,Interim Beds (CCG),R5028,TPP - Residental Care
28/02/2020,60041931,899159,1600,Prime Life Ltd,RC502626,729 8397 74,Interim Beds (CCG),R5028,TPP - Residental Care
10/03/2020,60041932,899507,1600,Prime Life Ltd,RC502626,729 8397 74,Interim Beds (CCG),R5028,TPP - Residental Care
01/04/2020,60042085,903076,65363.14,Prime Life Ltd,RC502626,729 8397 74,Older People,R5028,TPP - Residental Care
08/04/2020,3736875,29691/118,296.5,Prime Life Ltd (Rutland Care Village),RC502276,,Older People,R5034,TPP - Nursing Care
08/04/2020,3736875,29691/118,781.25,Prime Life Ltd (Rutland Care Village),RC502276,,Older People,R5034,TPP - Nursing Care
08/04/2020,3736875,29691/118,1093.75,Prime Life Ltd (Rutland Care Village),RC502276,,Older People,R5034,TPP - Nursing Care
21/04/2020,3737431,30028/120,2187.5,Prime Life Ltd (Rutland Care Village),RC502276,,Older People,R5034,TPP - Nursing Care
02/04/2020,60041786,5399266,1896.7,Prism Medical UK,RC508680,845 6079 03,Capital Programme People - Adults,C1150,Capital Grant Expenditure
01/04/2020,60041628,70603531,2617.47,Proquest LLC,RC500633,,Libraries,R4701,Subscriptions
01/04/2020,60041526,006/2020,600,PTTP Planning Services,RC301102,,Local Plan Production,R1100,Agency Staff
31/03/2020,60041809,3413,12.5,Quorn Hunt,RC508422,,Street Cleaning,R5016,TPP - Private Contractors
02/04/2020,3736472,Redacted Personal Data,145,Redacted Personal Data,RC508778,,Placements,R5017,TPP - Other
02/04/2020,3736473,Redacted Personal Data,249,Redacted Personal Data,RC508778,,Placements,R5017,TPP - Other
02/04/2020,3736502,Redacted Personal Data,218.81,Redacted Personal Data,RC508778,,Placements,R5017,TPP - Other
02/04/2020,3736503,Redacted Personal Data,164.11,Redacted Personal Data,RC508778,,Placements,R5017,TPP - Other
08/04/2020,3736696,Redacted Personal Data,145,Redacted Personal Data,RC508778,,Placements,R5017,TPP - Other
08/04/2020,3736697,Redacted Personal Data,249,Redacted Personal Data,RC508778,,Placements,R5017,TPP - Other
08/04/2020,3736724,Redacted Personal Data,218.81,Redacted Personal Data,RC508778,,Placements,R5017,TPP - Other
08/04/2020,3736725,Redacted Personal Data,164.11,Redacted Personal Data,RC508778,,Placements,R5017,TPP - Other
16/04/2020,3737154,Redacted Personal Data,145,Redacted Personal Data,RC508778,,Placements,R5017,TPP - Other
16/04/2020,3737155,Redacted Personal Data,249,Redacted Personal Data,RC508778,,Placements,R5017,TPP - Other
16/04/2020,3737181,Redacted Personal Data,218.81,Redacted Personal Data,RC508778,,Placements,R5017,TPP - Other
16/04/2020,3737182,Redacted Personal Data,164.11,Redacted Personal Data,RC508778,,Placements,R5017,TPP - Other
23/04/2020,3737248,Redacted Personal Data,145,Redacted Personal Data,RC508778,,Placements,R5017,TPP - Other
23/04/2020,3737249,Redacted Personal Data,249,Redacted Personal Data,RC508778,,Placements,R5017,TPP - Other
23/04/2020,3737275,Redacted Personal Data,218.81,Redacted Personal Data,RC508778,,Placements,R5017,TPP - Other
23/04/2020,3737276,Redacted Personal Data,164.11,Redacted Personal Data,RC508778,,Placements,R5017,TPP - Other
09/04/2020,60041963,16774,1166,R H Environment Limited,RC301469,779242884,Crime And Disorder,C1002,Computer Software
16/04/2020,3736934,2 Year Funding - April Claim March Adjustment - Covid,162.24,Rainbows - Exton,RC506365,,2 Year Old Nursery Funding,R5020,TPP - Nursery Provision
16/04/2020,3736957,3 and 4 Year Funding - April Claim March Adjustment - Covid,4802.88,Rainbows - Exton,RC506365,,3 & 4 Year Old Nursery Funding,R5020,TPP - Nursery Provision
01/04/2020,60040818,10175,525,Reach Marketing Communications Ltd,RC506383,812869118,Communication,R4400,Professional Fees
01/04/2020,60041761,10261,2368,Reach Marketing Communications Ltd,RC506383,812869118,Human Resources,R1700,Staff Advertising Costs
01/04/2020,60041823,10287,6948,Reach Marketing Communications Ltd,RC506383,812869118,Local Plan Production,R4400,Professional Fees
02/04/2020,60041680,13430,1687.44,RecruitMe Ltd,RC300887,209 0081 43,Health & Safety,R1401,Professional Fees
01/04/2020,60041815,118507,35.01,Regent Office Care Ltd,RC500611,415 2528 73,The King Centre,R2004,R & M - Programmed
01/04/2020,60041816,118584,480,Regent Office Care Ltd,RC500611,415 2528 73,Property Services Rechargeable Works,R2003,R & M - Emergency Works
01/04/2020,60041841,118868,600,Regent Office Care Ltd,RC500611,415 2528 73,Property Services Rechargeable Works,R2003,R & M - Emergency Works
01/04/2020,60042229,116640,78.51,Regent Office Care Ltd,RC500611,415 2528 73,The King Centre,R2004,R & M - Programmed
01/04/2020,60041446,SLINV00093521,17.64,Reliance High Tech Limited,RC300055,176 9940 50,Public Rights of Way,R4701,Subscriptions
08/04/2020,3736842,29722/85,843.6,Roman Park Ltd,RC502283,,Learning Disability,R5028,TPP - Residental Care
21/04/2020,3737397,30016/86,843.6,Roman Park Ltd,RC502283,,Learning Disability,R5028,TPP - Residental Care
08/04/2020,3736843,29627/86,500,Roman Park Ltd (Day Care),RC300484,,ASC S&R Daycare LD,R5030,TPP - Daycare
21/04/2020,3737398,29969/87,500,Roman Park Ltd (Day Care),RC300484,,ASC S&R Daycare LD,R5030,TPP - Daycare
23/04/2020,60042336,9060797628,3.29,Royal Mail Group Ltd,RC500772,243 1700 02,Reprographics & Post,R4503,Postage
08/04/2020,3736801,29707/44,1062,Royal Masonic Benevolent Institution No 4 A/C,RC508527,,Older People,R5028,TPP - Residental Care
21/04/2020,3737355,29999/43,1062,Royal Masonic Benevolent Institution No 4 A/C,RC508527,,Older People,R5028,TPP - Residental Care
15/04/2020,60041960,3495306,933.42,Royal Mencap Society,RC300491,791 4831 06,ASC S&R Homecare LD,R5029,TPP - Home Care
15/04/2020,60041960,3495306,1075.5,Royal Mencap Society,RC300491,791 4831 06,ASC S&R Homecare LD,R5029,TPP - Home Care
08/04/2020,3736831,29716/74,700,Rushcliffe Care Group,RC506846,,Physical Disability,R5028,TPP - Residental Care
21/04/2020,3737387,30006/75,700,Rushcliffe Care Group,RC506846,,Physical Disability,R5028,TPP - Residental Care
01/04/2020,60041659,SIN003448,11163,Ruskin Mill Trust,RC301424,171903806,SEN (DSG),R5017,TPP - Other
22/04/2020,60042203,SIN003533,24698.25,Ruskin Mill Trust,RC301424,171903806,SEN (DSG),R5017,TPP - Other
08/04/2020,3736640,Apr 2020 dripfeed - College High Needs Statemented Pupils,4807,Rutland & District Schools' Federation (catmose),RC502547,,SEN (DSG),R6300,Schools - Budget Share
08/04/2020,3736641,Apr 2020 dripfeed - College High Needs Additional Support,18106,Rutland & District Schools' Federation (catmose),RC502547,,SEN (DSG),R6300,Schools - Budget Share
08/04/2020,3736642,Apr 2020 dripfeed - Primary High Needs Block Allocation,75,Rutland & District Schools' Federation (catmose),RC502547,,SEN (DSG),R6300,Schools - Budget Share
01/04/2020,60041552,1-20/21,124924,Rutland Citizens Advice Bureau,RC500792,271224528,Voluntary Sector Grants,R5017,TPP - Other
06/04/2020,60041785,2-20/21,1250,Rutland Citizens Advice Bureau,RC500792,271224528,Financial Crisis Support,R5017,TPP - Other
24/04/2020,60042206,30,150,Rutland Community Physiotherapy,RC300206,,Active Rutland Hub,R4401,Fees and Charges
10/04/2020,60041835,1025,500,Rutland Community Ventures,RC300504,,Other Public Health Services,R5017,TPP - Other
24/04/2020,60042276,12341,90,Rutland Energy Assessors Limited,RC508275,,Capital Programme Places,R2004,R & M - Programmed
08/04/2020,3736783,29629/26,2138.64,Rutland House Community Trust (Care),RC502287,,ASC S&R Homecare LD,R5029,TPP - Home Care
08/04/2020,3736784,29629/27,1015,Rutland House Community Trust (Care),RC502287,,ASC S&R Homecare LD,R5029,TPP - Home Care
08/04/2020,3736785,29629/28,522,Rutland House Community Trust (Care),RC502287,,ASC S&R Homecare LD,R5029,TPP - Home Care
08/04/2020,3736786,29629/29,754,Rutland House Community Trust (Care),RC502287,,ASC S&R Homecare PD,R5029,TPP - Home Care
08/04/2020,3736910,29630/153,2395,Rutland House Community Trust (Care),RC502287,,ASC S&R Homecare LD,R5029,TPP - Home Care
08/04/2020,3736911,29630/154,552,Rutland House Community Trust (Care),RC502287,,ASC S&R Homecare LD,R5029,TPP - Home Care
08/04/2020,3736912,29630/155,4844.22,Rutland House Community Trust (Care),RC502287,,ASC S&R Homecare LD,R5029,TPP - Home Care
08/04/2020,3736914,29697/157,938,Rutland House Community Trust (Care),RC502287,,Learning Disability,R5028,TPP - Residental Care
08/04/2020,3736915,29697/158,2042.64,Rutland House Community Trust (Care),RC502287,,Learning Disability,R5028,TPP - Residental Care
08/04/2020,3736916,29697/159,2321.6,Rutland House Community Trust (Care),RC502287,,Learning Disability,R5028,TPP - Residental Care
08/04/2020,3736917,29697/160,1146.84,Rutland House Community Trust (Care),RC502287,,Learning Disability,R5028,TPP - Residental Care
21/04/2020,3737336,29973/24,2138.64,Rutland House Community Trust (Care),RC502287,,ASC S&R Homecare LD,R5029,TPP - Home Care
21/04/2020,3737337,29973/25,1015,Rutland House Community Trust (Care),RC502287,,ASC S&R Homecare LD,R5029,TPP - Home Care
21/04/2020,3737338,29973/26,522,Rutland House Community Trust (Care),RC502287,,ASC S&R Homecare LD,R5029,TPP - Home Care
21/04/2020,3737339,29973/27,754,Rutland House Community Trust (Care),RC502287,,ASC S&R Homecare PD,R5029,TPP - Home Care
21/04/2020,3737462,29974/151,2395,Rutland House Community Trust (Care),RC502287,,ASC S&R Homecare LD,R5029,TPP - Home Care
21/04/2020,3737463,29974/152,552,Rutland House Community Trust (Care),RC502287,,ASC S&R Homecare LD,R5029,TPP - Home Care
21/04/2020,3737464,29974/153,4844.22,Rutland House Community Trust (Care),RC502287,,ASC S&R Homecare LD,R5029,TPP - Home Care
